{"text_format":"1","workbook":"xlsx","n_sheets":13,"sheets":["SolCotizacion","ResumenCotizacionE","Cotizacion","ActFasecolda","FormatosIndividuales","Listas","temp","solCotizacionCSV","Accesorios","TempAccesorios","Consolidado","tempListas","Hoja2"],"not_rendered":{"charts":0,"images":0,"macros":1,"external_links":3,"defined_names":88,"comments":0,"pivot_tables":1},"unopened":[],"bounds":{"document_bytes":16777216,"sheet_cells":100000,"rows_first":2000,"rows_last":500,"rows_between":2000,"halvings":0,"cell_chars":16384,"cell_head_chars":4096},"cells_cut":0,"cells_raw":0,"read":"whole","date_system":"1900"}

{"sheet":"SolCotizacion","index":0,"n_rows":73,"n_cols":14,"rows_kept":73,"cut":false,"hidden":false,"merged":[[40,10,40,14],[41,1,41,6],[43,1,43,6],[43,7,43,8],[43,10,43,14],[41,7,41,8],[41,10,41,14],[28,1,28,6],[28,7,28,8],[28,10,28,14],[31,1,31,6],[31,7,31,8],[31,10,31,14],[32,1,32,6],[40,7,40,8],[42,1,42,6],[42,7,42,8],[42,10,42,14],[40,1,40,6],[29,10,29,14],[36,1,36,6],[39,1,39,6],[39,7,39,8],[39,10,39,14],[38,1,38,6],[29,7,29,8],[32,7,32,8],[32,10,32,14],[29,1,29,6],[30,7,30,8],[30,10,30,14],[37,10,37,14],[30,1,30,6],[35,1,35,6],[35,7,35,8],[33,1,33,6],[33,7,33,8],[33,10,33,14],[34,1,34,6],[34,7,34,8],[34,10,34,14],[35,10,35,14],[36,7,36,8],[36,10,36,14],[37,1,37,6],[37,7,37,8],[38,7,38,8],[38,10,38,14],[27,10,27,14],[24,1,24,2],[27,1,27,6],[4,1,4,14],[6,11,6,14],[8,11,8,14],[6,1,6,3],[6,4,6,9],[12,4,12,9],[8,4,8,9],[10,1,10,3],[10,4,10,9],[10,11,10,12],[10,13,10,14],[8,1,8,3],[12,1,12,3],[14,1,14,14],[18,1,18,14],[24,11,24,14],[26,1,26,14],[27,7,27,8],[23,1,23,2],[0,1,1,14],[2,1,2,14],[16,4,16,7],[24,3,24,6],[23,7,23,10],[24,7,24,10],[23,11,23,14],[23,3,23,6],[16,8,16,10],[19,3,19,4],[45,1,45,14],[72,13,72,14],[70,13,70,14],[69,13,69,14],[61,8,61,14],[62,8,62,14],[61,1,61,7],[62,1,62,7],[64,1,64,14],[66,1,66,14],[72,9,72,12],[70,2,70,12],[60,1,60,14],[55,1,55,14],[56,13,56,14],[57,13,57,14],[69,2,69,12],[67,1,67,4],[67,5,67,7],[50,13,50,14],[46,1,46,12],[56,1,56,12],[57,1,57,12],[58,1,58,14],[52,1,52,14],[53,1,53,14],[46,13,46,14],[47,13,47,14],[48,13,48,14],[49,13,49,14],[47,1,47,12],[48,1,48,12],[49,1,49,12],[50,1,50,12]]}
[null,"Solicitud de Cotización"]
[]
[null,"Acuerdo Marco Motos"]
[null,"Versión: 22","2018-12-17"]
[null,"Información de la Entidad Compradora"]
[]
[null,"Nombre de la Entidad:",null,null,null,null,null,null,null,null,"NIT:"]
[]
[null,"Dirección de la Entidad:",null,null,null,null,null,null,null,null,"Municipio:"]
[]
[null,"Nombre del Comprador:",null,null,null,null,null,null,null,null,"Teléfono:"]
[]
[null,"Correo del comprador:"]
[]
[null,"Fechas estimadas"]
[]
[null,null,null,null,"Fecha creación solicitud cotización:",null,null,null,"2018-09-17"]
[]
[null," Artículos Solicitud de Cotización"]
[]
[]
[]
[]
[null,"Segmento",null,{"$f":"IF(B25=\"\",\"No Aplica\",VLOOKUP(B25,Listas!$A$2:$B$18,2,0))","v":"No Aplica"},null,null,null,"Intervalo de precio",null,null,null,"Unidades"]
[{"$f":"VLOOKUP(SUBSTITUTE(SUBSTITUTE(SUBSTITUTE(B25&D25&H25,\".\",\"\"),\" \",\"\"),\"-\",\"\"),Consolidado!B:AV,47,0)","v":{"$error":"#N/A"}}]
[]
[null,"Adecuaciones y Accesorios"]
[null,"Descripción",null,null,null,null,null,"Cantidad",null,"Sí / No","Observaciones"]
[null,"Defensa",null,null,null,null,null,null,null,"NO"]
[null,"Pintura (100% del exterior de la Motocicleta, Cuatrimoto o Motocarro)",null,null,null,null,null,null,null,"NO"]
[null,"Adhesivos de emblemas (por metro cuadrado)",null,null,null,null,null,null,null,"NO"]
[null,"Sirena Compacta",null,null,null,null,null,null,null,"NO"]
[null,"Luces de Emergencia",null,null,null,null,null,null,null,"NO"]
[null,"Exploradoras",null,null,null,null,null,null,null,"NO"]
[null,"Casco abatible",null,null,null,null,null,null,null,"NO"]
[null,"Casco cerrado ",null,null,null,null,null,null,null,"NO"]
[null,"Impermeables",null,null,null,null,null,null,null,"NO"]
[null,"Chalecos reflectivos",null,null,null,null,null,null,null,"NO"]
[null,"Rodilleras, coderas y guantes",null,null,null,null,null,null,null,"NO"]
[null,"Maletero ",null,null,null,null,null,null,null,"NO"]
[null,"Chaqueta antifricción",null,null,null,null,null,null,null,"NO"]
[null,"Body armor",null,null,null,null,null,null,null,"NO"]
[null,"Maleteros Laterales",null,null,null,null,null,null,null,"NO"]
[null,"Parrilla",null,null,null,null,null,null,null,"NO"]
[]
[null,"Mantenimiento Preventivo"]
[null,"Descripción",null,null,null,null,null,null,null,null,null,null,null,"Sí / No"]
[null,"24 mil Km",null,null,null,null,null,null,null,null,null,null,null,"NO"]
[null,"36 mil Km",null,null,null,null,null,null,null,null,null,null,null,"NO"]
[null,"48 mil Km",null,null,null,null,null,null,null,null,null,null,null,"NO"]
[null,"60 mil Km",null,null,null,null,null,null,null,null,null,null,null,"NO"]
[]
[null,"Requerimientos de la Matricula"]
[]
[]
[null,"Lugar de Entrega"]
[null,"Ciudad de Entrega",null,null,null,null,null,null,null,null,null,null,null,"Unidades"]
[]
[null,"Si requiere agregue o elimine filas"]
[]
[null,"Incluye SOAT"]
[null,"Sí / No",null,null,null,null,null,null,"Vigencia"]
[]
[]
[null,"Gravámenes adicionales (estampillas)"]
[]
[null,"Indique los gravámenes adicionales (estampilllas) a los que está sujeta la Orden de Compra. Son gravámens adiconales por ejemplo; estampillas y demás impuestos territoriales.\nLos impuestos como ICA y retención en la fuente NO son gravámenes adicionales."]
[null,"¿Como debe calcular el proveedor el valor de las estampillas?",null,null,null,"No aplica"]
[]
[null,"No.","Descripción ",null,null,null,null,null,null,null,null,null,null," % Gravámen"]
[null,1]
[]
[null,null,null,null,null,null,null,null,null,"Total Gravámenes adicionales",null,null,null,{"$f":"SUM(N71:O71)","v":0}]

{"sheet":"ResumenCotizacionE","index":1,"n_rows":73,"n_cols":14,"rows_kept":73,"cut":false,"hidden":true,"merged":[[49,1,49,12],[57,13,57,14],[49,13,49,14],[50,1,50,12],[50,13,50,14],[40,7,40,8],[40,10,40,14],[41,1,41,6],[41,7,41,8],[41,10,41,14],[46,1,46,12],[46,13,46,14],[47,1,47,12],[47,13,47,14],[48,1,48,12],[48,13,48,14],[43,7,43,8],[43,10,43,14],[43,1,43,6],[45,1,45,14],[37,1,37,6],[37,7,37,8],[37,10,37,14],[39,1,39,6],[39,7,39,8],[39,10,39,14],[40,1,40,6],[38,10,38,14],[42,1,42,6],[42,10,42,14],[38,1,38,6],[38,7,38,8],[42,7,42,8],[32,1,32,6],[32,7,32,8],[32,10,32,14],[34,7,34,8],[35,1,35,6],[36,1,36,6],[36,7,36,8],[36,10,36,14],[35,7,35,8],[35,10,35,14],[33,1,33,6],[33,7,33,8],[33,10,33,14],[34,1,34,6],[34,10,34,14],[8,1,8,3],[8,4,8,9],[0,1,1,14],[2,1,2,14],[4,1,4,14],[6,1,6,3],[6,4,6,9],[16,8,16,10],[6,11,6,14],[8,11,8,14],[14,1,14,14],[19,3,19,4],[18,1,18,14],[16,4,16,7],[10,1,10,3],[10,4,10,9],[12,1,12,3],[12,4,12,9],[10,11,10,12],[10,13,10,14],[31,1,31,6],[31,7,31,8],[31,10,31,14],[26,1,26,14],[27,1,27,6],[27,7,27,8],[27,10,27,14],[28,1,28,6],[28,7,28,8],[28,10,28,14],[30,10,30,14],[23,11,23,14],[24,1,24,2],[24,7,24,10],[24,11,24,14],[29,1,29,6],[29,7,29,8],[29,10,29,14],[30,1,30,6],[30,7,30,8],[23,1,23,2],[23,3,23,6],[23,7,23,10],[24,3,24,6],[72,9,72,12],[72,13,72,14],[60,1,60,14],[52,1,52,14],[53,1,53,14],[55,1,55,14],[56,1,56,12],[56,13,56,14],[57,1,57,12],[58,1,58,14],[70,2,70,12],[70,13,70,14],[61,1,61,7],[61,8,61,14],[62,1,62,7],[62,8,62,14],[64,1,64,14],[66,1,66,14],[67,1,67,14],[69,2,69,12],[69,13,69,14]]}
[null,"Solicitud de Cotización"]
[]
[null,"Acuerdo Marco Motos"]
[]
[null,"Información de la Entidad Compradora"]
[]
[null,"Nombre de la Entidad:",null,null,"g",null,null,null,null,null,"NIT:","g"]
[]
[null,"Dirección de la Entidad:",null,null,"g",null,null,null,null,null,"Municipio:","g"]
[]
[null,"Nombre del Comprador:",null,null,"g",null,null,null,null,null,"Teléfono:","g",null,"g"]
[]
[null,"Correo del comprador:",null,null,"g"]
[]
[null,"Fechas estimadas"]
[]
[null,null,null,null,"Fecha creación solicitud cotización:",null,null,null,"2016-09-02"]
[]
[null," Artículos Solicitud de Cotización"]
[]
[]
[]
[]
[null,"Segmento",null,{"$f":"IF(B25=\"\",\"No Aplica\",VLOOKUP(B25,Listas!$A$2:$B$18,2,0))","v":"Cilindraje"},null,null,null,"Intervalo de precio",null,null,null,"Unidades"]
[null,"Motocicleta Doble Proposito Tipo Enduro",null,"226cc - 274cc",null,null,null,"Intervalo de precio 2",null,null,null,2]
[]
[null,"Adecuaciones y Accesorios"]
[null,"Descripción",null,null,null,null,null,"Cantidad",null,"Sí / No","Observaciones"]
[null,"Defensa",null,null,null,null,null,null,null,"NO"]
[null,"Pintura (100% del exterior de la Motocicleta, Cuatrimoto o Motocarro)",null,null,null,null,null,null,null,"NO"]
[null,"Adhesivos de emblemas (por metro cuadrado)",null,null,null,null,null,null,null,"NO"]
[null,"Sirena Compacta",null,null,null,null,null,null,null,"NO"]
[null,"Luces de Emergencia",null,null,null,null,null,null,null,"NO"]
[null,"Exploradoras",null,null,null,null,null,null,null,"NO"]
[null,"Casco abatible",null,null,null,null,null,null,null,"NO"]
[null,"Casco cerrado ",null,null,null,null,null,null,null,"NO"]
[null,"Impermeables",null,null,null,null,null,null,null,"NO"]
[null,"Chalecos reflectivos",null,null,null,null,null,null,null,"NO"]
[null,"Rodilleras, coderas y guantes",null,null,null,null,null,null,null,"NO"]
[null,"Maletero ",null,null,null,null,null,null,null,"NO"]
[null,"Chaqueta antifricción",null,null,null,null,null,null,null,"NO"]
[null,"Body armor",null,null,null,null,null,null,null,"NO"]
[null,"Maleteros Laterales",null,null,null,null,null,null,null,"NO"]
[null,"Parrilla",null,null,null,null,null,null,null,"NO"]
[]
[null,"Mantenimiento Preventivo"]
[null,"Descripción",null,null,null,null,null,null,null,null,null,null,null,"Sí / No"]
[null,"24 mil Km",null,null,null,null,null,null,null,null,null,null,null,"SI"]
[null,"36 mil Km",null,null,null,null,null,null,null,null,null,null,null,"NO"]
[null,"48 mil Km",null,null,null,null,null,null,null,null,null,null,null,"NO"]
[null,"60 mil Km",null,null,null,null,null,null,null,null,null,null,null,"NO"]
[]
[null,"Requerimientos de la Matricula"]
[null,"Requerimientos de la Matricula"]
[]
[null,"Lugar de Entrega"]
[null,"Ciudad de Entrega",null,null,null,null,null,null,null,null,null,null,null,"Unidades"]
[null,"Andes",null,null,null,null,null,null,null,null,null,null,null,2]
[null,"Si requiere agregue o elimine filas"]
[]
[null,"Incluye SOAT"]
[null,"Sí / No",null,null,null,null,null,null,"Vigencia"]
[null,"SI",null,null,null,null,null,null,"12 meses"]
[]
[null,"Gravámenes adicionales (estampillas)"]
[]
[null,"Si los hay, indique los gravámenes adicionales (estampilllas) a los que está sujeta la Orden de Compra. Son gravámens adiconales por ejemplo; estampillas y demás impuestos territoriales."]
[null,"Los impuestos como ICA y retención en la fuente NO son gravámenes adicionales."]
[]
[null,"No.","Descripción ",null,null,null,null,null,null,null,null,null,null," % Gravámen"]
[null,1,"Descripción ",null,null,null,null,null,null,null,null,null,null,0.02]
[]
[null,null,null,null,null,null,null,null,null,"Total Gravámenes adicionales",null,null,null,{"$f":"SUM(N71:O71)","v":0.02}]

{"sheet":"Cotizacion","index":2,"n_rows":25,"n_cols":19,"rows_kept":25,"cut":false,"hidden":false,"merged":[[0,1,1,14],[2,1,2,14],[4,1,4,14],[6,1,6,3],[6,4,6,9],[6,11,6,14],[4,15,4,18],[6,16,6,18],[18,15,18,18],[7,16,7,18],[8,16,8,18],[16,17,16,18],[14,15,14,18],[15,17,15,18],[18,1,18,14],[14,1,14,14],[16,4,16,7],[8,1,8,3],[8,4,8,9],[8,11,8,14],[10,1,10,3],[10,11,10,12],[10,13,10,14],[12,1,12,3],[10,4,10,9],[16,8,16,10],[12,4,12,9],[19,3,19,4],[24,1,24,2],[24,3,24,6],[24,7,24,10],[24,11,24,14],[23,1,23,2],[23,3,23,6],[23,7,23,10],[23,11,23,14]]}
[null,"Cotización"]
[]
[null,"Acuerdo Marco Motos"]
[]
[null,"Información de la Entidad Compradora",null,null,null,null,null,null,null,null,null,null,null,null,null,"Proveedor"]
[]
[null,"Nombre de la Entidad:",null,null,null,null,null,null,null,null,"NIT:",null,null,null,null,"Nombre Proveedor:","Suzuki Motor De Colombia S.A."]
[]
[null,"Dirección de la Entidad:",null,null,null,null,null,null,null,null,"Municipio:",null,null,null,null,"Nit Proveedor:"]
[]
[null,"Nombre del Comprador:",null,null,null,null,null,null,null,null,"Teléfono:"]
[]
[null,"Correo del comprador:"]
[]
[null,"Fechas estimadas",null,null,null,null,null,null,null,null,null,null,null,null,null,"Cotización"]
[null,null,null,null,null,null,null,null,null,null,null,null,null,null,null,"Cod Facecolda","Marca","Referencia"]
[null,null,null,null,"Fecha creación solicitud cotización:",null,null,null,"2018-09-17",null,null,null,null,null,null,{"$f":"VLOOKUP($R$17,[2]Consolidado!$C:$L,10,0)","v":8817145},{"$f":"VLOOKUP($R$17,[2]Consolidado!$C:$L,9,0)","v":"Suzuki"},"Suzuki GN 125 NOVA MT 125CC1"]
[]
[null," Artículos de Cotización",null,null,null,null,null,null,null,null,null,null,null,null,null,"Cotización"]
[]
[]
[]
[]
[null,"Segmento",null,{"$f":"IF(B25=\"\",\"No Aplica\",VLOOKUP(B25,Listas!$A$2:$B$18,2,0))","v":"No Aplica"},null,null,null,"Intervalo de precio",null,null,null,"Unidades",null,null,null,"valor unidad (Precio en el Catálogo incluido el descuento por volumen )","valor total","% descuento adicional","Total con Descuento"]
[null,null,null,null,null,null,null,null,null,null,null,null,null,null,null,{"$f":"VLOOKUP(SUBSTITUTE(SUBSTITUTE(SUBSTITUTE($B$25&$D$25&$H$25,\".\",\"\"),\"-\",\"\"),\" \",\"\")&$R$17&$Q$7,Consolidado!$A$2:$AU$100,IF(L25=1,18,IF(AND(L25>=2,L25<=10),20,IF(AND(L25>=11,L25<=20),22,IF(AND(L25>=21,L25<=30),24,IF(AND(L25>=31,L25<=40),26,28))))),0)","v":{"$error":"#N/A"}},{"$f":"L25*P25","v":{"$error":"#N/A"}},null,{"$f":"Q25*(1-R25)","v":{"$error":"#N/A"}}]

{"sheet":"ActFasecolda","index":3,"n_rows":2,"n_cols":4,"rows_kept":2,"cut":false,"hidden":true,"merged":[]}
["Directorio","C:\\Users\\laura.penuela\\Desktop\\Equipo Antiguo\\Escritorio\\Motocicletas\\Guia_Excel_268.xls"]
[null,null,null,1]

{"sheet":"FormatosIndividuales","index":4,"n_rows":14,"n_cols":13,"rows_kept":14,"cut":false,"hidden":true,"merged":[[11,11,11,12],[3,6,3,9],[1,1,1,4],[2,6,2,9],[1,6,1,9],[2,1,2,4],[1,11,1,12],[10,11,10,12]]}
[]
[null,"Valor de la Matricula",null,null,null,null,"Lugar de Entrega",null,null,null,null,"Cuadro Resumen"]
[null,null,null,null,null,null,"Valor Ciudad de Entrega",null,null,null,null,"Descripción","Valor"]
[null,null,null,null,null,null,null,null,null,null,null,"Valor Total Motocicletas, Cuatrimotos o Motocarros:",{"$f":"ROUND($R$25,0)","v":0}]
[null,null,null,null,null,null,null,null,null,null,null,"Valor Total Accesorios y Adecuaciones:",{"$f":"ROUND(SUM(M$29:M$44),0)","v":0}]
[null,null,null,null,null,null,"SOAT",null,null,null,null,"Valor Total Mantenimiento Preventivo:",{"$f":"ROUND(SUM(M$48:M$51),0)","v":0}]
[null,null,null,null,null,null,"Valor del SOAT",null,"$ Gravamen",null,null,"Valor Total Matricula:",{"$f":"ROUND($O$54,0)","v":0}]
[null,"valor unidad (Precio en el Catálogo incluido el descuento por volumen )","valor total","% descuento adicional","Total con Descuento",null,null,null,null,null,null,"Valor Total Soat:",{"$f":"ROUND($K$65,0)","v":0}]
[null,null,null,null,{"$f":"C9*(1-D9)","v":0},null,null,null,null,null,null,"Valor Gravamenes Adicionales:",{"$f":"ROUND($K$65,0)","v":0}]
[]
[null,null,null,null,null,null,null,null,null,null,null,"Descripción de la Moto"]
[]
[]
[null,null,null,null,null,null,null,null,null,null,null,"Total",{"$f":"ROUND(SUM(M4:M8),0)","v":0}]

{"sheet":"Listas","index":5,"n_rows":1038,"n_cols":9,"rows_kept":1038,"cut":false,"hidden":true,"merged":[]}
["segmento","TipCaracteristica","Proveedores","SISOAT","Campo2","Campo3","Vehiculos","CiudadesEntrega","Unidad"]
["Cuatrimotos","Cilindraje","Suzuki Motor De Colombia S.A.","12 meses"," 275cc - 324cc","Intervalo de precio 1","AKT AK 125 NKD FRENO DISCO MT 125CC1","Abejorral",1]
["Motocarro","Deposito de carga",null,"13 meses","124cc - 134cc","Intervalo de precio 2","Suzuki GN 125 NOVA MT 125CC1","Ábrego",2]
["Motocicleta Deportiva y Calle","Cilindraje",null,"14 meses","135cc - 165cc",null,"Yamaha XT 660 R MT 660CC1","Abriaquí",3]
["Motocicleta Doble Proposito Tipo Enduro","Cilindraje",null,"15 meses","166cc - 190cc ",null,null,"Acacías",4]
["Motocicleta Doble Proposito Tipo Turismo","Cilindraje",null,"16 meses","191 cc - 220cc",null,null,"Acandí",5]
["Motocicleta Electrica","Kilovatios",null,"17 meses","221cc - 274cc",null,null,"Acevedo",6]
["Motocicleta Moped","Cilindraje",null,"18 meses","325cc - 525cc",null,null,"Achí",7]
["Motocicleta Scooter","Cilindraje",null,"19 meses","90cc - 123cc",null,null,"Agrado",8]
[null,null,null,"20 meses",null,null,null,"Agua De Dios",9]
[null,null,null,"21 meses",null,null,null,"Aguachica",10]
[null,null,null,"22 meses",null,null,null,"Aguada",11]
[null,null,null,"23 meses",null,null,null,"Aguadas",12]
[null,null,null,"24 meses",null,null,null,"Aguazul",13]
[null,null,null,"25 meses",null,null,null,"Agustín Codazzi",14]
[null,null,null,"26 meses",null,null,null,"Aipe",15]
[null,null,null,"27 meses",null,null,null,"Albán",16]
[null,null,null,"28 meses",null,null,null,"Albania",17]
[null,null,null,"29 meses",null,null,null,"Alcalá",18]
[null,null,null,"30 meses",null,null,null,"Aldana",19]
[null,null,null,"31 meses",null,null,null,"Alejandría",20]
[null,null,null,"32 meses",null,null,null,"Algarrobo",21]
[null,null,null,"33 meses",null,null,null,"Algeciras",22]
[null,null,null,"34 meses",null,null,null,"Almaguer",23]
[null,null,null,"35 meses",null,null,null,"Almeida",24]
[null,null,null,"36 meses",null,null,null,"Alpujarra",25]
[null,null,null,"37 meses",null,null,null,"Altamira",26]
[null,null,null,"38 meses",null,null,null,"Alto Baudó",27]
[null,null,null,"39 meses",null,null,null,"Altos Del Rosario",28]
[null,null,null,"40 meses",null,null,null,"Alvarado",29]
[null,null,null,"41 meses",null,null,null,"Amagá",30]
[null,null,null,"42 meses",null,null,null,"Amalfi",31]
[null,null,null,"43 meses",null,null,null,"Ambalema",32]
[null,null,null,"44 meses",null,null,null,"Anapoima",33]
[null,null,null,"45 meses",null,null,null,"Ancuyá",34]
[null,null,null,"46 meses",null,null,null,"Andalucía",35]
[null,null,null,"47 meses",null,null,null,"Andes",36]
[null,null,null,"48 meses",null,null,null,"Angelópolis",37]
[null,null,null,"49 meses",null,null,null,"Angostura",38]
[null,null,null,"50 meses",null,null,null,"Anolaima",39]
[null,null,null,"51 meses",null,null,null,"Anorí",40]
[null,null,null,"52 meses",null,null,null,"Anserma",41]
[null,null,null,"53 meses",null,null,null,"Ansermanuevo",42]
[null,null,null,"54 meses",null,null,null,"Anzá",43]
[null,null,null,"55 meses",null,null,null,"Anzoátegui",44]
[null,null,null,"56 meses",null,null,null,"Apartadó",45]
[null,null,null,"57 meses",null,null,null,"Apía",46]
[null,null,null,"58 meses",null,null,null,"Apulo",47]
[null,null,null,"59 meses",null,null,null,"Aquitania",48]
[null,null,null,"60 meses",null,null,null,"Aracataca",49]
[null,null,null,"61 meses",null,null,null,"Aranzazu",50]
[null,null,null,"62 meses",null,null,null,"Aratoca",51]
[null,null,null,"63 meses",null,null,null,"Arauca",52]
[null,null,null,"64 meses",null,null,null,"Arauquita",53]
[null,null,null,"65 meses",null,null,null,"Arbeláez",54]
[null,null,null,"66 meses",null,null,null,"Arboleda",55]
[null,null,null,"67 meses",null,null,null,"Arboledas",56]
[null,null,null,"68 meses",null,null,null,"Arboletes",57]
[null,null,null,"69 meses",null,null,null,"Arcabuco",58]
[null,null,null,"70 meses",null,null,null,"Arenal",59]
[null,null,null,"71 meses",null,null,null,"Argelia",60]
[null,null,null,"72 meses",null,null,null,"Ariguaní",61]
[null,null,null,"73 meses",null,null,null,"Arjona",62]
[null,null,null,"74 meses",null,null,null,"Armenia",63]
[null,null,null,"75 meses",null,null,null,"Armero Guayabal",64]
[null,null,null,"76 meses",null,null,null,"Arroyohondo",65]
[null,null,null,"77 meses",null,null,null,"Astrea",66]
[null,null,null,"78 meses",null,null,null,"Ataco",67]
[null,null,null,"79 meses",null,null,null,"Atrato",68]
[null,null,null,"80 meses",null,null,null,"Ayapel",69]
[null,null,null,"81 meses",null,null,null,"Bagadó",70]
[null,null,null,"82 meses",null,null,null,"Bahía Solano",71]
[null,null,null,"83 meses",null,null,null,"Bajo Baudó",72]
[null,null,null,"84 meses",null,null,null,"Balboa",73]
[null,null,null,"85 meses",null,null,null,"Baranoa",74]
[null,null,null,"86 meses",null,null,null,"Baraya",75]
[null,null,null,"87 meses",null,null,null,"Barbacoas",76]
[null,null,null,"88 meses",null,null,null,"Barbosa",77]
[null,null,null,"89 meses",null,null,null,"Barichara",78]
[null,null,null,"90 meses",null,null,null,"Barranca De Upía",79]
[null,null,null,"91 meses",null,null,null,"Barrancabermeja",80]
[null,null,null,"92 meses",null,null,null,"Barrancas",81]
[null,null,null,"93 meses",null,null,null,"Barranco De Loba",82]
[null,null,null,"94 meses",null,null,null,"Barranco Minas",83]
[null,null,null,"95 meses",null,null,null,"Barranquilla",84]
[null,null,null,"96 meses",null,null,null,"Becerril",85]
[null,null,null,"97 meses",null,null,null,"Belalcázar",86]
[null,null,null,"98 meses",null,null,null,"Belén",87]
[null,null,null,"99 meses",null,null,null,"Belén De Los Andaquíes",88]
[null,null,null,"100 meses",null,null,null,"Belén De Umbría",89]
[null,null,null,null,null,null,null,"Bello",90]
[null,null,null,null,null,null,null,"Belmira",91]
[null,null,null,null,null,null,null,"Beltrán",92]
[null,null,null,null,null,null,null,"Berbeo",93]
[null,null,null,null,null,null,null,"Betania",94]
[null,null,null,null,null,null,null,"Betéitiva",95]
[null,null,null,null,null,null,null,"Betulia",96]
[null,null,null,null,null,null,null,"Bituima",97]
[null,null,null,null,null,null,null,"Boavita",98]
[null,null,null,null,null,null,null,"Bochalema",99]
[null,null,null,null,null,null,null,"Bogotá, D.C.",100]
[null,null,null,null,null,null,null,"Bojacá",101]
[null,null,null,null,null,null,null,"Bojayá",102]
[null,null,null,null,null,null,null,"Bolívar",103]
[null,null,null,null,null,null,null,"Bosconia",104]
[null,null,null,null,null,null,null,"Boyacá",105]
[null,null,null,null,null,null,null,"Briceño",106]
[null,null,null,null,null,null,null,"Bucaramanga",107]
[null,null,null,null,null,null,null,"Bucarasica",108]
[null,null,null,null,null,null,null,"Buenaventura",109]
[null,null,null,null,null,null,null,"Buenavista",110]
[null,null,null,null,null,null,null,"Buenos Aires",111]
[null,null,null,null,null,null,null,"Buesaco",112]
[null,null,null,null,null,null,null,"Bugalagrande",113]
[null,null,null,null,null,null,null,"Buriticá",114]
[null,null,null,null,null,null,null,"Busbanzá",115]
[null,null,null,null,null,null,null,"Cabrera",116]
[null,null,null,null,null,null,null,"Cabuyaro",117]
[null,null,null,null,null,null,null,"Cacahual",118]
[null,null,null,null,null,null,null,"Cáceres",119]
[null,null,null,null,null,null,null,"Cachipay",120]
[null,null,null,null,null,null,null,"Cáchira",121]
[null,null,null,null,null,null,null,"Cácota",122]
[null,null,null,null,null,null,null,"Caicedo",123]
[null,null,null,null,null,null,null,"Caicedonia",124]
[null,null,null,null,null,null,null,"Caimito",125]
[null,null,null,null,null,null,null,"Cajamarca",126]
[null,null,null,null,null,null,null,"Cajibío",127]
[null,null,null,null,null,null,null,"Cajicá",128]
[null,null,null,null,null,null,null,"Calamar",129]
[null,null,null,null,null,null,null,"Calarcá",130]
[null,null,null,null,null,null,null,"Caldas",131]
[null,null,null,null,null,null,null,"Caldono",132]
[null,null,null,null,null,null,null,"Cali",133]
[null,null,null,null,null,null,null,"California",134]
[null,null,null,null,null,null,null,"Calima",135]
[null,null,null,null,null,null,null,"Caloto",136]
[null,null,null,null,null,null,null,"Campamento",137]
[null,null,null,null,null,null,null,"Campo De La Cruz",138]
[null,null,null,null,null,null,null,"Campoalegre",139]
[null,null,null,null,null,null,null,"Campohermoso",140]
[null,null,null,null,null,null,null,"Canalete",141]
[null,null,null,null,null,null,null,"Cañasgordas",142]
[null,null,null,null,null,null,null,"Candelaria",143]
[null,null,null,null,null,null,null,"Cantagallo",144]
[null,null,null,null,null,null,null,"Caparrapí",145]
[null,null,null,null,null,null,null,"Capitanejo",146]
[null,null,null,null,null,null,null,"Cáqueza",147]
[null,null,null,null,null,null,null,"Caracolí",148]
[null,null,null,null,null,null,null,"Caramanta",149]
[null,null,null,null,null,null,null,"Carcasí",150]
[null,null,null,null,null,null,null,"Carepa",151]
[null,null,null,null,null,null,null,"Carmen De Apicalá",152]
[null,null,null,null,null,null,null,"Carmen De Carupa",153]
[null,null,null,null,null,null,null,"Carmen Del Darién",154]
[null,null,null,null,null,null,null,"Carolina",155]
[null,null,null,null,null,null,null,"Cartagena De Indias",156]
[null,null,null,null,null,null,null,"Cartagena Del Chairá",157]
[null,null,null,null,null,null,null,"Cartago",158]
[null,null,null,null,null,null,null,"Carurú",159]
[null,null,null,null,null,null,null,"Casabianca",160]
[null,null,null,null,null,null,null,"Castilla La Nueva",161]
[null,null,null,null,null,null,null,"Caucasia",162]
[null,null,null,null,null,null,null,"Cepitá",163]
[null,null,null,null,null,null,null,"Cereté",164]
[null,null,null,null,null,null,null,"Cerinza",165]
[null,null,null,null,null,null,null,"Cerrito",166]
[null,null,null,null,null,null,null,"Cerro De San Antonio",167]
[null,null,null,null,null,null,null,"Cértegui",168]
[null,null,null,null,null,null,null,"Chachagüí",169]
[null,null,null,null,null,null,null,"Chaguaní",170]
[null,null,null,null,null,null,null,"Chalán",171]
[null,null,null,null,null,null,null,"Chámeza",172]
[null,null,null,null,null,null,null,"Chaparral",173]
[null,null,null,null,null,null,null,"Charalá",174]
[null,null,null,null,null,null,null,"Charta",175]
[null,null,null,null,null,null,null,"Chía",176]
[null,null,null,null,null,null,null,"Chigorodó",177]
[null,null,null,null,null,null,null,"Chima",178]
[null,null,null,null,null,null,null,"Chimá",179]
[null,null,null,null,null,null,null,"Chimichagua",180]
[null,null,null,null,null,null,null,"Chinácota",181]
[null,null,null,null,null,null,null,"Chinavita",182]
[null,null,null,null,null,null,null,"Chinchiná",183]
[null,null,null,null,null,null,null,"Chinú",184]
[null,null,null,null,null,null,null,"Chipaque",185]
[null,null,null,null,null,null,null,"Chipatá",186]
[null,null,null,null,null,null,null,"Chiquinquirá",187]
[null,null,null,null,null,null,null,"Chíquiza",188]
[null,null,null,null,null,null,null,"Chiriguaná",189]
[null,null,null,null,null,null,null,"Chiscas",190]
[null,null,null,null,null,null,null,"Chita",191]
[null,null,null,null,null,null,null,"Chitagá",192]
[null,null,null,null,null,null,null,"Chitaraque",193]
[null,null,null,null,null,null,null,"Chivatá",194]
[null,null,null,null,null,null,null,"Chivolo",195]
[null,null,null,null,null,null,null,"Chivor",196]
[null,null,null,null,null,null,null,"Choachí",197]
[null,null,null,null,null,null,null,"Chocontá",198]
[null,null,null,null,null,null,null,"Cicuco",199]
[null,null,null,null,null,null,null,"Ciénaga",200]
[null,null,null,null,null,null,null,"Ciénaga De Oro",201]
[null,null,null,null,null,null,null,"Ciénega",202]
[null,null,null,null,null,null,null,"Cimitarra",203]
[null,null,null,null,null,null,null,"Circasia",204]
[null,null,null,null,null,null,null,"Cisneros",205]
[null,null,null,null,null,null,null,"Ciudad Bolívar",206]
[null,null,null,null,null,null,null,"Clemencia",207]
[null,null,null,null,null,null,null,"Cocorná",208]
[null,null,null,null,null,null,null,"Coello",209]
[null,null,null,null,null,null,null,"Cogua",210]
[null,null,null,null,null,null,null,"Colombia",211]
[null,null,null,null,null,null,null,"Colón",212]
[null,null,null,null,null,null,null,"Coloso",213]
[null,null,null,null,null,null,null,"Cómbita",214]
[null,null,null,null,null,null,null,"Concepción",215]
[null,null,null,null,null,null,null,"Concordia",216]
[null,null,null,null,null,null,null,"Condoto",217]
[null,null,null,null,null,null,null,"Confines",218]
[null,null,null,null,null,null,null,"Consacá",219]
[null,null,null,null,null,null,null,"Contadero",220]
[null,null,null,null,null,null,null,"Contratación",221]
[null,null,null,null,null,null,null,"Convención",222]
[null,null,null,null,null,null,null,"Copacabana",223]
[null,null,null,null,null,null,null,"Coper",224]
[null,null,null,null,null,null,null,"Córdoba",225]
[null,null,null,null,null,null,null,"Corinto",226]
[null,null,null,null,null,null,null,"Coromoro",227]
[null,null,null,null,null,null,null,"Corozal",228]
[null,null,null,null,null,null,null,"Corrales",229]
[null,null,null,null,null,null,null,"Cota",230]
[null,null,null,null,null,null,null,"Cotorra",231]
[null,null,null,null,null,null,null,"Covarachía",232]
[null,null,null,null,null,null,null,"Coveñas",233]
[null,null,null,null,null,null,null,"Coyaima",234]
[null,null,null,null,null,null,null,"Cravo Norte",235]
[null,null,null,null,null,null,null,"Cuaspúd",236]
[null,null,null,null,null,null,null,"Cubará",237]
[null,null,null,null,null,null,null,"Cucaita",238]
[null,null,null,null,null,null,null,"Cucunubá",239]
[null,null,null,null,null,null,null,"Cúcuta",240]
[null,null,null,null,null,null,null,"Cucutilla",241]
[null,null,null,null,null,null,null,"Cuítiva",242]
[null,null,null,null,null,null,null,"Cumaral",243]
[null,null,null,null,null,null,null,"Cumaribo",244]
[null,null,null,null,null,null,null,"Cumbal",245]
[null,null,null,null,null,null,null,"Cumbitara",246]
[null,null,null,null,null,null,null,"Cunday",247]
[null,null,null,null,null,null,null,"Curillo",248]
[null,null,null,null,null,null,null,"Curití",249]
[null,null,null,null,null,null,null,"Curumaní",250]
[null,null,null,null,null,null,null,"Dabeiba",251]
[null,null,null,null,null,null,null,"Dagua",252]
[null,null,null,null,null,null,null,"Dibulla",253]
[null,null,null,null,null,null,null,"Distracción",254]
[null,null,null,null,null,null,null,"Dolores",255]
[null,null,null,null,null,null,null,"Donmatías",256]
[null,null,null,null,null,null,null,"Dosquebradas",257]
[null,null,null,null,null,null,null,"Duitama",258]
[null,null,null,null,null,null,null,"Durania",259]
[null,null,null,null,null,null,null,"Ebéjico",260]
[null,null,null,null,null,null,null,"El Águila",261]
[null,null,null,null,null,null,null,"El Bagre",262]
[null,null,null,null,null,null,null,"El Banco",263]
[null,null,null,null,null,null,null,"El Cairo",264]
[null,null,null,null,null,null,null,"El Calvario",265]
[null,null,null,null,null,null,null,"El Cantón Del San Pablo",266]
[null,null,null,null,null,null,null,"El Carmen",267]
[null,null,null,null,null,null,null,"El Carmen De Atrato",268]
[null,null,null,null,null,null,null,"El Carmen De Bolívar",269]
[null,null,null,null,null,null,null,"El Carmen De Chucurí",270]
[null,null,null,null,null,null,null,"El Carmen De Viboral",271]
[null,null,null,null,null,null,null,"El Castillo",272]
[null,null,null,null,null,null,null,"El Cerrito",273]
[null,null,null,null,null,null,null,"El Charco",274]
[null,null,null,null,null,null,null,"El Cocuy",275]
[null,null,null,null,null,null,null,"El Colegio",276]
[null,null,null,null,null,null,null,"El Copey",277]
[null,null,null,null,null,null,null,"El Doncello",278]
[null,null,null,null,null,null,null,"El Dorado",279]
[null,null,null,null,null,null,null,"El Dovio",280]
[null,null,null,null,null,null,null,"El Encanto",281]
[null,null,null,null,null,null,null,"El Espino",282]
[null,null,null,null,null,null,null,"El Guacamayo",283]
[null,null,null,null,null,null,null,"El Guamo",284]
[null,null,null,null,null,null,null,"El Litoral Del San Juan",285]
[null,null,null,null,null,null,null,"El Molino",286]
[null,null,null,null,null,null,null,"El Paso",287]
[null,null,null,null,null,null,null,"El Paujíl",288]
[null,null,null,null,null,null,null,"El Peñol",289]
[null,null,null,null,null,null,null,"El Peñón",290]
[null,null,null,null,null,null,null,"El Piñón",291]
[null,null,null,null,null,null,null,"El Playón",292]
[null,null,null,null,null,null,null,"El Retén",293]
[null,null,null,null,null,null,null,"El Retorno",294]
[null,null,null,null,null,null,null,"El Roble",295]
[null,null,null,null,null,null,null,"El Rosal",296]
[null,null,null,null,null,null,null,"El Rosario",297]
[null,null,null,null,null,null,null,"El Santuario",298]
[null,null,null,null,null,null,null,"El Tablón De Gómez",299]
[null,null,null,null,null,null,null,"El Tambo",300]
[null,null,null,null,null,null,null,"El Tarra",301]
[null,null,null,null,null,null,null,"El Zulia",302]
[null,null,null,null,null,null,null,"Elías",303]
[null,null,null,null,null,null,null,"Encino",304]
[null,null,null,null,null,null,null,"Enciso",305]
[null,null,null,null,null,null,null,"Entrerríos",306]
[null,null,null,null,null,null,null,"Envigado",307]
[null,null,null,null,null,null,null,"Espinal",308]
[null,null,null,null,null,null,null,"Facatativá",309]
[null,null,null,null,null,null,null,"Falan",310]
[null,null,null,null,null,null,null,"Filadelfia",311]
[null,null,null,null,null,null,null,"Filandia",312]
[null,null,null,null,null,null,null,"Firavitoba",313]
[null,null,null,null,null,null,null,"Flandes",314]
[null,null,null,null,null,null,null,"Florencia",315]
[null,null,null,null,null,null,null,"Floresta",316]
[null,null,null,null,null,null,null,"Florián",317]
[null,null,null,null,null,null,null,"Florida",318]
[null,null,null,null,null,null,null,"Floridablanca",319]
[null,null,null,null,null,null,null,"Fómeque",320]
[null,null,null,null,null,null,null,"Fonseca",321]
[null,null,null,null,null,null,null,"Fortul",322]
[null,null,null,null,null,null,null,"Fosca",323]
[null,null,null,null,null,null,null,"Francisco Pizarro",324]
[null,null,null,null,null,null,null,"Fredonia",325]
[null,null,null,null,null,null,null,"Fresno",326]
[null,null,null,null,null,null,null,"Frontino",327]
[null,null,null,null,null,null,null,"Fuente De Oro",328]
[null,null,null,null,null,null,null,"Fundación",329]
[null,null,null,null,null,null,null,"Funes",330]
[null,null,null,null,null,null,null,"Funza",331]
[null,null,null,null,null,null,null,"Fúquene",332]
[null,null,null,null,null,null,null,"Fusagasugá",333]
[null,null,null,null,null,null,null,"Gachalá",334]
[null,null,null,null,null,null,null,"Gachancipá",335]
[null,null,null,null,null,null,null,"Gachantivá",336]
[null,null,null,null,null,null,null,"Gachetá",337]
[null,null,null,null,null,null,null,"Galán",338]
[null,null,null,null,null,null,null,"Galapa",339]
[null,null,null,null,null,null,null,"Galeras",340]
[null,null,null,null,null,null,null,"Gama",341]
[null,null,null,null,null,null,null,"Gamarra",342]
[null,null,null,null,null,null,null,"Gámbita",343]
[null,null,null,null,null,null,null,"Gámeza",344]
[null,null,null,null,null,null,null,"Garagoa",345]
[null,null,null,null,null,null,null,"Garzón",346]
[null,null,null,null,null,null,null,"Génova",347]
[null,null,null,null,null,null,null,"Gigante",348]
[null,null,null,null,null,null,null,"Ginebra",349]
[null,null,null,null,null,null,null,"Giraldo",350]
[null,null,null,null,null,null,null,"Girardot",351]
[null,null,null,null,null,null,null,"Girardota",352]
[null,null,null,null,null,null,null,"Girón",353]
[null,null,null,null,null,null,null,"Gómez Plata",354]
[null,null,null,null,null,null,null,"González",355]
[null,null,null,null,null,null,null,"Gramalote",356]
[null,null,null,null,null,null,null,"Granada",357]
[null,null,null,null,null,null,null,"Guaca",358]
[null,null,null,null,null,null,null,"Guacamayas",359]
[null,null,null,null,null,null,null,"Guacarí",360]
[null,null,null,null,null,null,null,"Guachené",361]
[null,null,null,null,null,null,null,"Guachetá",362]
[null,null,null,null,null,null,null,"Guachucal",363]
[null,null,null,null,null,null,null,"Guadalajara De Buga",364]
[null,null,null,null,null,null,null,"Guadalupe",365]
[null,null,null,null,null,null,null,"Guaduas",366]
[null,null,null,null,null,null,null,"Guaitarilla",367]
[null,null,null,null,null,null,null,"Gualmatán",368]
[null,null,null,null,null,null,null,"Guamal",369]
[null,null,null,null,null,null,null,"Guamo",370]
[null,null,null,null,null,null,null,"Guapí",371]
[null,null,null,null,null,null,null,"Guapotá",372]
[null,null,null,null,null,null,null,"Guaranda",373]
[null,null,null,null,null,null,null,"Guarne",374]
[null,null,null,null,null,null,null,"Guasca",375]
[null,null,null,null,null,null,null,"Guatapé",376]
[null,null,null,null,null,null,null,"Guataquí",377]
[null,null,null,null,null,null,null,"Guatavita",378]
[null,null,null,null,null,null,null,"Guateque",379]
[null,null,null,null,null,null,null,"Guática",380]
[null,null,null,null,null,null,null,"Guavatá",381]
[null,null,null,null,null,null,null,"Guayabal De Síquima",382]
[null,null,null,null,null,null,null,"Guayabetal",383]
[null,null,null,null,null,null,null,"Guayatá",384]
[null,null,null,null,null,null,null,"Güepsa",385]
[null,null,null,null,null,null,null,"Güicán",386]
[null,null,null,null,null,null,null,"Gutiérrez",387]
[null,null,null,null,null,null,null,"Hacarí",388]
[null,null,null,null,null,null,null,"Hatillo De Loba",389]
[null,null,null,null,null,null,null,"Hato",390]
[null,null,null,null,null,null,null,"Hato Corozal",391]
[null,null,null,null,null,null,null,"Hatonuevo",392]
[null,null,null,null,null,null,null,"Heliconia",393]
[null,null,null,null,null,null,null,"Herrán",394]
[null,null,null,null,null,null,null,"Herveo",395]
[null,null,null,null,null,null,null,"Hispania",396]
[null,null,null,null,null,null,null,"Hobo",397]
[null,null,null,null,null,null,null,"Honda",398]
[null,null,null,null,null,null,null,"Ibagué",399]
[null,null,null,null,null,null,null,"Icononzo",400]
[null,null,null,null,null,null,null,"Iles",401]
[null,null,null,null,null,null,null,"Imués",402]
[null,null,null,null,null,null,null,"Inírida",403]
[null,null,null,null,null,null,null,"Inzá",404]
[null,null,null,null,null,null,null,"Ipiales",405]
[null,null,null,null,null,null,null,"Íquira",406]
[null,null,null,null,null,null,null,"Isnos",407]
[null,null,null,null,null,null,null,"Istmina",408]
[null,null,null,null,null,null,null,"Itagüí",409]
[null,null,null,null,null,null,null,"Ituango",410]
[null,null,null,null,null,null,null,"Iza",411]
[null,null,null,null,null,null,null,"Jambaló",412]
[null,null,null,null,null,null,null,"Jamundí",413]
[null,null,null,null,null,null,null,"Jardín",414]
[null,null,null,null,null,null,null,"Jenesano",415]
[null,null,null,null,null,null,null,"Jericó",416]
[null,null,null,null,null,null,null,"Jerusalén",417]
[null,null,null,null,null,null,null,"Jesús María",418]
[null,null,null,null,null,null,null,"Jordán",419]
[null,null,null,null,null,null,null,"Juan De Acosta",420]
[null,null,null,null,null,null,null,"Junín",421]
[null,null,null,null,null,null,null,"Juradó",422]
[null,null,null,null,null,null,null,"La Apartada",423]
[null,null,null,null,null,null,null,"La Argentina",424]
[null,null,null,null,null,null,null,"La Belleza",425]
[null,null,null,null,null,null,null,"La Calera",426]
[null,null,null,null,null,null,null,"La Capilla",427]
[null,null,null,null,null,null,null,"La Ceja",428]
[null,null,null,null,null,null,null,"La Celia",429]
[null,null,null,null,null,null,null,"La Chorrera",430]
[null,null,null,null,null,null,null,"La Cruz",431]
[null,null,null,null,null,null,null,"La Cumbre",432]
[null,null,null,null,null,null,null,"La Dorada",433]
[null,null,null,null,null,null,null,"La Esperanza",434]
[null,null,null,null,null,null,null,"La Estrella",435]
[null,null,null,null,null,null,null,"La Florida",436]
[null,null,null,null,null,null,null,"La Gloria",437]
[null,null,null,null,null,null,null,"La Guadalupe",438]
[null,null,null,null,null,null,null,"La Jagua De Ibirico",439]
[null,null,null,null,null,null,null,"La Jagua Del Pilar",440]
[null,null,null,null,null,null,null,"La Llanada",441]
[null,null,null,null,null,null,null,"La Macarena",442]
[null,null,null,null,null,null,null,"La Merced",443]
[null,null,null,null,null,null,null,"La Mesa",444]
[null,null,null,null,null,null,null,"La Montañita",445]
[null,null,null,null,null,null,null,"La Palma",446]
[null,null,null,null,null,null,null,"La Paz",447]
[null,null,null,null,null,null,null,"La Pedrera",448]
[null,null,null,null,null,null,null,"La Peña",449]
[null,null,null,null,null,null,null,"La Pintada",450]
[null,null,null,null,null,null,null,"La Plata",451]
[null,null,null,null,null,null,null,"La Playa",452]
[null,null,null,null,null,null,null,"La Primavera",453]
[null,null,null,null,null,null,null,"La Salina",454]
[null,null,null,null,null,null,null,"La Sierra",455]
[null,null,null,null,null,null,null,"La Tebaida",456]
[null,null,null,null,null,null,null,"La Tola",457]
[null,null,null,null,null,null,null,"La Unión",458]
[null,null,null,null,null,null,null,"La Uvita",459]
[null,null,null,null,null,null,null,"La Vega",460]
[null,null,null,null,null,null,null,"La Victoria",461]
[null,null,null,null,null,null,null,"La Virginia",462]
[null,null,null,null,null,null,null,"Labateca",463]
[null,null,null,null,null,null,null,"Labranzagrande",464]
[null,null,null,null,null,null,null,"Landázuri",465]
[null,null,null,null,null,null,null,"Lebrija",466]
[null,null,null,null,null,null,null,"Leiva",467]
[null,null,null,null,null,null,null,"Lejanías",468]
[null,null,null,null,null,null,null,"Lenguazaque",469]
[null,null,null,null,null,null,null,"Lérida",470]
[null,null,null,null,null,null,null,"Leticia",471]
[null,null,null,null,null,null,null,"Líbano",472]
[null,null,null,null,null,null,null,"Liborina",473]
[null,null,null,null,null,null,null,"Linares",474]
[null,null,null,null,null,null,null,"Lloró",475]
[null,null,null,null,null,null,null,"López De Micay",476]
[null,null,null,null,null,null,null,"Lorica",477]
[null,null,null,null,null,null,null,"Los Andes",478]
[null,null,null,null,null,null,null,"Los Córdobas",479]
[null,null,null,null,null,null,null,"Los Palmitos",480]
[null,null,null,null,null,null,null,"Los Patios",481]
[null,null,null,null,null,null,null,"Los Santos",482]
[null,null,null,null,null,null,null,"Lourdes",483]
[null,null,null,null,null,null,null,"Luruaco",484]
[null,null,null,null,null,null,null,"Macanal",485]
[null,null,null,null,null,null,null,"Macaravita",486]
[null,null,null,null,null,null,null,"Maceo",487]
[null,null,null,null,null,null,null,"Machetá",488]
[null,null,null,null,null,null,null,"Madrid",489]
[null,null,null,null,null,null,null,"Magangué",490]
[null,null,null,null,null,null,null,"Magüí",491]
[null,null,null,null,null,null,null,"Mahates",492]
[null,null,null,null,null,null,null,"Maicao",493]
[null,null,null,null,null,null,null,"Majagual",494]
[null,null,null,null,null,null,null,"Málaga",495]
[null,null,null,null,null,null,null,"Malambo",496]
[null,null,null,null,null,null,null,"Mallama",497]
[null,null,null,null,null,null,null,"Manatí",498]
[null,null,null,null,null,null,null,"Manaure",499]
[null,null,null,null,null,null,null,"Manaure Balcón Del Cesar",500]
[null,null,null,null,null,null,null,"Maní",501]
[null,null,null,null,null,null,null,"Manizales",502]
[null,null,null,null,null,null,null,"Manta",503]
[null,null,null,null,null,null,null,"Manzanares",504]
[null,null,null,null,null,null,null,"Mapiripán",505]
[null,null,null,null,null,null,null,"Mapiripana",506]
[null,null,null,null,null,null,null,"Margarita",507]
[null,null,null,null,null,null,null,"María La Baja",508]
[null,null,null,null,null,null,null,"Marinilla",509]
[null,null,null,null,null,null,null,"Maripí",510]
[null,null,null,null,null,null,null,"Marmato",511]
[null,null,null,null,null,null,null,"Marquetalia",512]
[null,null,null,null,null,null,null,"Marsella",513]
[null,null,null,null,null,null,null,"Marulanda",514]
[null,null,null,null,null,null,null,"Matanza",515]
[null,null,null,null,null,null,null,"Medellín",516]
[null,null,null,null,null,null,null,"Medina",517]
[null,null,null,null,null,null,null,"Medio Atrato",518]
[null,null,null,null,null,null,null,"Medio Baudó",519]
[null,null,null,null,null,null,null,"Medio San Juan",520]
[null,null,null,null,null,null,null,"Melgar",521]
[null,null,null,null,null,null,null,"Mercaderes",522]
[null,null,null,null,null,null,null,"Mesetas",523]
[null,null,null,null,null,null,null,"Milán",524]
[null,null,null,null,null,null,null,"Miraflores",525]
[null,null,null,null,null,null,null,"Miranda",526]
[null,null,null,null,null,null,null,"Mirití - Paraná",527]
[null,null,null,null,null,null,null,"Mistrató",528]
[null,null,null,null,null,null,null,"Mitú",529]
[null,null,null,null,null,null,null,"Mocoa",530]
[null,null,null,null,null,null,null,"Mogotes",531]
[null,null,null,null,null,null,null,"Molagavita",532]
[null,null,null,null,null,null,null,"Momil",533]
[null,null,null,null,null,null,null,"Mompós",534]
[null,null,null,null,null,null,null,"Mongua",535]
[null,null,null,null,null,null,null,"Monguí",536]
[null,null,null,null,null,null,null,"Moniquirá",537]
[null,null,null,null,null,null,null,"Moñitos",538]
[null,null,null,null,null,null,null,"Montebello",539]
[null,null,null,null,null,null,null,"Montecristo",540]
[null,null,null,null,null,null,null,"Montelíbano",541]
[null,null,null,null,null,null,null,"Montenegro",542]
[null,null,null,null,null,null,null,"Montería",543]
[null,null,null,null,null,null,null,"Monterrey",544]
[null,null,null,null,null,null,null,"Morales",545]
[null,null,null,null,null,null,null,"Morelia",546]
[null,null,null,null,null,null,null,"Morichal",547]
[null,null,null,null,null,null,null,"Morroa",548]
[null,null,null,null,null,null,null,"Mosquera",549]
[null,null,null,null,null,null,null,"Motavita",550]
[null,null,null,null,null,null,null,"Murillo",551]
[null,null,null,null,null,null,null,"Murindó",552]
[null,null,null,null,null,null,null,"Mutatá",553]
[null,null,null,null,null,null,null,"Mutiscua",554]
[null,null,null,null,null,null,null,"Muzo",555]
[null,null,null,null,null,null,null,"Nariño",556]
[null,null,null,null,null,null,null,"Nátaga",557]
[null,null,null,null,null,null,null,"Natagaima",558]
[null,null,null,null,null,null,null,"Nechí",559]
[null,null,null,null,null,null,null,"Necoclí",560]
[null,null,null,null,null,null,null,"Neira",561]
[null,null,null,null,null,null,null,"Neiva",562]
[null,null,null,null,null,null,null,"Nemocón",563]
[null,null,null,null,null,null,null,"Nilo",564]
[null,null,null,null,null,null,null,"Nimaima",565]
[null,null,null,null,null,null,null,"Nobsa",566]
[null,null,null,null,null,null,null,"Nocaima",567]
[null,null,null,null,null,null,null,"Norcasia",568]
[null,null,null,null,null,null,null,"Norosí",569]
[null,null,null,null,null,null,null,"Nóvita",570]
[null,null,null,null,null,null,null,"Nueva Granada",571]
[null,null,null,null,null,null,null,"Nuevo Colón",572]
[null,null,null,null,null,null,null,"Nunchía",573]
[null,null,null,null,null,null,null,"Nuquí",574]
[null,null,null,null,null,null,null,"Obando",575]
[null,null,null,null,null,null,null,"Ocamonte",576]
[null,null,null,null,null,null,null,"Ocaña",577]
[null,null,null,null,null,null,null,"Oiba",578]
[null,null,null,null,null,null,null,"Oicatá",579]
[null,null,null,null,null,null,null,"Olaya",580]
[null,null,null,null,null,null,null,"Olaya Herrera",581]
[null,null,null,null,null,null,null,"Onzaga",582]
[null,null,null,null,null,null,null,"Oporapa",583]
[null,null,null,null,null,null,null,"Orito",584]
[null,null,null,null,null,null,null,"Orocué",585]
[null,null,null,null,null,null,null,"Ortega",586]
[null,null,null,null,null,null,null,"Ospina",587]
[null,null,null,null,null,null,null,"Otanche",588]
[null,null,null,null,null,null,null,"Ovejas",589]
[null,null,null,null,null,null,null,"Pachavita",590]
[null,null,null,null,null,null,null,"Pacho",591]
[null,null,null,null,null,null,null,"Pacoa",592]
[null,null,null,null,null,null,null,"Pácora",593]
[null,null,null,null,null,null,null,"Padilla",594]
[null,null,null,null,null,null,null,"Páez",595]
[null,null,null,null,null,null,null,"Paicol",596]
[null,null,null,null,null,null,null,"Pailitas",597]
[null,null,null,null,null,null,null,"Paime",598]
[null,null,null,null,null,null,null,"Paipa",599]
[null,null,null,null,null,null,null,"Pajarito",600]
[null,null,null,null,null,null,null,"Palermo",601]
[null,null,null,null,null,null,null,"Palestina",602]
[null,null,null,null,null,null,null,"Palmar",603]
[null,null,null,null,null,null,null,"Palmar De Varela",604]
[null,null,null,null,null,null,null,"Palmas Del Socorro",605]
[null,null,null,null,null,null,null,"Palmira",606]
[null,null,null,null,null,null,null,"Palmito",607]
[null,null,null,null,null,null,null,"Palocabildo",608]
[null,null,null,null,null,null,null,"Pamplona",609]
[null,null,null,null,null,null,null,"Pamplonita",610]
[null,null,null,null,null,null,null,"Pana Pana",611]
[null,null,null,null,null,null,null,"Pandi",612]
[null,null,null,null,null,null,null,"Panqueba",613]
[null,null,null,null,null,null,null,"Papunaua",614]
[null,null,null,null,null,null,null,"Páramo",615]
[null,null,null,null,null,null,null,"Paratebueno",616]
[null,null,null,null,null,null,null,"Pasca",617]
[null,null,null,null,null,null,null,"Pasto",618]
[null,null,null,null,null,null,null,"Patía",619]
[null,null,null,null,null,null,null,"Pauna",620]
[null,null,null,null,null,null,null,"Paya",621]
[null,null,null,null,null,null,null,"Paz De Ariporo",622]
[null,null,null,null,null,null,null,"Paz De Río",623]
[null,null,null,null,null,null,null,"Pedraza",624]
[null,null,null,null,null,null,null,"Pelaya",625]
[null,null,null,null,null,null,null,"Peñol",626]
[null,null,null,null,null,null,null,"Pensilvania",627]
[null,null,null,null,null,null,null,"Peque",628]
[null,null,null,null,null,null,null,"Pereira",629]
[null,null,null,null,null,null,null,"Pesca",630]
[null,null,null,null,null,null,null,"Piamonte",631]
[null,null,null,null,null,null,null,"Piedecuesta",632]
[null,null,null,null,null,null,null,"Piedras",633]
[null,null,null,null,null,null,null,"Piendamó",634]
[null,null,null,null,null,null,null,"Pijao",635]
[null,null,null,null,null,null,null,"Pijiño Del Carmen",636]
[null,null,null,null,null,null,null,"Pinchote",637]
[null,null,null,null,null,null,null,"Pinillos",638]
[null,null,null,null,null,null,null,"Piojó",639]
[null,null,null,null,null,null,null,"Pisba",640]
[null,null,null,null,null,null,null,"Pital",641]
[null,null,null,null,null,null,null,"Pitalito",642]
[null,null,null,null,null,null,null,"Pivijay",643]
[null,null,null,null,null,null,null,"Planadas",644]
[null,null,null,null,null,null,null,"Planeta Rica",645]
[null,null,null,null,null,null,null,"Plato",646]
[null,null,null,null,null,null,null,"Policarpa",647]
[null,null,null,null,null,null,null,"Polonuevo",648]
[null,null,null,null,null,null,null,"Ponedera",649]
[null,null,null,null,null,null,null,"Popayán",650]
[null,null,null,null,null,null,null,"Pore",651]
[null,null,null,null,null,null,null,"Potosí",652]
[null,null,null,null,null,null,null,"Pradera",653]
[null,null,null,null,null,null,null,"Prado",654]
[null,null,null,null,null,null,null,"Providencia",655]
[null,null,null,null,null,null,null,"Pueblo Bello",656]
[null,null,null,null,null,null,null,"Pueblo Nuevo",657]
[null,null,null,null,null,null,null,"Pueblo Rico",658]
[null,null,null,null,null,null,null,"Pueblorrico",659]
[null,null,null,null,null,null,null,"Puebloviejo",660]
[null,null,null,null,null,null,null,"Puente Nacional",661]
[null,null,null,null,null,null,null,"Puerres",662]
[null,null,null,null,null,null,null,"Puerto Alegría",663]
[null,null,null,null,null,null,null,"Puerto Arica",664]
[null,null,null,null,null,null,null,"Puerto Asís",665]
[null,null,null,null,null,null,null,"Puerto Berrío",666]
[null,null,null,null,null,null,null,"Puerto Boyacá",667]
[null,null,null,null,null,null,null,"Puerto Caicedo",668]
[null,null,null,null,null,null,null,"Puerto Carreño",669]
[null,null,null,null,null,null,null,"Puerto Colombia",670]
[null,null,null,null,null,null,null,"Puerto Concordia",671]
[null,null,null,null,null,null,null,"Puerto Escondido",672]
[null,null,null,null,null,null,null,"Puerto Gaitán",673]
[null,null,null,null,null,null,null,"Puerto Guzmán",674]
[null,null,null,null,null,null,null,"Puerto Leguízamo",675]
[null,null,null,null,null,null,null,"Puerto Libertador",676]
[null,null,null,null,null,null,null,"Puerto Lleras",677]
[null,null,null,null,null,null,null,"Puerto López",678]
[null,null,null,null,null,null,null,"Puerto Nare",679]
[null,null,null,null,null,null,null,"Puerto Nariño",680]
[null,null,null,null,null,null,null,"Puerto Parra",681]
[null,null,null,null,null,null,null,"Puerto Rico",682]
[null,null,null,null,null,null,null,"Puerto Rondón",683]
[null,null,null,null,null,null,null,"Puerto Salgar",684]
[null,null,null,null,null,null,null,"Puerto Santander",685]
[null,null,null,null,null,null,null,"Puerto Tejada",686]
[null,null,null,null,null,null,null,"Puerto Triunfo",687]
[null,null,null,null,null,null,null,"Puerto Wilches",688]
[null,null,null,null,null,null,null,"Pulí",689]
[null,null,null,null,null,null,null,"Pupiales",690]
[null,null,null,null,null,null,null,"Puracé",691]
[null,null,null,null,null,null,null,"Purificación",692]
[null,null,null,null,null,null,null,"Purísima De La Concepción",693]
[null,null,null,null,null,null,null,"Quebradanegra",694]
[null,null,null,null,null,null,null,"Quetame",695]
[null,null,null,null,null,null,null,"Quibdó",696]
[null,null,null,null,null,null,null,"Quimbaya",697]
[null,null,null,null,null,null,null,"Quinchía",698]
[null,null,null,null,null,null,null,"Quípama",699]
[null,null,null,null,null,null,null,"Quipile",700]
[null,null,null,null,null,null,null,"Ragonvalia",701]
[null,null,null,null,null,null,null,"Ramiriquí",702]
[null,null,null,null,null,null,null,"Ráquira",703]
[null,null,null,null,null,null,null,"Recetor",704]
[null,null,null,null,null,null,null,"Regidor",705]
[null,null,null,null,null,null,null,"Remedios",706]
[null,null,null,null,null,null,null,"Remolino",707]
[null,null,null,null,null,null,null,"Repelón",708]
[null,null,null,null,null,null,null,"Restrepo",709]
[null,null,null,null,null,null,null,"Retiro",710]
[null,null,null,null,null,null,null,"Ricaurte",711]
[null,null,null,null,null,null,null,"Río De Oro",712]
[null,null,null,null,null,null,null,"Río Iró",713]
[null,null,null,null,null,null,null,"Río Quito",714]
[null,null,null,null,null,null,null,"Río Viejo",715]
[null,null,null,null,null,null,null,"Rioblanco",716]
[null,null,null,null,null,null,null,"Riofrío",717]
[null,null,null,null,null,null,null,"Riohacha",718]
[null,null,null,null,null,null,null,"Rionegro",719]
[null,null,null,null,null,null,null,"Riosucio",720]
[null,null,null,null,null,null,null,"Risaralda",721]
[null,null,null,null,null,null,null,"Rivera",722]
[null,null,null,null,null,null,null,"Roberto Payán",723]
[null,null,null,null,null,null,null,"Roldanillo",724]
[null,null,null,null,null,null,null,"Roncesvalles",725]
[null,null,null,null,null,null,null,"Rondón",726]
[null,null,null,null,null,null,null,"Rosas",727]
[null,null,null,null,null,null,null,"Rovira",728]
[null,null,null,null,null,null,null,"Sabana De Torres",729]
[null,null,null,null,null,null,null,"Sabanagrande",730]
[null,null,null,null,null,null,null,"Sabanalarga",731]
[null,null,null,null,null,null,null,"Sabanas De San Ángel",732]
[null,null,null,null,null,null,null,"Sabaneta",733]
[null,null,null,null,null,null,null,"Saboyá",734]
[null,null,null,null,null,null,null,"Sácama",735]
[null,null,null,null,null,null,null,"Sáchica",736]
[null,null,null,null,null,null,null,"Sahagún",737]
[null,null,null,null,null,null,null,"Saladoblanco",738]
[null,null,null,null,null,null,null,"Salamina",739]
[null,null,null,null,null,null,null,"Salazar",740]
[null,null,null,null,null,null,null,"Saldaña",741]
[null,null,null,null,null,null,null,"Salento",742]
[null,null,null,null,null,null,null,"Salgar",743]
[null,null,null,null,null,null,null,"Samacá",744]
[null,null,null,null,null,null,null,"Samaná",745]
[null,null,null,null,null,null,null,"Samaniego",746]
[null,null,null,null,null,null,null,"Sampués",747]
[null,null,null,null,null,null,null,"San Agustín",748]
[null,null,null,null,null,null,null,"San Alberto",749]
[null,null,null,null,null,null,null,"San Andrés",750]
[null,null,null,null,null,null,null,"San Andrés De Cuerquía",751]
[null,null,null,null,null,null,null,"San Andrés De Sotavento",752]
[null,null,null,null,null,null,null,"San Andrés De Tumaco",753]
[null,null,null,null,null,null,null,"San Antero",754]
[null,null,null,null,null,null,null,"San Antonio",755]
[null,null,null,null,null,null,null,"San Antonio Del Tequendama",756]
[null,null,null,null,null,null,null,"San Benito",757]
[null,null,null,null,null,null,null,"San Benito Abad",758]
[null,null,null,null,null,null,null,"San Bernardo",759]
[null,null,null,null,null,null,null,"San Bernardo Del Viento",760]
[null,null,null,null,null,null,null,"San Calixto",761]
[null,null,null,null,null,null,null,"San Carlos",762]
[null,null,null,null,null,null,null,"San Carlos De Guaroa",763]
[null,null,null,null,null,null,null,"San Cayetano",764]
[null,null,null,null,null,null,null,"San Cristóbal",765]
[null,null,null,null,null,null,null,"San Diego",766]
[null,null,null,null,null,null,null,"San Eduardo",767]
[null,null,null,null,null,null,null,"San Estanislao",768]
[null,null,null,null,null,null,null,"San Felipe",769]
[null,null,null,null,null,null,null,"San Fernando",770]
[null,null,null,null,null,null,null,"San Francisco",771]
[null,null,null,null,null,null,null,"San Gil",772]
[null,null,null,null,null,null,null,"San Jacinto",773]
[null,null,null,null,null,null,null,"San Jacinto Del Cauca",774]
[null,null,null,null,null,null,null,"San Jerónimo",775]
[null,null,null,null,null,null,null,"San Joaquín",776]
[null,null,null,null,null,null,null,"San José",777]
[null,null,null,null,null,null,null,"San José De La Montaña",778]
[null,null,null,null,null,null,null,"San José De Miranda",779]
[null,null,null,null,null,null,null,"San José De Pare",780]
[null,null,null,null,null,null,null,"San José De Uré",781]
[null,null,null,null,null,null,null,"San José Del Fragua",782]
[null,null,null,null,null,null,null,"San José Del Guaviare",783]
[null,null,null,null,null,null,null,"San José Del Palmar",784]
[null,null,null,null,null,null,null,"San Juan De Arama",785]
[null,null,null,null,null,null,null,"San Juan De Betulia",786]
[null,null,null,null,null,null,null,"San Juan De Rioseco",787]
[null,null,null,null,null,null,null,"San Juan De Urabá",788]
[null,null,null,null,null,null,null,"San Juan Del Cesar",789]
[null,null,null,null,null,null,null,"San Juan Nepomuceno",790]
[null,null,null,null,null,null,null,"San Juanito",791]
[null,null,null,null,null,null,null,"San Lorenzo",792]
[null,null,null,null,null,null,null,"San Luis",793]
[null,null,null,null,null,null,null,"San Luis De Cubarral",794]
[null,null,null,null,null,null,null,"San Luis De Gaceno",795]
[null,null,null,null,null,null,null,"San Luis De Palenque",796]
[null,null,null,null,null,null,null,"San Luis De Sincé",797]
[null,null,null,null,null,null,null,"San Marcos",798]
[null,null,null,null,null,null,null,"San Martín",799]
[null,null,null,null,null,null,null,"San Martín De Loba",800]
[null,null,null,null,null,null,null,"San Mateo",801]
[null,null,null,null,null,null,null,"San Miguel",802]
[null,null,null,null,null,null,null,"San Miguel De Sema",803]
[null,null,null,null,null,null,null,"San Onofre",804]
[null,null,null,null,null,null,null,"San Pablo",805]
[null,null,null,null,null,null,null,"San Pablo De Borbur",806]
[null,null,null,null,null,null,null,"San Pedro",807]
[null,null,null,null,null,null,null,"San Pedro De Cartago",808]
[null,null,null,null,null,null,null,"San Pedro De Los Milagros",809]
[null,null,null,null,null,null,null,"San Pedro De Urabá",810]
[null,null,null,null,null,null,null,"San Pelayo",811]
[null,null,null,null,null,null,null,"San Rafael",812]
[null,null,null,null,null,null,null,"San Roque",813]
[null,null,null,null,null,null,null,"San Sebastián",814]
[null,null,null,null,null,null,null,"San Sebastián De Buenavista",815]
[null,null,null,null,null,null,null,"San Sebastián De Mariquita",816]
[null,null,null,null,null,null,null,"San Vicente De Chucurí",817]
[null,null,null,null,null,null,null,"San Vicente Del Caguán",818]
[null,null,null,null,null,null,null,"San Vicente Ferrer",819]
[null,null,null,null,null,null,null,"San Zenón",820]
[null,null,null,null,null,null,null,"Sandoná",821]
[null,null,null,null,null,null,null,"Santa Ana",822]
[null,null,null,null,null,null,null,"Santa Bárbara",823]
[null,null,null,null,null,null,null,"Santa Bárbara De Pinto",824]
[null,null,null,null,null,null,null,"Santa Catalina",825]
[null,null,null,null,null,null,null,"Santa Fé De Antioquia",826]
[null,null,null,null,null,null,null,"Santa Helena Del Opón",827]
[null,null,null,null,null,null,null,"Santa Isabel",828]
[null,null,null,null,null,null,null,"Santa Lucía",829]
[null,null,null,null,null,null,null,"Santa María",830]
[null,null,null,null,null,null,null,"Santa Marta",831]
[null,null,null,null,null,null,null,"Santa Rosa",832]
[null,null,null,null,null,null,null,"Santa Rosa De Cabal",833]
[null,null,null,null,null,null,null,"Santa Rosa De Osos",834]
[null,null,null,null,null,null,null,"Santa Rosa De Viterbo",835]
[null,null,null,null,null,null,null,"Santa Rosa Del Sur",836]
[null,null,null,null,null,null,null,"Santa Rosalía",837]
[null,null,null,null,null,null,null,"Santa Sofía",838]
[null,null,null,null,null,null,null,"Santacruz",839]
[null,null,null,null,null,null,null,"Santana",840]
[null,null,null,null,null,null,null,"Santander De Quilichao",841]
[null,null,null,null,null,null,null,"Santiago",842]
[null,null,null,null,null,null,null,"Santiago De Tolú",843]
[null,null,null,null,null,null,null,"Santo Domingo",844]
[null,null,null,null,null,null,null,"Santo Tomás",845]
[null,null,null,null,null,null,null,"Santuario",846]
[null,null,null,null,null,null,null,"Sapuyes",847]
[null,null,null,null,null,null,null,"Saravena",848]
[null,null,null,null,null,null,null,"Sardinata",849]
[null,null,null,null,null,null,null,"Sasaima",850]
[null,null,null,null,null,null,null,"Sativanorte",851]
[null,null,null,null,null,null,null,"Sativasur",852]
[null,null,null,null,null,null,null,"Segovia",853]
[null,null,null,null,null,null,null,"Sesquilé",854]
[null,null,null,null,null,null,null,"Sevilla",855]
[null,null,null,null,null,null,null,"Siachoque",856]
[null,null,null,null,null,null,null,"Sibaté",857]
[null,null,null,null,null,null,null,"Sibundoy",858]
[null,null,null,null,null,null,null,"Silos",859]
[null,null,null,null,null,null,null,"Silvania",860]
[null,null,null,null,null,null,null,"Silvia",861]
[null,null,null,null,null,null,null,"Simacota",862]
[null,null,null,null,null,null,null,"Simijaca",863]
[null,null,null,null,null,null,null,"Simití",864]
[null,null,null,null,null,null,null,"Sincelejo",865]
[null,null,null,null,null,null,null,"Sipí",866]
[null,null,null,null,null,null,null,"Sitionuevo",867]
[null,null,null,null,null,null,null,"Soacha",868]
[null,null,null,null,null,null,null,"Soatá",869]
[null,null,null,null,null,null,null,"Socha",870]
[null,null,null,null,null,null,null,"Socorro",871]
[null,null,null,null,null,null,null,"Socotá",872]
[null,null,null,null,null,null,null,"Sogamoso",873]
[null,null,null,null,null,null,null,"Solano",874]
[null,null,null,null,null,null,null,"Soledad",875]
[null,null,null,null,null,null,null,"Solita",876]
[null,null,null,null,null,null,null,"Somondoco",877]
[null,null,null,null,null,null,null,"Sonsón",878]
[null,null,null,null,null,null,null,"Sopetrán",879]
[null,null,null,null,null,null,null,"Soplaviento",880]
[null,null,null,null,null,null,null,"Sopó",881]
[null,null,null,null,null,null,null,"Sora",882]
[null,null,null,null,null,null,null,"Soracá",883]
[null,null,null,null,null,null,null,"Sotaquirá",884]
[null,null,null,null,null,null,null,"Sotara",885]
[null,null,null,null,null,null,null,"Suaita",886]
[null,null,null,null,null,null,null,"Suan",887]
[null,null,null,null,null,null,null,"Suárez",888]
[null,null,null,null,null,null,null,"Suaza",889]
[null,null,null,null,null,null,null,"Subachoque",890]
[null,null,null,null,null,null,null,"Sucre",891]
[null,null,null,null,null,null,null,"Suesca",892]
[null,null,null,null,null,null,null,"Supatá",893]
[null,null,null,null,null,null,null,"Supía",894]
[null,null,null,null,null,null,null,"Suratá",895]
[null,null,null,null,null,null,null,"Susa",896]
[null,null,null,null,null,null,null,"Susacón",897]
[null,null,null,null,null,null,null,"Sutamarchán",898]
[null,null,null,null,null,null,null,"Sutatausa",899]
[null,null,null,null,null,null,null,"Sutatenza",900]
[null,null,null,null,null,null,null,"Tabio",901]
[null,null,null,null,null,null,null,"Tadó",902]
[null,null,null,null,null,null,null,"Talaigua Nuevo",903]
[null,null,null,null,null,null,null,"Tamalameque",904]
[null,null,null,null,null,null,null,"Támara",905]
[null,null,null,null,null,null,null,"Tame",906]
[null,null,null,null,null,null,null,"Támesis",907]
[null,null,null,null,null,null,null,"Taminango",908]
[null,null,null,null,null,null,null,"Tangua",909]
[null,null,null,null,null,null,null,"Taraira",910]
[null,null,null,null,null,null,null,"Tarapacá",911]
[null,null,null,null,null,null,null,"Tarazá",912]
[null,null,null,null,null,null,null,"Tarqui",913]
[null,null,null,null,null,null,null,"Tarso",914]
[null,null,null,null,null,null,null,"Tasco",915]
[null,null,null,null,null,null,null,"Tauramena",916]
[null,null,null,null,null,null,null,"Tausa",917]
[null,null,null,null,null,null,null,"Tello",918]
[null,null,null,null,null,null,null,"Tena",919]
[null,null,null,null,null,null,null,"Tenerife",920]
[null,null,null,null,null,null,null,"Tenjo",921]
[null,null,null,null,null,null,null,"Tenza",922]
[null,null,null,null,null,null,null,"Teorama",923]
[null,null,null,null,null,null,null,"Teruel",924]
[null,null,null,null,null,null,null,"Tesalia",925]
[null,null,null,null,null,null,null,"Tibacuy",926]
[null,null,null,null,null,null,null,"Tibaná",927]
[null,null,null,null,null,null,null,"Tibasosa",928]
[null,null,null,null,null,null,null,"Tibirita",929]
[null,null,null,null,null,null,null,"Tibú",930]
[null,null,null,null,null,null,null,"Tierralta",931]
[null,null,null,null,null,null,null,"Timaná",932]
[null,null,null,null,null,null,null,"Timbío",933]
[null,null,null,null,null,null,null,"Timbiquí",934]
[null,null,null,null,null,null,null,"Tinjacá",935]
[null,null,null,null,null,null,null,"Tipacoque",936]
[null,null,null,null,null,null,null,"Tiquisio",937]
[null,null,null,null,null,null,null,"Titiribí",938]
[null,null,null,null,null,null,null,"Toca",939]
[null,null,null,null,null,null,null,"Tocaima",940]
[null,null,null,null,null,null,null,"Tocancipá",941]
[null,null,null,null,null,null,null,"Togüí",942]
[null,null,null,null,null,null,null,"Toledo",943]
[null,null,null,null,null,null,null,"Tolú Viejo",944]
[null,null,null,null,null,null,null,"Tona",945]
[null,null,null,null,null,null,null,"Tópaga",946]
[null,null,null,null,null,null,null,"Topaipí",947]
[null,null,null,null,null,null,null,"Toribío",948]
[null,null,null,null,null,null,null,"Toro",949]
[null,null,null,null,null,null,null,"Tota",950]
[null,null,null,null,null,null,null,"Totoró",951]
[null,null,null,null,null,null,null,"Trinidad",952]
[null,null,null,null,null,null,null,"Trujillo",953]
[null,null,null,null,null,null,null,"Tubará",954]
[null,null,null,null,null,null,null,"Tuchín",955]
[null,null,null,null,null,null,null,"Tuluá",956]
[null,null,null,null,null,null,null,"Tunja",957]
[null,null,null,null,null,null,null,"Tununguá",958]
[null,null,null,null,null,null,null,"Túquerres",959]
[null,null,null,null,null,null,null,"Turbaco",960]
[null,null,null,null,null,null,null,"Turbaná",961]
[null,null,null,null,null,null,null,"Turbo",962]
[null,null,null,null,null,null,null,"Turmequé",963]
[null,null,null,null,null,null,null,"Tuta",964]
[null,null,null,null,null,null,null,"Tutazá",965]
[null,null,null,null,null,null,null,"Ubalá",966]
[null,null,null,null,null,null,null,"Ubaque",967]
[null,null,null,null,null,null,null,"Ulloa",968]
[null,null,null,null,null,null,null,"Úmbita",969]
[null,null,null,null,null,null,null,"Une",970]
[null,null,null,null,null,null,null,"Unguía",971]
[null,null,null,null,null,null,null,"Unión Panamericana",972]
[null,null,null,null,null,null,null,"Uramita",973]
[null,null,null,null,null,null,null,"Uribe",974]
[null,null,null,null,null,null,null,"Uribia",975]
[null,null,null,null,null,null,null,"Urrao",976]
[null,null,null,null,null,null,null,"Urumita",977]
[null,null,null,null,null,null,null,"Usiacurí",978]
[null,null,null,null,null,null,null,"Útica",979]
[null,null,null,null,null,null,null,"Valdivia",980]
[null,null,null,null,null,null,null,"Valencia",981]
[null,null,null,null,null,null,null,"Valle De San José",982]
[null,null,null,null,null,null,null,"Valle De San Juan",983]
[null,null,null,null,null,null,null,"Valle Del Guamuez",984]
[null,null,null,null,null,null,null,"Valledupar",985]
[null,null,null,null,null,null,null,"Valparaíso",986]
[null,null,null,null,null,null,null,"Vegachí",987]
[null,null,null,null,null,null,null,"Vélez",988]
[null,null,null,null,null,null,null,"Venadillo",989]
[null,null,null,null,null,null,null,"Venecia",990]
[null,null,null,null,null,null,null,"Ventaquemada",991]
[null,null,null,null,null,null,null,"Vergara",992]
[null,null,null,null,null,null,null,"Versalles",993]
[null,null,null,null,null,null,null,"Vetas",994]
[null,null,null,null,null,null,null,"Vianí",995]
[null,null,null,null,null,null,null,"Victoria",996]
[null,null,null,null,null,null,null,"Vigía Del Fuerte",997]
[null,null,null,null,null,null,null,"Vijes",998]
[null,null,null,null,null,null,null,"Villa Caro",999]
[null,null,null,null,null,null,null,"Villa De Leyva",1000]
[null,null,null,null,null,null,null,"Villa De San Diego De Ubaté"]
[null,null,null,null,null,null,null,"Villa Del Rosario"]
[null,null,null,null,null,null,null,"Villa Rica"]
[null,null,null,null,null,null,null,"Villagarzón"]
[null,null,null,null,null,null,null,"Villagómez"]
[null,null,null,null,null,null,null,"Villahermosa"]
[null,null,null,null,null,null,null,"Villamaría"]
[null,null,null,null,null,null,null,"Villanueva"]
[null,null,null,null,null,null,null,"Villapinzón"]
[null,null,null,null,null,null,null,"Villarrica"]
[null,null,null,null,null,null,null,"Villavicencio"]
[null,null,null,null,null,null,null,"Villavieja"]
[null,null,null,null,null,null,null,"Villeta"]
[null,null,null,null,null,null,null,"Viotá"]
[null,null,null,null,null,null,null,"Viracachá"]
[null,null,null,null,null,null,null,"Vistahermosa"]
[null,null,null,null,null,null,null,"Viterbo"]
[null,null,null,null,null,null,null,"Yacopí"]
[null,null,null,null,null,null,null,"Yacuanquer"]
[null,null,null,null,null,null,null,"Yaguará"]
[null,null,null,null,null,null,null,"Yalí"]
[null,null,null,null,null,null,null,"Yarumal"]
[null,null,null,null,null,null,null,"Yavaraté"]
[null,null,null,null,null,null,null,"Yolombó"]
[null,null,null,null,null,null,null,"Yondó"]
[null,null,null,null,null,null,null,"Yopal"]
[null,null,null,null,null,null,null,"Yotoco"]
[null,null,null,null,null,null,null,"Yumbo"]
[null,null,null,null,null,null,null,"Zambrano"]
[null,null,null,null,null,null,null,"Zapatoca"]
[null,null,null,null,null,null,null,"Zapayán"]
[null,null,null,null,null,null,null,"Zaragoza"]
[null,null,null,null,null,null,null,"Zarzal"]
[null,null,null,null,null,null,null,"Zetaquira"]
[null,null,null,null,null,null,null,"Zipacón"]
[null,null,null,null,null,null,null,"Zipaquirá"]
[null,null,null,null,null,null,null,"Zona Bananera"]

{"sheet":"temp","index":6,"n_rows":2,"n_cols":47,"rows_kept":2,"cut":false,"hidden":true,"merged":[]}
["ultrallave","VehiculosSeleccion","Marca-Referencia 1 2 3","Proveedor","Segmento","Cilindraje","Adecuación","Intervalo de precio (en millones $)","Combustible","Referencia","Marca","Código Fasecolda","referencia 1","referencia 2","referencia 3","Precio referencia (2018)",1,"Precio final de 1 und","2 a 10 ","Precio final de 2 a 10 und","11 a 20","Precio final de 11 a 20 und","21 a 30","Precio final de 21 a 30 und","31 a 40","Precio final de 31 a 40 und","Mayor a 40","Precio final de mayor a 40 und","Precio del Mantenimiento Preventivo","Defensa","Pintura (100% del exterior de la Motocicleta, Cuatrimoto o Motocarro)","Adhesivos de emblemas (por metro cuadrado)","Sirena Compacta","Luces de Emergencia","Exploradoras","Casco abatible","Casco cerrado ","Impermeables","Chalecos reflectivos","Rodilleras, coderas y guantes","Maletero ","Chaqueta antifricción","Body armor","Maleteros Laterales","Parrilla","Inactivo","VrActualizado"]
["Cuatrimotos301cc425ccIntervalodeprecio2Kymco MAXXER 375 AT 366CC 4X41Autotecnica Colombiana S.A.S","Cuatrimotos301cc425ccIntervalodeprecio2","Kymco MAXXER 375 AT 366CC 4X41","Autotecnica Colombiana S.A.S","Cuatrimotos","301cc - 425cc",null,"Intervalo de precio 2","Gasolina",null,"Kymco",10119004,"MAXXER","375","AT 366CC 4X4",17000000,0.06,15980000,0.06,15980000,0.06,15980000,0.06,15980000,0.06,15980000,0.06,15980000,2455000,118916.05439999999,1357200,56299.068799999994,356642,284559.59999999998,195000,223183.99999999997,153212.79999999999,307230.26879999996,96512,124358.12479999999,129438.27519999999,422240,64999.625599999999,259375.99999999997,101036,1]

{"sheet":"solCotizacionCSV","index":7,"n_rows":7,"n_cols":8,"rows_kept":7,"cut":false,"hidden":true,"merged":[]}
["Tipo (servicio o artÃ­culo)","Cantidad","CÃ³digo de unidad de medida*","PosiciÃ³n","Precio base","Divisa","DescripciÃ³n","MercancÃ­a"]
["item",1,"Und",null,"\"0\"","COP","mot01--Moto C10"]
["item",1,"Und",null,"\"0\"","COP","mot01--Adecuaciones y Accesorios Adicionales"]
["item",1,"Und",null,"\"0\"","COP","mot01--Mantenimiento Preventivo"]
["item",1,"Und",null,"\"0\"","COP","mot01--Requerimientos de la Matricula"]
["item",1,"Und",null,"\"0\"","COP","mot01--SOAT"]
["item",1,"Und",null,"\"0\"","COP","mot01--GravÃ¡menes adicionales"]

{"sheet":"Accesorios","index":8,"n_rows":129,"n_cols":11,"rows_kept":129,"cut":false,"hidden":true,"merged":[[13,1,13,6],[14,1,14,6],[15,1,15,6],[16,1,16,6],[17,1,17,6],[1,7,1,8],[5,7,5,8],[9,7,9,8],[13,7,13,8],[17,7,17,8],[7,1,7,6],[8,1,8,6],[9,1,9,6],[10,1,10,6],[11,1,11,6],[12,1,12,6],[1,1,1,6],[2,1,2,6],[3,1,3,6],[4,1,4,6],[5,1,5,6],[6,1,6,6],[5,10,5,14],[6,7,6,8],[6,10,6,14],[7,7,7,8],[7,10,7,14],[8,7,8,8],[8,10,8,14],[1,10,1,14],[2,7,2,8],[2,10,2,14],[3,7,3,8],[3,10,3,14],[4,7,4,8],[4,10,4,14],[13,10,13,14],[14,7,14,8],[14,10,14,14],[15,7,15,8],[15,10,15,14],[16,7,16,8],[16,10,16,14],[9,10,9,14],[10,7,10,8],[10,10,10,14],[11,7,11,8],[11,10,11,14],[12,7,12,8],[12,10,12,14],[21,7,21,8],[21,10,21,14],[22,7,22,8],[22,10,22,14],[23,7,23,8],[23,10,23,14],[17,10,17,14],[18,7,18,8],[18,10,18,14],[19,7,19,8],[19,10,19,14],[20,7,20,8],[20,10,20,14],[27,7,27,8],[27,10,27,14],[28,7,28,8],[28,10,28,14],[29,7,29,8],[29,10,29,14],[24,7,24,8],[24,10,24,14],[25,7,25,8],[25,10,25,14],[26,7,26,8],[26,10,26,14],[33,7,33,8],[33,10,33,14],[34,7,34,8],[34,10,34,14],[35,7,35,8],[35,10,35,14],[30,7,30,8],[30,10,30,14],[31,7,31,8],[31,10,31,14],[32,7,32,8],[32,10,32,14],[39,7,39,8],[39,10,39,14],[40,7,40,8],[40,10,40,14],[41,7,41,8],[41,10,41,14],[36,7,36,8],[36,10,36,14],[37,7,37,8],[37,10,37,14],[38,7,38,8],[38,10,38,14],[45,7,45,8],[45,10,45,14],[46,7,46,8],[46,10,46,14],[47,7,47,8],[47,10,47,14],[42,7,42,8],[42,10,42,14],[43,7,43,8],[43,10,43,14],[44,7,44,8],[44,10,44,14],[51,7,51,8],[51,10,51,14],[52,7,52,8],[52,10,52,14],[53,7,53,8],[53,10,53,14],[48,7,48,8],[48,10,48,14],[49,7,49,8],[49,10,49,14],[50,7,50,8],[50,10,50,14],[57,7,57,8],[57,10,57,14],[58,7,58,8],[58,10,58,14],[59,7,59,8],[59,10,59,14],[54,7,54,8],[54,10,54,14],[55,7,55,8],[55,10,55,14],[56,7,56,8],[56,10,56,14],[63,7,63,8],[63,10,63,14],[64,7,64,8],[64,10,64,14],[65,7,65,8],[65,10,65,14],[60,7,60,8],[60,10,60,14],[61,7,61,8],[61,10,61,14],[62,7,62,8],[62,10,62,14],[69,7,69,8],[69,10,69,14],[70,7,70,8],[70,10,70,14],[71,7,71,8],[71,10,71,14],[66,7,66,8],[66,10,66,14],[67,7,67,8],[67,10,67,14],[68,7,68,8],[68,10,68,14],[75,7,75,8],[75,10,75,14],[76,7,76,8],[76,10,76,14],[77,7,77,8],[77,10,77,14],[72,7,72,8],[72,10,72,14],[73,7,73,8],[73,10,73,14],[74,7,74,8],[74,10,74,14],[81,7,81,8],[81,10,81,14],[82,7,82,8],[82,10,82,14],[83,7,83,8],[83,10,83,14],[78,7,78,8],[78,10,78,14],[79,7,79,8],[79,10,79,14],[80,7,80,8],[80,10,80,14],[87,7,87,8],[87,10,87,14],[88,7,88,8],[88,10,88,14],[89,7,89,8],[89,10,89,14],[84,7,84,8],[84,10,84,14],[85,7,85,8],[85,10,85,14],[86,7,86,8],[86,10,86,14],[93,7,93,8],[93,10,93,14],[94,7,94,8],[94,10,94,14],[95,7,95,8],[95,10,95,14],[90,7,90,8],[90,10,90,14],[91,7,91,8],[91,10,91,14],[92,7,92,8],[92,10,92,14],[99,7,99,8],[99,10,99,14],[100,7,100,8],[100,10,100,14],[101,7,101,8],[101,10,101,14],[96,7,96,8],[96,10,96,14],[97,7,97,8],[97,10,97,14],[98,7,98,8],[98,10,98,14],[105,7,105,8],[105,10,105,14],[106,7,106,8],[106,10,106,14],[107,7,107,8],[107,10,107,14],[102,7,102,8],[102,10,102,14],[103,7,103,8],[103,10,103,14],[104,7,104,8],[104,10,104,14],[112,7,112,8],[112,10,112,14],[113,7,113,8],[113,10,113,14],[108,7,108,8],[108,10,108,14],[109,7,109,8],[109,10,109,14],[110,7,110,8],[110,10,110,14],[128,7,128,8],[128,10,128,14],[123,7,123,8],[123,10,123,14],[124,7,124,8],[124,10,124,14],[125,7,125,8],[125,10,125,14],[120,7,120,8],[120,10,120,14],[121,7,121,8],[121,10,121,14],[122,7,122,8],[122,10,122,14],[18,1,18,6],[19,1,19,6],[20,1,20,6],[21,1,21,6],[22,1,22,6],[23,1,23,6],[126,7,126,8],[126,10,126,14],[127,7,127,8],[127,10,127,14],[117,7,117,8],[117,10,117,14],[118,7,118,8],[118,10,118,14],[119,7,119,8],[119,10,119,14],[114,7,114,8],[114,10,114,14],[115,7,115,8],[115,10,115,14],[116,7,116,8],[116,10,116,14],[111,7,111,8],[111,10,111,14],[30,1,30,6],[31,1,31,6],[32,1,32,6],[33,1,33,6],[34,1,34,6],[35,1,35,6],[24,1,24,6],[25,1,25,6],[26,1,26,6],[27,1,27,6],[28,1,28,6],[29,1,29,6],[42,1,42,6],[43,1,43,6],[44,1,44,6],[45,1,45,6],[46,1,46,6],[47,1,47,6],[36,1,36,6],[37,1,37,6],[38,1,38,6],[39,1,39,6],[40,1,40,6],[41,1,41,6],[54,1,54,6],[55,1,55,6],[56,1,56,6],[57,1,57,6],[58,1,58,6],[59,1,59,6],[48,1,48,6],[49,1,49,6],[50,1,50,6],[51,1,51,6],[52,1,52,6],[53,1,53,6],[66,1,66,6],[67,1,67,6],[68,1,68,6],[69,1,69,6],[70,1,70,6],[71,1,71,6],[60,1,60,6],[61,1,61,6],[62,1,62,6],[63,1,63,6],[64,1,64,6],[65,1,65,6],[78,1,78,6],[79,1,79,6],[80,1,80,6],[81,1,81,6],[82,1,82,6],[83,1,83,6],[72,1,72,6],[73,1,73,6],[74,1,74,6],[75,1,75,6],[76,1,76,6],[77,1,77,6],[90,1,90,6],[91,1,91,6],[92,1,92,6],[93,1,93,6],[94,1,94,6],[95,1,95,6],[84,1,84,6],[85,1,85,6],[86,1,86,6],[87,1,87,6],[88,1,88,6],[89,1,89,6],[102,1,102,6],[103,1,103,6],[104,1,104,6],[105,1,105,6],[106,1,106,6],[107,1,107,6],[96,1,96,6],[97,1,97,6],[98,1,98,6],[99,1,99,6],[100,1,100,6],[101,1,101,6],[0,1,0,6],[0,7,0,8],[0,10,0,14],[126,1,126,6],[127,1,127,6],[128,1,128,6],[120,1,120,6],[121,1,121,6],[122,1,122,6],[123,1,123,6],[124,1,124,6],[125,1,125,6],[114,1,114,6],[115,1,115,6],[116,1,116,6],[117,1,117,6],[118,1,118,6],[119,1,119,6],[108,1,108,6],[109,1,109,6],[110,1,110,6],[111,1,111,6],[112,1,112,6],[113,1,113,6]]}
["segmento","Descripción",null,null,null,null,null,"Cantidad de Motos",null,"Sí / No","Observaciones"]
["Cuatrimotos","Defensa",null,null,null,null,null,null,null,"NO"]
["Cuatrimotos","Pintura (100% del exterior de la Motocicleta, Cuatrimoto o Motocarro)",null,null,null,null,null,null,null,"NO"]
["Cuatrimotos","Adhesivos de emblemas (por metro cuadrado)",null,null,null,null,null,null,null,"NO"]
["Cuatrimotos","Sirena Compacta",null,null,null,null,null,null,null,"NO"]
["Cuatrimotos","Luces de Emergencia",null,null,null,null,null,null,null,"NO"]
["Cuatrimotos","Exploradoras",null,null,null,null,null,null,null,"NO"]
["Cuatrimotos","Casco abatible",null,null,null,null,null,null,null,"NO"]
["Cuatrimotos","Casco cerrado ",null,null,null,null,null,null,null,"NO"]
["Cuatrimotos","Impermeables",null,null,null,null,null,null,null,"NO"]
["Cuatrimotos","Chalecos reflectivos",null,null,null,null,null,null,null,"NO"]
["Cuatrimotos","Rodilleras, coderas y guantes",null,null,null,null,null,null,null,"NO"]
["Cuatrimotos","Maletero ",null,null,null,null,null,null,null,"NO"]
["Cuatrimotos","Chaqueta antifricción",null,null,null,null,null,null,null,"NO"]
["Cuatrimotos","Body armor",null,null,null,null,null,null,null,"NO"]
["Cuatrimotos","Maleteros Laterales",null,null,null,null,null,null,null,"NO"]
["Cuatrimotos","Parrilla",null,null,null,null,null,null,null,"NO"]
["Motocarro","Defensa",null,null,null,null,null,null,null,"NO"]
["Motocarro","Pintura (100% del exterior de la Motocicleta, Cuatrimoto o Motocarro)",null,null,null,null,null,null,null,"NO"]
["Motocarro","Adhesivos de emblemas (por metro cuadrado)",null,null,null,null,null,null,null,"NO"]
["Motocarro","Sirena Compacta",null,null,null,null,null,null,null,"NO"]
["Motocarro","Luces de Emergencia",null,null,null,null,null,null,null,"NO"]
["Motocarro","Exploradoras",null,null,null,null,null,null,null,"NO"]
["Motocarro","Casco abatible",null,null,null,null,null,null,null,"NO"]
["Motocarro","Casco cerrado ",null,null,null,null,null,null,null,"NO"]
["Motocarro","Impermeables",null,null,null,null,null,null,null,"NO"]
["Motocarro","Chalecos reflectivos",null,null,null,null,null,null,null,"NO"]
["Motocarro","Rodilleras, coderas y guantes",null,null,null,null,null,null,null,"NO"]
["Motocarro","Maletero ",null,null,null,null,null,null,null,"NO"]
["Motocarro","Chaqueta antifricción",null,null,null,null,null,null,null,"NO"]
["Motocarro","Body armor",null,null,null,null,null,null,null,"NO"]
["Motocarro","Maleteros Laterales",null,null,null,null,null,null,null,"NO"]
["Motocarro","Parrilla",null,null,null,null,null,null,null,"NO"]
["Motocicleta Deportiva y Calle","Defensa",null,null,null,null,null,null,null,"NO"]
["Motocicleta Deportiva y Calle","Pintura (100% del exterior de la Motocicleta, Cuatrimoto o Motocarro)",null,null,null,null,null,null,null,"NO"]
["Motocicleta Deportiva y Calle","Adhesivos de emblemas (por metro cuadrado)",null,null,null,null,null,null,null,"NO"]
["Motocicleta Deportiva y Calle","Sirena Compacta",null,null,null,null,null,null,null,"NO"]
["Motocicleta Deportiva y Calle","Luces de Emergencia",null,null,null,null,null,null,null,"NO"]
["Motocicleta Deportiva y Calle","Exploradoras",null,null,null,null,null,null,null,"NO"]
["Motocicleta Deportiva y Calle","Casco abatible",null,null,null,null,null,null,null,"NO"]
["Motocicleta Deportiva y Calle","Casco cerrado ",null,null,null,null,null,null,null,"NO"]
["Motocicleta Deportiva y Calle","Impermeables",null,null,null,null,null,null,null,"NO"]
["Motocicleta Deportiva y Calle","Chalecos reflectivos",null,null,null,null,null,null,null,"NO"]
["Motocicleta Deportiva y Calle","Rodilleras, coderas y guantes",null,null,null,null,null,null,null,"NO"]
["Motocicleta Deportiva y Calle","Maletero ",null,null,null,null,null,null,null,"NO"]
["Motocicleta Deportiva y Calle","Chaqueta antifricción",null,null,null,null,null,null,null,"NO"]
["Motocicleta Deportiva y Calle","Body armor",null,null,null,null,null,null,null,"NO"]
["Motocicleta Deportiva y Calle","Maleteros Laterales",null,null,null,null,null,null,null,"NO"]
["Motocicleta Deportiva y Calle","Parrilla",null,null,null,null,null,null,null,"NO"]
["Motocicleta Doble Proposito Tipo Enduro","Defensa",null,null,null,null,null,null,null,"NO"]
["Motocicleta Doble Proposito Tipo Enduro","Pintura (100% del exterior de la Motocicleta, Cuatrimoto o Motocarro)",null,null,null,null,null,null,null,"NO"]
["Motocicleta Doble Proposito Tipo Enduro","Adhesivos de emblemas (por metro cuadrado)",null,null,null,null,null,null,null,"NO"]
["Motocicleta Doble Proposito Tipo Enduro","Sirena Compacta",null,null,null,null,null,null,null,"NO"]
["Motocicleta Doble Proposito Tipo Enduro","Luces de Emergencia",null,null,null,null,null,null,null,"NO"]
["Motocicleta Doble Proposito Tipo Enduro","Exploradoras",null,null,null,null,null,null,null,"NO"]
["Motocicleta Doble Proposito Tipo Enduro","Casco abatible",null,null,null,null,null,null,null,"NO"]
["Motocicleta Doble Proposito Tipo Enduro","Casco cerrado ",null,null,null,null,null,null,null,"NO"]
["Motocicleta Doble Proposito Tipo Enduro","Impermeables",null,null,null,null,null,null,null,"NO"]
["Motocicleta Doble Proposito Tipo Enduro","Chalecos reflectivos",null,null,null,null,null,null,null,"NO"]
["Motocicleta Doble Proposito Tipo Enduro","Rodilleras, coderas y guantes",null,null,null,null,null,null,null,"NO"]
["Motocicleta Doble Proposito Tipo Enduro","Maletero ",null,null,null,null,null,null,null,"NO"]
["Motocicleta Doble Proposito Tipo Enduro","Chaqueta antifricción",null,null,null,null,null,null,null,"NO"]
["Motocicleta Doble Proposito Tipo Enduro","Body armor",null,null,null,null,null,null,null,"NO"]
["Motocicleta Doble Proposito Tipo Enduro","Maleteros Laterales",null,null,null,null,null,null,null,"NO"]
["Motocicleta Doble Proposito Tipo Enduro","Parrilla",null,null,null,null,null,null,null,"NO"]
["Motocicleta Doble Proposito Tipo Turismo","Defensa",null,null,null,null,null,null,null,"NO"]
["Motocicleta Doble Proposito Tipo Turismo","Pintura (100% del exterior de la Motocicleta, Cuatrimoto o Motocarro)",null,null,null,null,null,null,null,"NO"]
["Motocicleta Doble Proposito Tipo Turismo","Adhesivos de emblemas (por metro cuadrado)",null,null,null,null,null,null,null,"NO"]
["Motocicleta Doble Proposito Tipo Turismo","Sirena Compacta",null,null,null,null,null,null,null,"NO"]
["Motocicleta Doble Proposito Tipo Turismo","Luces de Emergencia",null,null,null,null,null,null,null,"NO"]
["Motocicleta Doble Proposito Tipo Turismo","Exploradoras",null,null,null,null,null,null,null,"NO"]
["Motocicleta Doble Proposito Tipo Turismo","Casco abatible",null,null,null,null,null,null,null,"NO"]
["Motocicleta Doble Proposito Tipo Turismo","Casco cerrado ",null,null,null,null,null,null,null,"NO"]
["Motocicleta Doble Proposito Tipo Turismo","Impermeables",null,null,null,null,null,null,null,"NO"]
["Motocicleta Doble Proposito Tipo Turismo","Chalecos reflectivos",null,null,null,null,null,null,null,"NO"]
["Motocicleta Doble Proposito Tipo Turismo","Rodilleras, coderas y guantes",null,null,null,null,null,null,null,"NO"]
["Motocicleta Doble Proposito Tipo Turismo","Maletero ",null,null,null,null,null,null,null,"NO"]
["Motocicleta Doble Proposito Tipo Turismo","Chaqueta antifricción",null,null,null,null,null,null,null,"NO"]
["Motocicleta Doble Proposito Tipo Turismo","Body armor",null,null,null,null,null,null,null,"NO"]
["Motocicleta Doble Proposito Tipo Turismo","Maleteros Laterales",null,null,null,null,null,null,null,"NO"]
["Motocicleta Doble Proposito Tipo Turismo","Parrilla",null,null,null,null,null,null,null,"NO"]
["Motocicleta Electrica","Defensa",null,null,null,null,null,null,null,"NO"]
["Motocicleta Electrica","Pintura (100% del exterior de la Motocicleta, Cuatrimoto o Motocarro)",null,null,null,null,null,null,null,"NO"]
["Motocicleta Electrica","Adhesivos de emblemas (por metro cuadrado)",null,null,null,null,null,null,null,"NO"]
["Motocicleta Electrica","Sirena Compacta",null,null,null,null,null,null,null,"NO"]
["Motocicleta Electrica","Luces de Emergencia",null,null,null,null,null,null,null,"NO"]
["Motocicleta Electrica","Exploradoras",null,null,null,null,null,null,null,"NO"]
["Motocicleta Electrica","Casco abatible",null,null,null,null,null,null,null,"NO"]
["Motocicleta Electrica","Casco cerrado ",null,null,null,null,null,null,null,"NO"]
["Motocicleta Electrica","Impermeables",null,null,null,null,null,null,null,"NO"]
["Motocicleta Electrica","Chalecos reflectivos",null,null,null,null,null,null,null,"NO"]
["Motocicleta Electrica","Rodilleras, coderas y guantes",null,null,null,null,null,null,null,"NO"]
["Motocicleta Electrica","Maletero ",null,null,null,null,null,null,null,"NO"]
["Motocicleta Electrica","Chaqueta antifricción",null,null,null,null,null,null,null,"NO"]
["Motocicleta Electrica","Body armor",null,null,null,null,null,null,null,"NO"]
["Motocicleta Electrica","Maleteros Laterales",null,null,null,null,null,null,null,"NO"]
["Motocicleta Electrica","Parrilla",null,null,null,null,null,null,null,"NO"]
["Motocicleta Moped","Defensa",null,null,null,null,null,null,null,"NO"]
["Motocicleta Moped","Pintura (100% del exterior de la Motocicleta, Cuatrimoto o Motocarro)",null,null,null,null,null,null,null,"NO"]
["Motocicleta Moped","Adhesivos de emblemas (por metro cuadrado)",null,null,null,null,null,null,null,"NO"]
["Motocicleta Moped","Sirena Compacta",null,null,null,null,null,null,null,"NO"]
["Motocicleta Moped","Luces de Emergencia",null,null,null,null,null,null,null,"NO"]
["Motocicleta Moped","Exploradoras",null,null,null,null,null,null,null,"NO"]
["Motocicleta Moped","Casco abatible",null,null,null,null,null,null,null,"NO"]
["Motocicleta Moped","Casco cerrado ",null,null,null,null,null,null,null,"NO"]
["Motocicleta Moped","Impermeables",null,null,null,null,null,null,null,"NO"]
["Motocicleta Moped","Chalecos reflectivos",null,null,null,null,null,null,null,"NO"]
["Motocicleta Moped","Rodilleras, coderas y guantes",null,null,null,null,null,null,null,"NO"]
["Motocicleta Moped","Maletero ",null,null,null,null,null,null,null,"NO"]
["Motocicleta Moped","Chaqueta antifricción",null,null,null,null,null,null,null,"NO"]
["Motocicleta Moped","Body armor",null,null,null,null,null,null,null,"NO"]
["Motocicleta Moped","Maleteros Laterales",null,null,null,null,null,null,null,"NO"]
["Motocicleta Moped","Parrilla",null,null,null,null,null,null,null,"NO"]
["Motocicleta Scooter","Defensa",null,null,null,null,null,null,null,"NO"]
["Motocicleta Scooter","Pintura (100% del exterior de la Motocicleta, Cuatrimoto o Motocarro)",null,null,null,null,null,null,null,"NO"]
["Motocicleta Scooter","Adhesivos de emblemas (por metro cuadrado)",null,null,null,null,null,null,null,"NO"]
["Motocicleta Scooter","Sirena Compacta",null,null,null,null,null,null,null,"NO"]
["Motocicleta Scooter","Luces de Emergencia",null,null,null,null,null,null,null,"NO"]
["Motocicleta Scooter","Exploradoras",null,null,null,null,null,null,null,"NO"]
["Motocicleta Scooter","Casco abatible",null,null,null,null,null,null,null,"NO"]
["Motocicleta Scooter","Casco cerrado ",null,null,null,null,null,null,null,"NO"]
["Motocicleta Scooter","Impermeables",null,null,null,null,null,null,null,"NO"]
["Motocicleta Scooter","Chalecos reflectivos",null,null,null,null,null,null,null,"NO"]
["Motocicleta Scooter","Rodilleras, coderas y guantes",null,null,null,null,null,null,null,"NO"]
["Motocicleta Scooter","Maletero ",null,null,null,null,null,null,null,"NO"]
["Motocicleta Scooter","Chaqueta antifricción",null,null,null,null,null,null,null,"NO"]
["Motocicleta Scooter","Body armor",null,null,null,null,null,null,null,"NO"]
["Motocicleta Scooter","Maleteros Laterales",null,null,null,null,null,null,null,"NO"]
["Motocicleta Scooter","Parrilla",null,null,null,null,null,null,null,"NO"]

{"sheet":"TempAccesorios","index":9,"n_rows":16,"n_cols":10,"rows_kept":16,"cut":false,"hidden":true,"merged":[[0,1,0,6],[0,7,0,8],[0,10,0,14],[1,1,1,6],[1,7,1,8],[1,10,1,14],[2,1,2,6],[2,7,2,8],[2,10,2,14],[3,1,3,6],[3,7,3,8],[3,10,3,14],[4,1,4,6],[4,7,4,8],[4,10,4,14],[5,1,5,6],[5,7,5,8],[5,10,5,14],[6,1,6,6],[6,7,6,8],[6,10,6,14],[7,1,7,6],[7,7,7,8],[7,10,7,14],[8,1,8,6],[8,7,8,8],[8,10,8,14],[9,1,9,6],[9,7,9,8],[9,10,9,14],[10,1,10,6],[10,7,10,8],[10,10,10,14],[11,1,11,6],[11,7,11,8],[11,10,11,14],[12,1,12,6],[12,7,12,8],[12,10,12,14],[13,1,13,6],[13,7,13,8],[13,10,13,14],[14,1,14,6],[14,7,14,8],[14,10,14,14],[15,1,15,6],[15,7,15,8],[15,10,15,14]]}
["Motocicleta Deportiva y Calle","Defensa",null,null,null,null,null,null,null,"NO"]
["Motocicleta Deportiva y Calle","Pintura (100% del exterior de la Motocicleta, Cuatrimoto o Motocarro)",null,null,null,null,null,null,null,"NO"]
["Motocicleta Deportiva y Calle","Adhesivos de emblemas (por metro cuadrado)",null,null,null,null,null,null,null,"NO"]
["Motocicleta Deportiva y Calle","Sirena Compacta",null,null,null,null,null,null,null,"NO"]
["Motocicleta Deportiva y Calle","Luces de Emergencia",null,null,null,null,null,null,null,"NO"]
["Motocicleta Deportiva y Calle","Exploradoras",null,null,null,null,null,null,null,"NO"]
["Motocicleta Deportiva y Calle","Casco abatible",null,null,null,null,null,null,null,"NO"]
["Motocicleta Deportiva y Calle","Casco cerrado ",null,null,null,null,null,null,null,"NO"]
["Motocicleta Deportiva y Calle","Impermeables",null,null,null,null,null,null,null,"NO"]
["Motocicleta Deportiva y Calle","Chalecos reflectivos",null,null,null,null,null,null,null,"NO"]
["Motocicleta Deportiva y Calle","Rodilleras, coderas y guantes",null,null,null,null,null,null,null,"NO"]
["Motocicleta Deportiva y Calle","Maletero ",null,null,null,null,null,null,null,"NO"]
["Motocicleta Deportiva y Calle","Chaqueta antifricción",null,null,null,null,null,null,null,"NO"]
["Motocicleta Deportiva y Calle","Body armor",null,null,null,null,null,null,null,"NO"]
["Motocicleta Deportiva y Calle","Maleteros Laterales",null,null,null,null,null,null,null,"NO"]
["Motocicleta Deportiva y Calle","Parrilla",null,null,null,null,null,null,null,"NO"]

{"sheet":"Consolidado","index":10,"n_rows":89,"n_cols":48,"rows_kept":89,"cut":false,"hidden":true,"merged":[]}
["ultrallave","VehiculosSeleccion","Marca-Referencia 1 2 3","Proveedor","Segmento","Cilindraje","Adecuación","Intervalo de precio (en millones $)","Combustible","Referencia","Marca","Código Fasecolda","referencia 1","referencia 2","referencia 3","Precio referencia (2018)",1,"Precio final de 1 und","2 a 10 ","Precio final de 2 a 10 und","11 a 20","Precio final de 11 a 20 und","21 a 30","Precio final de 21 a 30 und","31 a 40","Precio final de 31 a 40 und","Mayor a 40","Precio final de mayor a 40 und","Precio del Mantenimiento Preventivo","Defensa","Pintura (100% del exterior de la Motocicleta, Cuatrimoto o Motocarro)","Adhesivos de emblemas (por metro cuadrado)","Sirena Compacta","Luces de Emergencia","Exploradoras","Casco abatible","Casco cerrado ","Impermeables","Chalecos reflectivos","Rodilleras, coderas y guantes","Maletero ","Chaqueta antifricción","Body armor","Maleteros Laterales","Parrilla","Inactivo","VrActualizado","cod"]
[{"$f":"B2&C2&D2","v":"Cuatrimotos200cc300ccIntervalodeprecio1Kymco MAXXER 250 AT 250CC0Autotecnica Colombiana S.A.S"},{"$f":"SUBSTITUTE(SUBSTITUTE(SUBSTITUTE(E2&F2&H2,\".\",\"\"),\" \",\"\"),\"-\",\"\")","v":"Cuatrimotos200cc300ccIntervalodeprecio1"},{"$f":"K2&\" \"&M2&\" \"&N2&\" \"&O2&AT2","v":"Kymco MAXXER 250 AT 250CC0"},"Autotecnica Colombiana S.A.S","Cuatrimotos","200cc - 300cc",null,"Intervalo de precio 1","Gasolina",null,"Kymco",10119002,"MAXXER","250","AT 250CC",19000000,0.06,{"$f":"$P2*(1-Q2)","v":17860000},0.06,{"$f":"$P2*(1-S2)","v":17860000},0.06,{"$f":"$P2*(1-U2)","v":17860000},0.06,{"$f":"$P2*(1-W2)","v":17860000},0.06,{"$f":"$P2*(1-Y2)","v":17860000},0.06,{"$f":"$P2*(1-AA2)","v":17860000},2862000,137800,1579400,65720,413400,328600,226840,259700,174900,355100,111300,143100,148400,492900,75789.563449599998,302100,116600,0,null,"C1"]
[{"$f":"B3&C3&D3","v":"Cuatrimotos200cc300ccIntervalodeprecio2Kawasaki BRUTE FORCE KVF300 AT 300CC 4X20Autotecnica Colombiana S.A.S"},{"$f":"SUBSTITUTE(SUBSTITUTE(SUBSTITUTE(E3&F3&H3,\".\",\"\"),\" \",\"\"),\"-\",\"\")","v":"Cuatrimotos200cc300ccIntervalodeprecio2"},"Kawasaki BRUTE FORCE KVF300 AT 300CC 4X20","Autotecnica Colombiana S.A.S","Cuatrimotos","200cc - 300cc",null,"Intervalo de precio 2","Gasolina",null,"Kawasaki",4519010,"BRUTE FORCE","KVF300","AT 300CC 4X2",18000000,0.06,{"$f":"$P3*(1-Q3)","v":16920000},0.06,{"$f":"$P3*(1-S3)","v":16920000},0.06,{"$f":"$P3*(1-U3)","v":16920000},0.06,{"$f":"$P3*(1-W3)","v":16920000},0.06,{"$f":"$P3*(1-Y3)","v":16920000},0.06,{"$f":"$P3*(1-AA3)","v":16920000},5904200,137800,1229600,65720,413400,328600,226840,259700,174900,355100,111300,143100,148400,492900,75789.563449599998,302100,116600,0,null,"C2"]
["Cuatrimotos200cc300ccIntervalodeprecio2Suzuki LTF 250 MT 250CC 4X20Suzuki Motor De Colombia S.A.","Cuatrimotos200cc300ccIntervalodeprecio2","Suzuki LTF 250 MT 250CC 4X20","Suzuki Motor De Colombia S.A.","Cuatrimotos","200cc - 300cc",null,"Intervalo de precio 2","Gasolina",null,"Suzuki",8819013,"LTF","250","MT 250CC 4X2",18600000,1E-3,18581400,1E-3,18581400,1E-3,18581400,1E-3,18581400,1E-3,18581400,0.03,18042000,5733824.8220000006,"NA",1247620,489720,"NA","NA",1302701.8400000001,231333.234,231333.234,412296.43400000001,118465.60000000001,191224,1155389.3999999999,354464,149248,"NA","NA",0,null,"C2"]
["Cuatrimotos301cc425ccIntervalodeprecio2Kymco MAXXER 375 AT 366CC 4X40Autotecnica Colombiana S.A.S","Cuatrimotos301cc425ccIntervalodeprecio2","Kymco MAXXER 375 AT 366CC 4X40","Autotecnica Colombiana S.A.S","Cuatrimotos","301cc - 425cc",null,"Intervalo de precio 2","Gasolina",null,"Kymco",10119004,"MAXXER","375","AT 366CC 4X4",30000000,0.06,28200000,0.06,28200000,0.06,28200000,0.06,28200000,0.06,28200000,0.06,28200000,2862000,137800,1579400,65720,413400,328600,226840,259700,174900,355100,111300,143100,148400,492900,75789.563449599998,302100,116600,0,null,"C3"]
["Cuatrimotos640cc799ccIntervalodeprecio2Honda TRX 680 FA AT 680CC 4X41Fanalca ","Cuatrimotos640cc799ccIntervalodeprecio2","Honda TRX 680 FA AT 680CC 4X41","Fanalca ","Cuatrimotos","640cc - 799cc",null,"Intervalo de precio 2","Gasolina",null,"Honda",3419004,"TRX","680 FA","AT 680CC 4X4",42800000,0,42800000,0.02,41944000,0.03,41516000,0.04,41088000,0.05,40660000,7.0000000000000007E-2,39804000,3755423,300000,100000,15000,442900,1030000,360000,154500,154500,166600,83300,293550,116600,195700,92700,210000,150000,1,null,"C4"]
["Cuatrimotos640cc799ccIntervalodeprecio3Kawasaki BRUTE FORCE KVF750HCF AT 750CC 4X40Autotecnica Colombiana S.A.S","Cuatrimotos640cc799ccIntervalodeprecio3","Kawasaki BRUTE FORCE KVF750HCF AT 750CC 4X40","Autotecnica Colombiana S.A.S","Cuatrimotos","640cc - 799cc",null,"Intervalo de precio 3","Gasolina",null,"Kawasaki",4519008,"BRUTE FORCE","KVF750HCF","AT 750CC 4X4",65000000,0.06,61100000,0.06,61100000,0.06,61100000,0.06,61100000,0.06,61100000,0.06,61100000,7987100,137800,1314400,65720,413400,328600,226840,259700,165000,355100,111300,143100,148400,492900,75789.563449599998,302100,116600,0,null,"C5"]
["Cuatrimotos640cc799ccIntervalodeprecio1Suzuki KINGQUAD LTA 750 AT 750CC 4X40Suzuki Motor De Colombia S.A.","Cuatrimotos640cc799ccIntervalodeprecio1","Suzuki KINGQUAD LTA 750 AT 750CC 4X40","Suzuki Motor De Colombia S.A.","Cuatrimotos","640cc - 799cc",null,"Intervalo de precio 1","Gasolina",null,"Suzuki",8819011,"KINGQUAD","LTA 750","AT 750CC 4X4",38500000,1E-3,38461500,1E-3,38461500,1E-3,38461500,1E-3,38461500,1E-3,38461500,0.03,37345000,{"$error":"#N/A"},{"$error":"#N/A"},{"$error":"#N/A"},{"$error":"#N/A"},{"$error":"#N/A"},{"$error":"#N/A"},{"$error":"#N/A"},{"$error":"#N/A"},{"$error":"#N/A"},{"$error":"#N/A"},{"$error":"#N/A"},{"$error":"#N/A"},{"$error":"#N/A"},{"$error":"#N/A"},{"$error":"#N/A"},{"$error":"#N/A"},{"$error":"#N/A"},0,null,"C6"]
["MotocarroPlatonIntervalodeprecio1AKT CARGUERO 200 ZW [BAJO] MT 200CC1Colombiana De Comercio S.A. Siglas Corbeta S.A. y/o Alkosto S.A.","MotocarroPlatonIntervalodeprecio1","AKT CARGUERO 200 ZW [BAJO] MT 200CC1","Colombiana De Comercio S.A. Siglas Corbeta S.A. y/o Alkosto S.A.","Motocarro","Platon",null,"Intervalo de precio 1","Gasolina",null,"AKT",15919010,"CARGUERO","200 ZW [BAJO]","MT 200CC",10300000,0.08,9476000,0.08,9476000,0.08,9476000,0.08,9476000,0.08,9476000,0.08,0,848000,0,307400,53000,307400,254400,95400,93280,71020,31800,5300,190800,63600,151580,106000,424000,53000,1,null,"C7"]
["MotocicletaDeportivayCalle90cc123ccIntervalodeprecio2TVS STAR [2] SPORT MT 100CC1Colombiana De Comercio S.A. Siglas Corbeta S.A. y/o Alkosto S.A.","MotocicletaDeportivayCalle90cc123ccIntervalodeprecio2","TVS STAR [2] SPORT MT 100CC1","Colombiana De Comercio S.A. Siglas Corbeta S.A. y/o Alkosto S.A.","Motocicleta Deportiva y Calle","90cc - 123cc",null,"Intervalo de precio 2","Gasolina",null,"TVS",29517005,"STAR [2]","SPORT","MT 100CC",3400000,0.08,3128000,0.08,3128000,0.08,3128000,0.08,3128000,0.08,3128000,0.08,3128000,800000,40000,190000,50000,290000,240000,90000,88000,67000,30000,5000,180000,60000,143000,100000,400000,50000,1,null,"C8"]
["MotocicletaDeportivayCalle90cc123ccIntervalodeprecio2Auteco BAJAJ BOXER CT100 MT 100CC1Autotecnica Colombiana S.A.S","MotocicletaDeportivayCalle90cc123ccIntervalodeprecio2","Auteco BAJAJ BOXER CT100 MT 100CC1","Autotecnica Colombiana S.A.S","Motocicleta Deportiva y Calle","90cc - 123cc",null,"Intervalo de precio 2","Gasolina",null,"Auteco",317015,"BAJAJ","BOXER CT100","MT 100CC",3600000,0.1,3240000,0.1,3240000,0.1,3240000,0.1,3240000,0.1,3240000,0.1,3240000,1367400,137800,1229600,65720,413400,328600,226840,259700,174900,355100,111300,143100,148400,492900,75789.563449599998,302100,116600,1,null,"C8"]
["MotocicletaDeportivayCalle90cc123ccIntervalodeprecio3Suzuki AX4 110 MT 110CC1Suzuki Motor De Colombia S.A.","MotocicletaDeportivayCalle90cc123ccIntervalodeprecio3","Suzuki AX4 110 MT 110CC1","Suzuki Motor De Colombia S.A.","Motocicleta Deportiva y Calle","90cc - 123cc",null,"Intervalo de precio 3","Gasolina",null,"Suzuki",8817132,"AX4","110","MT 110CC",3700000,0.12,3256000,0.125,3237500,0.126,3233800,0.127,3230100,0.129,3222700,0.13,3219000,1624388.8137785001,"NA",1,489720,"NA","NA","NA",231333.234,231333.234,412296.43400000001,118465.60000000001,191224,101372.04,354464,149248,"NA",183559.88200000001,1,null,"C9"]
["MotocicletaDeportivayCalle90cc123ccIntervalodeprecio3Honda CB 110 MT 110CC1Fanalca ","MotocicletaDeportivayCalle90cc123ccIntervalodeprecio3","Honda CB 110 MT 110CC1","Fanalca ","Motocicleta Deportiva y Calle","90cc - 123cc",null,"Intervalo de precio 3","Gasolina",null,"Honda",3417135,"CB","110","MT 110CC",4000000,0,4000000,0.04,3840000,0.06,3760000,0.08,3680000,0.1,3600000,0.12,3520000,1442442.16,87550,80000,15000,442900,916300,360000,154500,154500,166600,83300,293550,116600,154500,92700,210000,46350,1,null,"C9"]
["MotocicletaDeportivayCalle90cc123ccIntervalodeprecio3Honda DREAM NEO MT 110CC1Fanalca ","MotocicletaDeportivayCalle90cc123ccIntervalodeprecio3","Honda DREAM NEO MT 110CC1","Fanalca ","Motocicleta Deportiva y Calle","90cc - 123cc",null,"Intervalo de precio 3","Gasolina",null,"Honda",3417171,"DREAM","NEO","MT 110CC",3700000,0,3700000,0.04,3552000,0.06,3478000,0.08,3404000,0.1,3330000,0.12,3256000,1452098,87550,80000,15000,442900,916300,360000,154500,154500,166600,83300,293550,116600,154500,92700,210000,46350,1,null,"C9"]
["MotocicletaDeportivayCalle124cc134ccIntervalodeprecio1AKT AK 125 NKD FRENO DISCO MT 125CC1Colombiana De Comercio S.A. Siglas Corbeta S.A. y/o Alkosto S.A.","MotocicletaDeportivayCalle124cc134ccIntervalodeprecio1","AKT AK 125 NKD FRENO DISCO MT 125CC1","Colombiana De Comercio S.A. Siglas Corbeta S.A. y/o Alkosto S.A.","Motocicleta Deportiva y Calle","124cc - 134cc",null,"Intervalo de precio 1","Gasolina",null,"AKT",15917038,"AK","125 NKD FRENO DISCO","MT 125CC",2800000,0.08,2576000,0.08,2576000,0.08,2576000,0.08,2576000,0.08,2576000,0.08,2576000,848000,42400,84800,53000,307400,254400,95400,93280,71020,31800,5300,190800,63600,151580,106000,424000,53000,1,null,"C10"]
["MotocicletaDeportivayCalle124cc134ccIntervalodeprecio1Suzuki GN 125 NOVA MT 125CC1Suzuki Motor De Colombia S.A.","MotocicletaDeportivayCalle124cc134ccIntervalodeprecio1","Suzuki GN 125 NOVA MT 125CC1","Suzuki Motor De Colombia S.A.","Motocicleta Deportiva y Calle","124cc - 134cc",null,"Intervalo de precio 1","Gasolina",null,"Suzuki",8817145,"GN","125 NOVA","MT 125CC",4700000,0.12,4136000,0.125,4112500,0.126,4107800,0.127,4103100,0.129,4093700,0.13,4089000,1845015.7,0,1,462000,0,0,0,218238.9,218238.9,388958.9,111760,180400,95634,334400,140800,0,0,1,null,"C10"]
["MotocicletaDeportivayCalle124cc134ccIntervalodeprecio1AKT EVO R3 125 MT 125CC0Colombiana De Comercio S.A. Siglas Corbeta S.A. y/o Alkosto S.A.","MotocicletaDeportivayCalle124cc134ccIntervalodeprecio1","AKT EVO R3 125 MT 125CC0","Colombiana De Comercio S.A. Siglas Corbeta S.A. y/o Alkosto S.A.","Motocicleta Deportiva y Calle","124cc - 134cc",null,"Intervalo de precio 1","Gasolina",null,"AKT",15917035,"EVO","R3 125","MT 125CC",3600000,0.08,3312000,0.08,3312000,0.08,3312000,0.08,3312000,0.08,3312000,0.08,3312000,848000,42400,95400,53000,307400,254400,95400,93280,71020,31800,5300,190800,63600,151580,106000,424000,53000,0,null,"C10"]
["MotocicletaDeportivayCalle124cc134ccIntervalodeprecio2Suzuki GS 125 MT 125CC0Suzuki Motor De Colombia S.A.","MotocicletaDeportivayCalle124cc134ccIntervalodeprecio2","Suzuki GS 125 MT 125CC0","Suzuki Motor De Colombia S.A.","Motocicleta Deportiva y Calle","124cc - 134cc",null,"Intervalo de precio 2","Gasolina",null,"Suzuki",8817120,"GS","125","MT 125CC",5500000,0.12,4840000,0.125,4812500,0.126,4807000,0.127,4801500,0.129,4790500,0.13,4785000,{"$error":"#N/A"},{"$error":"#N/A"},{"$error":"#N/A"},{"$error":"#N/A"},{"$error":"#N/A"},{"$error":"#N/A"},{"$error":"#N/A"},{"$error":"#N/A"},{"$error":"#N/A"},{"$error":"#N/A"},{"$error":"#N/A"},{"$error":"#N/A"},{"$error":"#N/A"},{"$error":"#N/A"},{"$error":"#N/A"},{"$error":"#N/A"},{"$error":"#N/A"},0,null,"C11"]
["MotocicletaDeportivayCalle124cc134ccIntervalodeprecio2Auteco BAJAJ DISCOVER [3] 125 ST MT 125CC1Autotecnica Colombiana S.A.S","MotocicletaDeportivayCalle124cc134ccIntervalodeprecio2","Auteco BAJAJ DISCOVER [3] 125 ST MT 125CC1","Autotecnica Colombiana S.A.S","Motocicleta Deportiva y Calle","124cc - 134cc",null,"Intervalo de precio 2","Gasolina",null,"Auteco",317056,"BAJAJ","DISCOVER [3] 125 ST","MT 125CC",5000000,0.1,4500000,0.1,4500000,0.1,4500000,0.1,4500000,0.1,4500000,0.1,4500000,1515800,137800,1229600,65720,413400,328600,226840,259700,174900,355100,111300,143100,148400,492900,75789.563449599998,302100,116600,1,null,"C11"]
["MotocicletaDeportivayCalle124cc134ccIntervalodeprecio2Auteco BAJAJ PULSAR 135 LS MT 135CC1Autotecnica Colombiana S.A.S","MotocicletaDeportivayCalle124cc134ccIntervalodeprecio2","Auteco BAJAJ PULSAR 135 LS MT 135CC1","Autotecnica Colombiana S.A.S","Motocicleta Deportiva y Calle","124cc - 134cc",null,"Intervalo de precio 2","Gasolina",null,"Auteco",317069,"BAJAJ","PULSAR 135 LS","MT 135CC",4500000,0.1,4050000,0.1,4050000,0.1,4050000,0.1,4050000,0.1,4050000,0.1,4050000,1515800,137800,1314400,65720,413400,328600,226840,259700,174900,355100,111300,143100,148400,492900,75789.563449599998,302100,116600,1,null,"C11"]
["MotocicletaDeportivayCalle124cc134ccIntervalodeprecio2Yamaha LIBERO 125 RV MT 125CC1Incolmotos Yamaha S.A.","MotocicletaDeportivayCalle124cc134ccIntervalodeprecio2","Yamaha LIBERO 125 RV MT 125CC1","Incolmotos Yamaha S.A.","Motocicleta Deportiva y Calle","124cc - 134cc",null,"Intervalo de precio 2","Gasolina",null,"Yamaha",9817178,"LIBERO","125 RV","MT 125CC",4600000,0.03,4462000,3.3000000000000002E-2,4448200,3.3000000000000002E-2,4448200,3.5000000000000003E-2,4439000,3.6999999999999998E-2,4429800,0.04,4416000,762000,40280,87980,6890,455800,1051308,79500,159000,148400,190800,84800,307400,95400,222600,116600,0,3180,1,null,"C11"]
["MotocicletaDeportivayCalle135cc165ccIntervalodeprecio2TVS APACHE [2] RTR160 MT 160CC1Colombiana De Comercio S.A. Siglas Corbeta S.A. y/o Alkosto S.A.","MotocicletaDeportivayCalle135cc165ccIntervalodeprecio2","TVS APACHE [2] RTR160 MT 160CC1","Colombiana De Comercio S.A. Siglas Corbeta S.A. y/o Alkosto S.A.","Motocicleta Deportiva y Calle","135cc - 165cc",null,"Intervalo de precio 2","Gasolina",null,"TVS",29517006,"APACHE [2]","RTR160","MT 160CC",4700000,0.08,4324000,0.08,4324000,0.08,4324000,0.08,4324000,0.08,4324000,0.08,4324000,848000,42400,169600,53000,307400,254400,95400,93280,71020,31800,5300,190800,63600,151580,106000,424000,53000,1,null,"C12"]
["MotocicletaDeportivayCalle135cc165ccIntervalodeprecio2Auteco BAJAJ DISCOVER [3] 150 ST MT 150CC1Autotecnica Colombiana S.A.S","MotocicletaDeportivayCalle135cc165ccIntervalodeprecio2","Auteco BAJAJ DISCOVER [3] 150 ST MT 150CC1","Autotecnica Colombiana S.A.S","Motocicleta Deportiva y Calle","135cc - 165cc",null,"Intervalo de precio 2","Gasolina",null,"Auteco",317061,"BAJAJ","DISCOVER [3] 150 ST","MT 150CC",4700000,0.1,4230000,0.1,4230000,0.1,4230000,0.1,4230000,0.1,4230000,0.1,4230000,1515800,137800,1314400,65720,413400,328600,226840,259700,174900,355100,111300,143100,148400,492900,75789.563449599998,302100,116600,1,null,"C12"]
["MotocicletaDeportivayCalle135cc165ccIntervalodeprecio2Auteco BAJAJ PULSAR AS 150 MT 150CC1Autotecnica Colombiana S.A.S","MotocicletaDeportivayCalle135cc165ccIntervalodeprecio2","Auteco BAJAJ PULSAR AS 150 MT 150CC1","Autotecnica Colombiana S.A.S","Motocicleta Deportiva y Calle","135cc - 165cc",null,"Intervalo de precio 2","Gasolina",null,"Auteco",317068,"BAJAJ","PULSAR AS 150","MT 150CC",6200000,0.1,5580000,0.1,5580000,0.1,5580000,0.1,5580000,0.1,5580000,0.1,5580000,1515800,137800,1314400,65720,413400,328600,226840,259700,174900,355100,111300,143100,148400,492900,75789.563449599998,302100,116600,1,null,"C12"]
["MotocicletaDeportivayCalle135cc165ccIntervalodeprecio2Auteco BAJAJ PULSAR 150 NS MT 150CC1Autotecnica Colombiana S.A.S","MotocicletaDeportivayCalle135cc165ccIntervalodeprecio2","Auteco BAJAJ PULSAR 150 NS MT 150CC1","Autotecnica Colombiana S.A.S","Motocicleta Deportiva y Calle","135cc - 165cc",null,"Intervalo de precio 2","Gasolina",null,"Auteco",317065,"BAJAJ","PULSAR 150 NS","MT 150CC",7000000,0.1,6300000,0.1,6300000,0.1,6300000,0.1,6300000,0.1,6300000,0.1,6300000,1627100,137800,1314400,65720,413400,328600,226840,259700,174900,355100,111300,143100,148400,492900,75789.563449599998,302100,116600,1,null,"C12"]
["MotocicletaDeportivayCalle135cc165ccIntervalodeprecio1AKT RTX 150 UNISHOCK MT 150CC0Colombiana De Comercio S.A. Siglas Corbeta S.A. y/o Alkosto S.A.","MotocicletaDeportivayCalle135cc165ccIntervalodeprecio1","AKT RTX 150 UNISHOCK MT 150CC0","Colombiana De Comercio S.A. Siglas Corbeta S.A. y/o Alkosto S.A.","Motocicleta Deportiva y Calle","135cc - 165cc",null,"Intervalo de precio 1","Gasolina",null,"AKT",15917039,"RTX","150 UNISHOCK","MT 150CC",4400000,0.08,4048000,0.08,4048000,0.08,4048000,0.08,4048000,0.08,4048000,0.08,4048000,848000,42400,106000,53000,307400,254400,95400,93280,71020,31800,5300,190800,63600,151580,106000,424000,53000,0,null,"C13"]
["MotocicletaDeportivayCalle135cc165ccIntervalodeprecio3Suzuki GIXXER 150 MT 150CC1Suzuki Motor De Colombia S.A.","MotocicletaDeportivayCalle135cc165ccIntervalodeprecio3","Suzuki GIXXER 150 MT 150CC1","Suzuki Motor De Colombia S.A.","Motocicleta Deportiva y Calle","135cc - 165cc",null,"Intervalo de precio 3","Gasolina",null,"Suzuki",8817149,"GIXXER","150","MT 150CC",7600000,0.12,6688000,0.125,6650000,0.126,6642400,0.127,6634800,0.129,6619600,0.13,6612000,2396299.0699999998,76501.259999999995,1,489720,374023.65,766762.76599999995,"NA",231333.234,231333.234,412296.43400000001,118465.60000000001,191224,85817.600000000006,354464,149248,"NA",78355.199999999997,1,null,"C14"]
["MotocicletaDeportivayCalle135cc165ccIntervalodeprecio3Yamaha FZ-S FI 2.0 MT 150CC1Incolmotos Yamaha S.A.","MotocicletaDeportivayCalle135cc165ccIntervalodeprecio3","Yamaha FZ-S FI 2.0 MT 150CC1","Incolmotos Yamaha S.A.","Motocicleta Deportiva y Calle","135cc - 165cc",null,"Intervalo de precio 3","Gasolina",null,"Yamaha",9817189,"FZ-S","FI 2.0","MT 150CC",6500000,0.05,6175000,5.2999999999999999E-2,6155500,5.3999999999999999E-2,6149000,5.5E-2,6142500,0.06,6110000,7.0000000000000007E-2,6045000,980410,42400,95400,7950,455800,1051308,79500,159000,148400,190800,95400,307400,81620,222600,116600,0,33920,1,null,"C14"]
["MotocicletaDeportivayCalle166cc190ccIntervalodeprecio1TVS APACHE [2] RTR180 MT 180CC1Colombiana De Comercio S.A. Siglas Corbeta S.A. y/o Alkosto S.A.","MotocicletaDeportivayCalle166cc190ccIntervalodeprecio1","TVS APACHE [2] RTR180 MT 180CC1","Colombiana De Comercio S.A. Siglas Corbeta S.A. y/o Alkosto S.A.","Motocicleta Deportiva y Calle","166cc - 190cc ",null,"Intervalo de precio 1","Gasolina",null,"TVS",29517007,"APACHE [2]","RTR180","MT 180CC",5500000,0.08,5060000,0.08,5060000,0.08,5060000,0.08,5060000,0.08,5060000,0.08,5060000,848000,42400,169600,53000,307400,254400,95400,93280,71020,31800,5300,190800,63600,151580,106000,424000,53000,1,null,"C15"]
["MotocicletaDeportivayCalle166cc190ccIntervalodeprecio1AKT AK CR5 MT 180CC0Colombiana De Comercio S.A. Siglas Corbeta S.A. y/o Alkosto S.A.","MotocicletaDeportivayCalle166cc190ccIntervalodeprecio1","AKT AK CR5 MT 180CC0","Colombiana De Comercio S.A. Siglas Corbeta S.A. y/o Alkosto S.A.","Motocicleta Deportiva y Calle","166cc - 190cc ",null,"Intervalo de precio 1","Gasolina",null,"AKT",15917040,"AK","CR5","MT 180CC",4900000,0.08,4508000,0.08,4508000,0.08,4508000,0.08,4508000,0.08,4508000,0.08,4508000,848000,42400,95400,53000,307400,254400,95400,93280,71020,31800,5300,190800,63600,151580,106000,424000,53000,0,null,"C15"]
["MotocicletaDeportivayCalle166cc190ccIntervalodeprecio1Auteco BAJAJ PULSAR UG MT 180CC1Autotecnica Colombiana S.A.S","MotocicletaDeportivayCalle166cc190ccIntervalodeprecio1","Auteco BAJAJ PULSAR UG MT 180CC1","Autotecnica Colombiana S.A.S","Motocicleta Deportiva y Calle","166cc - 190cc ",null,"Intervalo de precio 1","Gasolina",null,"Auteco",317045,"BAJAJ","PULSAR UG","MT 180CC",5700000,0.1,5130000,0.1,5130000,0.1,5130000,0.1,5130000,0.1,5130000,0.1,5130000,1535000,137800,1335000,65720,413400,328600,226840,259700,174900,355100,111300,143100,148400,492900,75789.563449599998,302100,116600,1,null,"C15"]
["MotocicletaDeportivayCalle191cc220ccIntervalodeprecio2Auteco BAJAJ PULSAR AS 200 MT 200CC0Autotecnica Colombiana S.A.S","MotocicletaDeportivayCalle191cc220ccIntervalodeprecio2","Auteco BAJAJ PULSAR AS 200 MT 200CC0","Autotecnica Colombiana S.A.S","Motocicleta Deportiva y Calle","191 cc - 220cc",null,"Intervalo de precio 2","Gasolina",null,"Auteco",317066,"BAJAJ","PULSAR AS 200","MT 200CC",9500000,0.1,8550000,0.1,8550000,0.1,8550000,0.1,8550000,0.1,8550000,0.1,8550000,1630000,130000,1260000,62000,390000,310000,214000,245000,165000,335000,105000,135000,140000,465000,71499.588159999999,285000,110000,0,null,"C16"]
["MotocicletaDeportivayCalle191cc220ccIntervalodeprecio2Auteco BAJAJ PULSAR 200 NS MT 200CC1Autotecnica Colombiana S.A.S","MotocicletaDeportivayCalle191cc220ccIntervalodeprecio2","Auteco BAJAJ PULSAR 200 NS MT 200CC1","Autotecnica Colombiana S.A.S","Motocicleta Deportiva y Calle","191 cc - 220cc",null,"Intervalo de precio 2","Gasolina",null,"Auteco",317057,"BAJAJ","PULSAR 200 NS","MT 200CC",8600000,0.1,7740000,0.1,7740000,0.1,7740000,0.1,7740000,0.1,7740000,0.1,7740000,1727800,137800,1335600,65720,413400,328600,226840,259700,174900,355100,111300,143100,148400,492900,75789.563449599998,302100,116600,1,null,"C16"]
["MotocicletaDeportivayCalle191cc220ccIntervalodeprecio1Auteco BAJAJ AVENGER 220 MT 220CC0Autotecnica Colombiana S.A.S","MotocicletaDeportivayCalle191cc220ccIntervalodeprecio1",{"$f":"K34&\" \"&M34&\" \"&N34&\" \"&O34&AT34","v":"Auteco BAJAJ AVENGER 220 MT 220CC0"},"Autotecnica Colombiana S.A.S","Motocicleta Deportiva y Calle","191 cc - 220cc",null,"Intervalo de precio 1","Gasolina",null,"Auteco",317058,"BAJAJ","AVENGER 220","MT 220CC",4700000,0.1,4230000,0.1,4230000,0.1,4230000,0.1,4230000,0.1,4230000,0.1,4230000,1395000,118916.05439999999,1149172.9312,56299.068799999994,356642,284559.59999999998,195000,223183.99999999997,153212.79999999999,307230.26879999996,96512,124358.12479999999,129438.27519999999,422240,64999.625599999999,259375.99999999997,101036,0,null,"C17"]
["MotocicletaDeportivayCalle221cc274ccIntervalodeprecio1Kawasaki Z Z250 SL MT 250CC1Autotecnica Colombiana S.A.S","MotocicletaDeportivayCalle221cc274ccIntervalodeprecio1","Kawasaki Z Z250 SL MT 250CC1","Autotecnica Colombiana S.A.S","Motocicleta Deportiva y Calle","221cc - 274cc",null,"Intervalo de precio 1","Gasolina",null,"Kawasaki",4517131,"Z","Z250 SL","MT 250CC",15000000,0.06,14100000,0.06,14100000,0.06,14100000,0.06,14100000,0.06,14100000,0.06,14100000,4324800,137800,1335600,62000,413400,328600,226840,259700,174900,355100,111300,143100,148400,492900,75789.563449599998,302100,116600,1,null,"C18"]
["MotocicletaDeportivayCalle221cc274ccIntervalodeprecio2Suzuki DL 250 [V STROM] [2] MT 250CC1Suzuki Motor De Colombia S.A.","MotocicletaDeportivayCalle221cc274ccIntervalodeprecio2","Suzuki DL 250 [V STROM] [2] MT 250CC1","Suzuki Motor De Colombia S.A.","Motocicleta Deportiva y Calle","221cc - 274cc",null,"Intervalo de precio 2","Gasolina",null,"Suzuki",8817161,"DL","250 [V STROM] [2]","MT 250CC",19500000,1E-3,19480500,1E-3,19480500,1E-3,19480500,1E-3,19480500,1E-3,19480500,0.03,18915000,4583867,298259,587000,420000,320775,657601,0,198399,198399,353599,101600,164000,86940,304000,128000,282283,140155,1,null,"C19"]
["MotocicletaDeportivayCalle325cc525ccIntervalodeprecio1Suzuki GS 500 MT 500CC0Suzuki Motor De Colombia S.A.","MotocicletaDeportivayCalle325cc525ccIntervalodeprecio1","Suzuki GS 500 MT 500CC0","Suzuki Motor De Colombia S.A.","Motocicleta Deportiva y Calle","325cc - 525cc",null,"Intervalo de precio 1","Gasolina",null,"Suzuki",8817056,"GS","500","MT 500CC",18200000,0.06,17108000,6.5000000000000002E-2,17017000,6.6000000000000003E-2,16998800,6.7000000000000004E-2,16980600,6.9000000000000006E-2,16944200,7.0000000000000007E-2,16926000,8988105.1699999999,121730.4,1,489720,374023.65,766762.76599999995,"NA",231333.234,231333.234,412296.43400000001,118465.60000000001,191224,293832,354464,149248,"NA",139150.44,0,null,"C20"]
["MotocicletaDeportivayCalle325cc525ccIntervalodeprecio1Honda CB 500 F MT 500CC ABS1Fanalca ","MotocicletaDeportivayCalle325cc525ccIntervalodeprecio1","Honda CB 500 F MT 500CC ABS1","Fanalca ","Motocicleta Deportiva y Calle","325cc - 525cc",null,"Intervalo de precio 1","Gasolina",null,"Honda",3417174,"CB","500 F","MT 500CC ABS",28000000,0,28000000,0.02,27440000,0.03,27160000,0.04,26880000,0.05,26600000,0.05,26600000,6266859,123600,100000,15000,442900,1030000,360000,154500,154500,166600,83300,293550,116600,195700,92700,210000,72100,1,null,"C20"]
["MotocicletaDoblePropositoTipoEnduro100cc125ccIntervalodeprecio2Yamaha XTZ [2] 125 MT 125CC1Incolmotos Yamaha S.A.","MotocicletaDoblePropositoTipoEnduro100cc125ccIntervalodeprecio2","Yamaha XTZ [2] 125 MT 125CC1","Incolmotos Yamaha S.A.","Motocicleta Doble Proposito Tipo Enduro","100cc - 125cc",null,"Intervalo de precio 2","Gasolina",null,"Yamaha",9817188,"XTZ [2]","125","MT 125CC",6600000,0,6600000,0,6600000,0,6600000,0.01,6534000,1.4999999999999999E-2,6501000,0.02,6468000,2702000,132500,159000,9540,527880,1168120,95400,180200,169600,222600,95400,360400,106000,254400,148400,0,10600,1,null,"C21"]
["MotocicletaDoblePropositoTipoEnduro126cc165ccIntervalodeprecio2Kawasaki KLX 150 MT 150CC1Autotecnica Colombiana S.A.S","MotocicletaDoblePropositoTipoEnduro126cc165ccIntervalodeprecio2","Kawasaki KLX 150 MT 150CC1","Autotecnica Colombiana S.A.S","Motocicleta Doble Proposito Tipo Enduro","126cc - 165cc",null,"Intervalo de precio 2","Gasolina",null,"Kawasaki",4517112,"KLX","150","MT 150CC",8200000,0.06,7708000,0.06,7708000,0.06,7708000,0.06,7708000,0.06,7708000,0.06,7708000,1749000.0000000002,137800,1229600,65720,413400,328600,226840,259700,174900,355100,111300,143100,148400,492900,75789.563449599998,302100,116600,1,null,"C22"]
["MotocicletaDoblePropositoTipoEnduro166cc190ccIntervalodeprecio1AKT TTR 180 MT 180CC0Colombiana De Comercio S.A. Siglas Corbeta S.A. y/o Alkosto S.A.","MotocicletaDoblePropositoTipoEnduro166cc190ccIntervalodeprecio1","AKT TTR 180 MT 180CC0","Colombiana De Comercio S.A. Siglas Corbeta S.A. y/o Alkosto S.A.","Motocicleta Doble Proposito Tipo Enduro","166cc - 190cc",null,"Intervalo de precio 1","Gasolina",null,"AKT",15917042,"TTR","180","MT 180CC",4500000,0.08,4140000,0.08,4140000,0.08,4140000,0.08,4140000,0.08,4140000,0.08,4140000,848000,42400,106000,53000,307400,254400,95400,93280,71020,31800,5300,190800,63600,151580,106000,424000,53000,0,null,"C23"]
["MotocicletaDoblePropositoTipoEnduro166cc190ccIntervalodeprecio1AKT TTX 180 MT 180CC0Colombiana De Comercio S.A. Siglas Corbeta S.A. y/o Alkosto S.A.","MotocicletaDoblePropositoTipoEnduro166cc190ccIntervalodeprecio1","AKT TTX 180 MT 180CC0","Colombiana De Comercio S.A. Siglas Corbeta S.A. y/o Alkosto S.A.","Motocicleta Doble Proposito Tipo Enduro","166cc - 190cc",null,"Intervalo de precio 1","Gasolina",null,"AKT",15917043,"TTX","180","MT 180CC",5000000,0.08,4600000,0.08,4600000,0.08,4600000,0.08,4600000,0.08,4600000,0.08,4600000,848000,42400,106000,53000,307400,254400,95400,93280,71020,31800,5300,190800,63600,151580,106000,424000,53000,0,null,"C23"]
["MotocicletaDoblePropositoTipoEnduro191cc225ccIntervalodeprecio2Suzuki DRX 200 MT 200CC1Suzuki Motor De Colombia S.A.","MotocicletaDoblePropositoTipoEnduro191cc225ccIntervalodeprecio2","Suzuki DRX 200 MT 200CC1","Suzuki Motor De Colombia S.A.","Motocicleta Doble Proposito Tipo Enduro","191cc - 225cc",null,"Intervalo de precio 2","Gasolina",null,"Suzuki",8817150,"DRX","200","MT 200CC",12700000,0.08,11684000,8.5000000000000006E-2,11620500,8.5999999999999993E-2,11607800,8.6999999999999994E-2,11595100,8.8999999999999996E-2,11569700,0.09,11557000,4038502.0590452999,150520.106,1,489720,358108.91599999997,766762.76599999995,"NA",231333.234,231333.234,412296.43400000001,118465.60000000001,191224,101372.04,354464,149248,"NA",61704.72,1,null,"C24"]
["MotocicletaDoblePropositoTipoEnduro226cc274ccIntervalodeprecio2Kawasaki KLX 250 MT 250CC1Autotecnica Colombiana S.A.S","MotocicletaDoblePropositoTipoEnduro226cc274ccIntervalodeprecio2","Kawasaki KLX 250 MT 250CC1","Autotecnica Colombiana S.A.S","Motocicleta Doble Proposito Tipo Enduro","226cc - 274cc",null,"Intervalo de precio 2","Gasolina","KLX 250 MT 250CC","Kawasaki",4517108,"KLX",250,"MT 250CC",18300000,0.05,17385000,0.05,17385000,0.05,17385000,0.05,17385000,0.05,17385000,0.05,17385000,3922000,137800,1335600,65720,413400,328600,226840,259700,174900,355100,111300,143100,148400,492900,75789.563449599998,302100,116600,1,null,"C25"]
["MotocicletaDoblePropositoTipoEnduro226cc274ccIntervalodeprecio2Yamaha XTZ [1] 250 MT 250CC1Incolmotos Yamaha S.A.","MotocicletaDoblePropositoTipoEnduro226cc274ccIntervalodeprecio2","Yamaha XTZ [1] 250 MT 250CC1","Incolmotos Yamaha S.A.","Motocicleta Doble Proposito Tipo Enduro","226cc - 274cc",null,"Intervalo de precio 2","Gasolina",null,"Yamaha",9817137,"XTZ [1]","250","MT 250CC",15900000,0.03,15423000,0.03,15423000,3.5000000000000003E-2,15343500,0.04,15264000,0.04,15264000,0.05,15105000,3469000,137800,201400,9540,527880,1168120,95400,180200,169600,212000,95400,328600,106000,243800,137800,954000,63600,1,null,"C25"]
["MotocicletaDoblePropositoTipoEnduro275cc324ccIntervalodeprecio1Honda XRE 300 MT 300CC1Fanalca ","MotocicletaDoblePropositoTipoEnduro275cc324ccIntervalodeprecio1","Honda XRE 300 MT 300CC1","Fanalca ","Motocicleta Doble Proposito Tipo Enduro","275cc - 324cc",null,"Intervalo de precio 1","Gasolina",null,"Honda",3417173,"XRE","300","MT 300CC",15500000,0,15500000,0.02,15190000,0.03,15035000,3.5000000000000003E-2,14957500,0.04,14880000,4.4999999999999998E-2,14802500,3700000,116600,80000,15000,442900,916300,360000,154500,154500,166600,83300,293550,116600,195700,92700,210000,0,1,null,"C26"]
["MotocicletaDoblePropositoTipoEnduro600cc670ccIntervalodeprecio1Yamaha XT 660 R MT 660CC1Incolmotos Yamaha S.A.","MotocicletaDoblePropositoTipoEnduro600cc670ccIntervalodeprecio1","Yamaha XT 660 R MT 660CC1","Incolmotos Yamaha S.A.","Motocicleta Doble Proposito Tipo Enduro","600cc - 670cc",null,"Intervalo de precio 1","Gasolina",null,"Yamaha",9817128,"XT","660 R","MT 660CC",26900000,0.05,25555000,5.5E-2,25420500,5.7000000000000002E-2,25366700,0.06,25286000,6.5000000000000002E-2,25151500,7.0000000000000007E-2,25017000,1839000,53000,170660,7950,455800,1051308,79500,159000,148400,190800,84800,307400,95400,222600,106000,954000,29680,1,null,"C27"]
["MotocicletaDoblePropositoTipoEnduro600cc670ccIntervalodeprecio1Suzuki DR 650 MT 650CC1Suzuki Motor De Colombia S.A.","MotocicletaDoblePropositoTipoEnduro600cc670ccIntervalodeprecio1","Suzuki DR 650 MT 650CC1","Suzuki Motor De Colombia S.A.","Motocicleta Doble Proposito Tipo Enduro","600cc - 670cc",null,"Intervalo de precio 1","Gasolina",null,"Suzuki",8817058,"DR","650","MT 650CC",24600000,0.06,23124000,6.5000000000000002E-2,23001000,6.6000000000000003E-2,22976400,6.7000000000000004E-2,22951800,6.9000000000000006E-2,22902600,7.0000000000000007E-2,22878000,6242840.9559999993,249432.60683999999,1,489720,358108.91599999997,766762.76599999995,"NA",231333.234,231333.234,412296.43400000001,118465.60000000001,191224,101372.04,354464,149248,"NA",80436.509999999995,1,null,"C27"]
["MotocicletaDoblePropositoTipoEnduro600cc670ccIntervalodeprecio1Kawasaki KLR KL650 MT 650CC1Autotecnica Colombiana S.A.S","MotocicletaDoblePropositoTipoEnduro600cc670ccIntervalodeprecio1","Kawasaki KLR KL650 MT 650CC1","Autotecnica Colombiana S.A.S","Motocicleta Doble Proposito Tipo Enduro","600cc - 670cc",null,"Intervalo de precio 1","Gasolina",null,"Kawasaki",4517102,"KLR","KL650","MT 650CC",32200000,0.05,30590000,0.05,30590000,0.05,30590000,0.05,30590000,0.05,30590000,0.05,30590000,4229400,137800,1590000,65720,413400,328600,226840,259700,174900,355100,111300,143100,148400,492900,75789.563449599998,302100,116600,1,null,"C28"]
["MotocicletaDoblePropositoTipoTurismo600cc670ccIntervalodeprecio2Suzuki DL 650XT [V STROM] [2] MT 650CC ABS1Suzuki Motor De Colombia S.A.","MotocicletaDoblePropositoTipoTurismo600cc670ccIntervalodeprecio2","Suzuki DL 650XT [V STROM] [2] MT 650CC ABS1","Suzuki Motor De Colombia S.A.","Motocicleta Doble Proposito Tipo Turismo","600cc - 670cc",null,"Intervalo de precio 2","Gasolina",null,"Suzuki",8817162,"DL","650XT [V STROM] [2]","MT 650CC ABS",36400000,0.06,34216000,6.5000000000000002E-2,34034000,6.6000000000000003E-2,33997600,6.7000000000000004E-2,33961200,6.9000000000000006E-2,33888400,7.0000000000000007E-2,33852000,9373999.8266402408,127200.106,157410,489720,358107.75,766762.76599999995,1302701.8400000001,231333.234,231333.234,412296.43400000001,118465.60000000001,191224,167483.07399999999,354464,149248,329141.978,50686.02,1,null,"C29"]
["MotocicletaDoblePropositoTipoTurismo750cc850ccIntervalodeprecio2Yamaha MT 09 TRACER MT 850CC ABS1Incolmotos Yamaha S.A.","MotocicletaDoblePropositoTipoTurismo750cc850ccIntervalodeprecio2","Yamaha MT 09 TRACER MT 850CC ABS1","Incolmotos Yamaha S.A.","Motocicleta Doble Proposito Tipo Turismo","750cc - 850cc",null,"Intervalo de precio 2","Gasolina",null,"Yamaha",9817187,"MT","09 TRACER","MT 850CC ABS",41000000,0,41000000,0,41000000,0,41000000,0,41000000,0,41000000,0,41000000,5334000,233200,135680,12720,527880,1168120,95400,180200,169600,212000,95400,349800,127200,254400,148400,2650000,318000,1,null,"C30"]
["MotocicletaDoblePropositoTipoTurismo851cc1099ccIntervalodeprecio1Suzuki DL 1000A [V STROM] [2] MT 1000CC ABS0Suzuki Motor De Colombia S.A.","MotocicletaDoblePropositoTipoTurismo851cc1099ccIntervalodeprecio1","Suzuki DL 1000A [V STROM] [2] MT 1000CC ABS0","Suzuki Motor De Colombia S.A.","Motocicleta Doble Proposito Tipo Turismo","851cc - 1.099cc",null,"Intervalo de precio 1","Gasolina",null,"Suzuki",8817144,"DL","1000A [V STROM] [2]","MT 1000CC ABS",45100000,1E-3,45054900,1E-3,45054900,1E-3,45054900,1E-3,45054900,1E-3,45054900,0.03,43747000,{"$error":"#N/A"},{"$error":"#N/A"},{"$error":"#N/A"},{"$error":"#N/A"},{"$error":"#N/A"},{"$error":"#N/A"},{"$error":"#N/A"},{"$error":"#N/A"},{"$error":"#N/A"},{"$error":"#N/A"},{"$error":"#N/A"},{"$error":"#N/A"},{"$error":"#N/A"},{"$error":"#N/A"},{"$error":"#N/A"},{"$error":"#N/A"},{"$error":"#N/A"},0,null,"C31"]
["MotocicletaDoblePropositoTipoTurismomayora1100ccIntervalodeprecio1Yamaha XT 1200 ZE [SUPER TENERE] [2] MT 1200CC1Incolmotos Yamaha S.A.","MotocicletaDoblePropositoTipoTurismomayora1100ccIntervalodeprecio1","Yamaha XT 1200 ZE [SUPER TENERE] [2] MT 1200CC1","Incolmotos Yamaha S.A.","Motocicleta Doble Proposito Tipo Turismo","mayor a 1.100cc",null,"Intervalo de precio 1","Gasolina",null,"Yamaha",9817186,"XT","1200 ZE [SUPER TENERE] [2]","MT 1200CC",53000000,0,53000000,0,53000000,0,53000000,0,53000000,0,53000000,0,53000000,5025000,190800,135680,12720,527880,1168120,95400,180200,169600,212000,84800,328600,127200,243800,137800,2650000,387960,1,null,"C32"]
["MotocicletaElectricaTodasIntervalodeprecio1Stärker SUNNY  1Autotecnica Colombiana S.A.S","MotocicletaElectricaTodasIntervalodeprecio1","Stärker SUNNY  1","Autotecnica Colombiana S.A.S","Motocicleta Electrica","Todas",null,"Intervalo de precio 1","N/A",null,"Stärker",null,"SUNNY",null,null,4190000,null,{"$f":"$P54*(1-Q54)","v":4190000},null,{"$f":"$P54*(1-S54)","v":4190000},null,{"$f":"$P54*(1-U54)","v":4190000},null,{"$f":"$P54*(1-W54)","v":4190000},null,{"$f":"$P54*(1-Y54)","v":4190000},null,{"$f":"$P54*(1-AA54)","v":4190000},1,130000,1500000,62000,390000,310000,214000,245000,165000,335000,105000,135000,140000,465000,71499.588159999999,285000,110000,1,null,"C33"]
["MotocicletaElectricaTodasIntervalodeprecio1Stärker SHIPPER ST  0Autotecnica Colombiana S.A.S","MotocicletaElectricaTodasIntervalodeprecio1","Stärker SHIPPER ST  0","Autotecnica Colombiana S.A.S","Motocicleta Electrica","Todas",null,"Intervalo de precio 1","N/A",null,"Stärker",null,"SHIPPER ST",null,null,3390000,null,{"$f":"$P55*(1-Q55)","v":3390000},null,{"$f":"$P55*(1-S55)","v":3390000},null,{"$f":"$P55*(1-U55)","v":3390000},null,{"$f":"$P55*(1-W55)","v":3390000},null,{"$f":"$P55*(1-Y55)","v":3390000},null,{"$f":"$P55*(1-AA55)","v":3390000},1,130000,1500000,62000,390000,310000,214000,245000,165000,335000,105000,135000,140000,465000,71499.588159999999,285000,110000,0,null,"C33"]
["MotocicletaElectricaTodasIntervalodeprecio1Stärker SHIPPER  1Autotecnica Colombiana S.A.S","MotocicletaElectricaTodasIntervalodeprecio1","Stärker SHIPPER  1","Autotecnica Colombiana S.A.S","Motocicleta Electrica","Todas",null,"Intervalo de precio 1","N/A",null,"Stärker",null,"SHIPPER",null,null,3990000,null,{"$f":"$P56*(1-Q56)","v":3990000},null,{"$f":"$P56*(1-S56)","v":3990000},null,{"$f":"$P56*(1-U56)","v":3990000},null,{"$f":"$P56*(1-W56)","v":3990000},null,{"$f":"$P56*(1-Y56)","v":3990000},null,{"$f":"$P56*(1-AA56)","v":3990000},1,130000,1500000,62000,390000,310000,214000,245000,165000,335000,105000,135000,140000,465000,71499.588159999999,285000,110000,1,null,"C33"]
["MotocicletaMopedTodosIntervalodeprecio1AKT AK 110S [2] MT 110CC1Colombiana De Comercio S.A. Siglas Corbeta S.A. y/o Alkosto S.A.","MotocicletaMopedTodosIntervalodeprecio1","AKT AK 110S [2] MT 110CC1","Colombiana De Comercio S.A. Siglas Corbeta S.A. y/o Alkosto S.A.","Motocicleta Moped","Todos",null,"Intervalo de precio 1","Gasolina",null,"AKT",15917024,"AK","110S [2]","MT 110CC",2500000,0.08,2300000,0.08,2300000,0.08,2300000,0.08,2300000,0.08,2300000,0.08,2300000,848000,0,106000,53000,307400,254400,95400,93280,71020,31800,5300,190800,63600,151580,106000,424000,53000,1,null,"C34"]
["MotocicletaMopedTodosIntervalodeprecio1Kymco ADVANCE 110 MT 110CC1Autotecnica Colombiana S.A.S","MotocicletaMopedTodosIntervalodeprecio1","Kymco ADVANCE 110 MT 110CC1","Autotecnica Colombiana S.A.S","Motocicleta Moped","Todos",null,"Intervalo de precio 1","Gasolina",null,"Kymco",39617003,"ADVANCE","110","MT 110CC",3700000,0.1,3330000,0.1,3330000,0.1,3330000,0.1,3330000,0.1,3330000,0.1,3600000,1585000,130000,1500000,62000,390000,310000,214000,245000,165000,335000,105000,135000,140000,465000,71499.588159999999,285000,110000,1,null,"C34"]
["MotocicletaMopedTodosIntervalodeprecio2AKT FLEX CYCLONE 125 MT 125CC1Colombiana De Comercio S.A. Siglas Corbeta S.A. y/o Alkosto S.A.","MotocicletaMopedTodosIntervalodeprecio2","AKT FLEX CYCLONE 125 MT 125CC1","Colombiana De Comercio S.A. Siglas Corbeta S.A. y/o Alkosto S.A.","Motocicleta Moped","Todos",null,"Intervalo de precio 2","Gasolina",null,"AKT",15917037,"FLEX","CYCLONE 125","MT 125CC",3500000,0.08,3220000,0.08,3220000,0.08,3220000,0.08,3220000,0.08,3220000,0.08,3220000,848000,0,63600,53000,307400,254400,95400,93280,71020,31800,5300,190800,63600,151580,106000,424000,53000,1,null,"C35"]
["MotocicletaMopedTodosIntervalodeprecio2Kymco UNI-K 110 MT 110CC1Autotecnica Colombiana S.A.S","MotocicletaMopedTodosIntervalodeprecio2","Kymco UNI-K 110 MT 110CC1","Autotecnica Colombiana S.A.S","Motocicleta Moped","Todos",null,"Intervalo de precio 2","Gasolina",null,"Kymco",10117015,"UNI-K","110","MT 110CC",4200000,0.1,3780000,0.1,3780000,0.1,3780000,0.1,3780000,0.1,3780000,0.1,3780000,1740000,130000,1160000,62000,390000,310000,214000,245000,165000,335000,105000,135000,140000,465000,71499.588159999999,285000,110000,1,null,"C35"]
["MotocicletaMopedTodosIntervalodeprecio3Suzuki VIVA R STYLE MT 113 CC1Suzuki Motor De Colombia S.A.","MotocicletaMopedTodosIntervalodeprecio3","Suzuki VIVA R STYLE MT 113 CC1","Suzuki Motor De Colombia S.A.","Motocicleta Moped","Todos",null,"Intervalo de precio 3","Gasolina",null,"Suzuki",8817147,"VIVA R","STYLE","MT 113 CC",6100000,0.12,5368000,0.125,5337500,0.126,5331400,0.127,5325300,0.129,5313100,0.13,5307000,2226620.5337068001,"NA",1,489720,"NA","NA","NA",231333.234,231333.234,412296.43400000001,118465.60000000001,191224,"NA",354464,149248,"NA","NA",1,null,"C36"]
["MotocicletaMopedTodosIntervalodeprecio3Yamaha CRYPTON [2] T115 MT 115CC1Incolmotos Yamaha S.A.","MotocicletaMopedTodosIntervalodeprecio3","Yamaha CRYPTON [2] T115 MT 115CC1","Incolmotos Yamaha S.A.","Motocicleta Moped","Todos",null,"Intervalo de precio 3","Gasolina",null,"Yamaha",9817153,"CRYPTON [2]","T115","MT 115CC",5100000,0.04,4896000,4.4999999999999998E-2,4870500,0.05,4845000,5.5E-2,4819500,0.06,4794000,7.0000000000000007E-2,4743000,1961000,0,72080,7950,455800,1051308,79500,159000,148400,190800,84800,307400,81620,222600,116600,0,3180,1,null,"C36"]
["MotocicletaScooter90cc123ccIntervalodeprecio2Suzuki LETS 112 MT 112CC1Suzuki Motor De Colombia S.A.","MotocicletaScooter90cc123ccIntervalodeprecio2","Suzuki LETS 112 MT 112CC1","Suzuki Motor De Colombia S.A.","Motocicleta Scooter","90cc - 123cc",null,"Intervalo de precio 2","Gasolina",null,"Suzuki",8817146,"LETS","112","MT 112CC",4800000,0.12,4224000,0.125,4200000,0.126,4195200,0.127,4190400,0.129,4180800,0.13,4176000,1811807.7560000001,"NA",1,489720,"NA","NA","NA",231333.234,231333.234,412296.43400000001,118465.60000000001,191224,"NA",354464,149248,"NA","NA",1,null,"C37"]
["MotocicletaScooter90cc123ccIntervalodeprecio2Yamaha FINO [2] AF115 AT 115CC1Incolmotos Yamaha S.A.","MotocicletaScooter90cc123ccIntervalodeprecio2","Yamaha FINO [2] AF115 AT 115CC1","Incolmotos Yamaha S.A.","Motocicleta Scooter","90cc - 123cc",null,"Intervalo de precio 2","Gasolina",null,"Yamaha",9817191,"FINO [2]","AF115","AT 115CC",5700000,0.03,5529000,3.2000000000000001E-2,5517600,3.3000000000000002E-2,5511900,3.4000000000000002E-2,5506200,3.5999999999999997E-2,5494800,0.04,5472000,1810000,0,116600,7950,455800,1051308,95400,180200,169600,212000,95400,349800,81620,254400,116600,0,63600,1,null,"C37"]
["MotocicletaScooter123cc134ccIntervalodeprecio1AKT DYNAMIC 125 AT 125CC0Colombiana De Comercio S.A. Siglas Corbeta S.A. y/o Alkosto S.A.","MotocicletaScooter123cc134ccIntervalodeprecio1","AKT DYNAMIC 125 AT 125CC0","Colombiana De Comercio S.A. Siglas Corbeta S.A. y/o Alkosto S.A.","Motocicleta Scooter","123cc - 134cc",null,"Intervalo de precio 1","Gasolina",null,"AKT",15917013,"DYNAMIC","125","AT 125CC",3600000,0.08,3312000,0.08,3312000,0.08,3312000,0.08,3312000,0.08,3312000,0.08,3312000,848000,42400,74200,53000,307400,254400,95400,93280,71020,31800,5300,190800,63600,151580,106000,424000,53000,0,null,"C38"]
["MotocicletaScooter123cc134ccIntervalodeprecio2Kymco FLY 125 AT 125CC1Autotecnica Colombiana S.A.S","MotocicletaScooter123cc134ccIntervalodeprecio2",{"$f":"K66&\" \"&M66&\" \"&N66&\" \"&O66&AT66","v":"Kymco FLY 125 AT 125CC1"},"Autotecnica Colombiana S.A.S","Motocicleta Scooter","123cc - 134cc",null,"Intervalo de precio 2","Gasolina",null,"Kymco",10117016,"FLY","125","AT 125CC",5600000,0.1,5040000,0.1,5040000,0.1,5040000,0.1,5040000,0.1,5040000,0.1,5040000,1980000,118916.05439999999,1055600,56299.068799999994,356642,284559.59999999998,195000,223183.99999999997,153212.79999999999,307230.26879999996,96512,124358.12479999999,129438.27519999999,422240,64999.625599999999,259375.99999999997,101036,1,null,"C39"]
[{"$f":"B67&C67&D67","v":"MotocicletaScooter123cc134ccIntervalodeprecio2Kymco AGILITY RS NAKED AT 125CC1Autotecnica Colombiana S.A.S"},{"$f":"SUBSTITUTE(SUBSTITUTE(SUBSTITUTE(E67&F67&H67,\".\",\"\"),\" \",\"\"),\"-\",\"\")","v":"MotocicletaScooter123cc134ccIntervalodeprecio2"},"Kymco AGILITY RS NAKED AT 125CC1","Autotecnica Colombiana S.A.S","Motocicleta Scooter","123cc - 134cc",null,"Intervalo de precio 2","Gasolina",null,"Kymco",10117013,"AGILITY","RS NAKED","AT 125CC",6200000,0.1,{"$f":"$P67*(1-Q67)","v":5580000},0.1,{"$f":"$P67*(1-S67)","v":5580000},0.1,{"$f":"$P67*(1-U67)","v":5580000},0.1,{"$f":"$P67*(1-W67)","v":5580000},0.1,{"$f":"$P67*(1-Y67)","v":5580000},0.1,5580000,2308680,137800,1229600,65720,413400,328600,226840,259700,174900,355100,111300,143100,148400,492900,75789.563449599998,302100,116600,1,null,"C39"]
["MotocicletaScooter123cc134ccIntervalodeprecio2Kymco AGILITY DIGITAL AT 125CC1Autotecnica Colombiana S.A.S","MotocicletaScooter123cc134ccIntervalodeprecio2","Kymco AGILITY DIGITAL AT 125CC1","Autotecnica Colombiana S.A.S","Motocicleta Scooter","123cc - 134cc",null,"Intervalo de precio 2","Gasolina",null,"Kymco",10117019,"AGILITY","DIGITAL","AT 125CC",6700000,0.1,6030000,0.1,6030000,0.1,6030000,0.1,6030000,0.1,6030000,0.1,6030000,2308680,137800,1229600,65720,413400,328600,226840,259700,174900,355100,111300,143100,148400,492900,75789.563449599998,302100,116600,1,null,"C39"]
["MotocicletaScooter123cc134ccIntervalodeprecio2Kymco URBAN S AT 125CC1Autotecnica Colombiana S.A.S","MotocicletaScooter123cc134ccIntervalodeprecio2","Kymco URBAN S AT 125CC1","Autotecnica Colombiana S.A.S","Motocicleta Scooter","123cc - 134cc",null,"Intervalo de precio 2","Gasolina",null,"Kymco",10117026,"URBAN","S","AT 125CC",6400000,0.1,5760000,0.1,5760000,0.1,5760000,0.1,5760000,0.1,5760000,0.1,6300000,2308680,137800,1229600,65720,413400,328600,226840,259700,174900,355100,111300,143100,148400,492900,75789.563449599998,285000,116600,1,null,"C39"]
["MotocicletaScooter123cc134ccIntervalodeprecio3Yamaha BWS X MOTARD [YW 125X] AT 125CC1Incolmotos Yamaha S.A.","MotocicletaScooter123cc134ccIntervalodeprecio3","Yamaha BWS X MOTARD [YW 125X] AT 125CC1","Incolmotos Yamaha S.A.","Motocicleta Scooter","123cc - 134cc",null,"Intervalo de precio 3","Gasolina",null,"Yamaha",9817179,"BWS","X MOTARD [YW 125X]","AT 125CC",7600000,0,7600000,0,7600000,0,7600000,0,7600000,0,7600000,0,{"$f":"$P70*(1-AA70)","v":7600000},1722000,0,68900,9540,527880,1168120,95400,180200,169600,212000,95400,349800,95400,254400,148400,0,3180,1,null,"C40"]
["MotocicletaScooter135cc160ccIntervalodeprecio1AKT JET 5 R AT 150CC0Colombiana De Comercio S.A. Siglas Corbeta S.A. y/o Alkosto S.A.","MotocicletaScooter135cc160ccIntervalodeprecio1","AKT JET 5 R AT 150CC0","Colombiana De Comercio S.A. Siglas Corbeta S.A. y/o Alkosto S.A.","Motocicleta Scooter","135cc - 160cc",null,"Intervalo de precio 1","Gasolina",null,"AKT",15917034,"JET","5 R","AT 150CC",5000000,0.08,4600000,0.08,4600000,0.08,4600000,0.08,4600000,0.08,4600000,0.08,4600000,848000,42400,116600,53000,307400,254400,95400,93280,71020,31800,5300,190800,63600,151580,106000,424000,53000,0,null,"C41"]
["MotocicletaScooter135cc160ccIntervalodeprecio1Kymco FLY 150 AT 150CC1Autotecnica Colombiana S.A.S","MotocicletaScooter135cc160ccIntervalodeprecio1","Kymco FLY 150 AT 150CC1","Autotecnica Colombiana S.A.S","Motocicleta Scooter","135cc - 160cc",null,"Intervalo de precio 1","Gasolina",null,"Kymco",10117021,"FLY","150","AT 150CC",6800000,0.1,6120000,0.1,6120000,0.1,6120000,0.1,6120000,0.1,6120000,0.1,6120000,2308680,137800,1314400,65720,413400,328600,226840,259700,174900,335000,111300,143100,148400,492900,75789.563449599998,302100,116600,1,null,"C41"]
["MotocicletaScooter275cc325ccIntervalodeprecio1Kymco DOWNTOWN 300 AT 300CC1Autotecnica Colombiana S.A.S","MotocicletaScooter275cc325ccIntervalodeprecio1","Kymco DOWNTOWN 300 AT 300CC1","Autotecnica Colombiana S.A.S","Motocicleta Scooter","275cc - 325cc",null,"Intervalo de precio 1","Gasolina",null,"Kymco",10117011,"DOWNTOWN","300","AT 300CC",15000000,0.06,{"$f":"$P73*(1-Q73)","v":14100000},0.06,{"$f":"$P73*(1-S73)","v":14100000},0.06,14100000,0.06,14100000,0.06,14100000,0.06,17108000,2862000,137800,1314400,65720,413400,328600,226840,259700,174900,355100,111300,143100,148400,465000,75789.563449599998,302100,116600,1,null,"C42"]
["MotocicletaDeportivayCalle191cc220ccintervalodeprecio3Auteco BAJAJ PULSAR RS 200 MT 200CC1Autotecnica Colombiana S.A.S","MotocicletaDeportivayCalle191cc220ccintervalodeprecio3","Auteco BAJAJ PULSAR RS 200 MT 200CC1","Autotecnica Colombiana S.A.S","Motocicleta Deportiva y Calle","191 cc - 220cc",null,"intervalo de precio 3","Gasolina",null,"Auteco",317067,"BAJAJ","PULSAR RS 200","MT 200CC",10000000,0.1,{"$f":"+P74*(1-Q74)","v":9000000},0.1,{"$f":"$P74*(1-S74)","v":9000000},0.1,9000000,0.1,9000000,0.1,9000000,0.1,10710000,3392000,408100.00000000006,1590000,180200,498200,1038800,259700,296800,206700,408100,132500,339200,212000,561800,137800,344500,137800,1,null,"C43"]
["MotocarroEstacasIntervalodeprecio1Auteco CAMELLITO ESTACAS MT 175CC0Autotecnica Colombiana S.A.S","MotocarroEstacasIntervalodeprecio1","Auteco CAMELLITO ESTACAS MT 175CC0","Autotecnica Colombiana S.A.S","Motocarro","Estacas",null,"Intervalo de precio 1","Gasolina",null,"Auteco",319010,"CAMELLITO","ESTACAS","MT 175CC",9300000,0.01,{"$f":"+P75*(1-Q75)","v":9207000},0.01,9207000,0.01,9207000,0.01,9207000,0.01,9207000,0.01,9207000,3870000,500000,1500000,170000,470000,980000,245000,280000,195000,385000,125000,320000,200000,530000,130000,325000,130000,0,null,"C44"]
["MotocicletaDeportivayCalle191cc220ccIntervalodeprecio1TVS APACHE 200 RTR200 MT 200CC1Colombiana De Comercio S.A. Siglas Corbeta S.A. y/o Alkosto S.A.","MotocicletaDeportivayCalle191cc220ccIntervalodeprecio1","TVS APACHE 200 RTR200 MT 200CC1","Colombiana De Comercio S.A. Siglas Corbeta S.A. y/o Alkosto S.A.","Motocicleta Deportiva y Calle","191 cc - 220cc",null,"Intervalo de precio 1","Gasolina",null,"TVS",29517010,"APACHE 200","RTR200","MT 200CC",7200000,0.08,{"$f":"+$P$76*(1-Q76)","v":6624000},0.08,{"$f":"+$P$76*(1-S76)","v":6624000},0.08,{"$f":"+$P$76*(1-U76)","v":6624000},0.08,{"$f":"+$P$76*(1-W76)","v":6624000},0.08,{"$f":"+$P$76*(1-Y76)","v":6624000},0.08,{"$f":"+$P$76*(1-AA76)","v":6624000},848000,42400,116600,53000,307400,254400,95400,93280,71020,31800,5300,190800,63600,151580,106000,424000,53000,1,null,"C17"]
["MotocicletaDoblePropositoTipoEnduro100cc125ccIntervalodeprecio1AKT TT 125 MT 125CC1Colombiana De Comercio S.A. Siglas Corbeta S.A. y/o Alkosto S.A.","MotocicletaDoblePropositoTipoEnduro100cc125ccIntervalodeprecio1","AKT TT 125 MT 125CC1","Colombiana De Comercio S.A. Siglas Corbeta S.A. y/o Alkosto S.A.","Motocicleta Doble Proposito Tipo Enduro","100cc - 125cc",null,"Intervalo de precio 1","Gasolina",null,"AKT",15917031,"TT","125","MT 125CC",4200000,0.08,{"$f":"+$P$77*(1-Q77)","v":3864000},0.08,{"$f":"+$P$77*(1-S77)","v":3864000},0.08,{"$f":"+$P$77*(1-U77)","v":3864000},0.08,{"$f":"+$P$77*(1-W77)","v":3864000},0.08,{"$f":"+$P$77*(1-Y77)","v":3864000},0.08,{"$f":"+$P$77*(1-AA77)","v":3864000},848000,42400,110000,53000,307400,254400,95400,93280,71020,31800,5300,190800,63600,151580,106000,424000,53000,1,null,"C45"]
["MotocicletaDoblePropositoTipoEnduro191cc225ccIntervalodeprecio1AKT TTR200 200 0Colombiana De Comercio S.A. Siglas Corbeta S.A. y/o Alkosto S.A.","MotocicletaDoblePropositoTipoEnduro191cc225ccIntervalodeprecio1","AKT TTR200 200 0","Colombiana De Comercio S.A. Siglas Corbeta S.A. y/o Alkosto S.A.","Motocicleta Doble Proposito Tipo Enduro","191cc - 225cc",null,"Intervalo de precio 1","Gasolina",null,"AKT",15917046,"TTR200",200,null,4900000,0.08,{"$f":"$P$78*(1-Q78)","v":4508000},0.08,{"$f":"$P$78*(1-S78)","v":4508000},0.08,{"$f":"$P$78*(1-U78)","v":4508000},0.08,{"$f":"$P$78*(1-W78)","v":4508000},0.08,{"$f":"$P$78*(1-Y78)","v":4508000},0.08,{"$f":"$P$78*(1-AA78)","v":4508000},800000,40000,110000,50000,290000,240000,90000,88000,67000,30000,5000,180000,60000,143000,100000,400000,50000,0]
["MotocicletaDoblePropositoTipoTurismo600cc670ccIntervalodeprecio1Kawasaki VERSYS [2] KLE650 MT 650CC ABS1Autotecnica Colombiana S.A.S","MotocicletaDoblePropositoTipoTurismo600cc670ccIntervalodeprecio1","Kawasaki VERSYS [2] KLE650 MT 650CC ABS1","Autotecnica Colombiana S.A.S","Motocicleta Doble Proposito Tipo Turismo","600cc - 670cc",null,"Intervalo de precio 1","Gasolina",null,"Kawasaki",4517133,"VERSYS [2]","KLE650","MT 650CC ABS",34000000,0.05,{"$f":"$P$79*(1-Q79)","v":32300000},0.05,{"$f":"$P$79*(1-S79)","v":32300000},0.05,{"$f":"$P$79*(1-U79)","v":32300000},0.05,{"$f":"$P$79*(1-W79)","v":32300000},0.05,{"$f":"$P$79*(1-Y79)","v":32300000},0.05,32300000,6360000,424000,1590000,212000,530000,1060000,318000,318000,265000,424000,190800,381600,265000,636000,212000,371000,159000,1,null,"C28"]
["MotocicletaDeportivayCalle90cc123ccIntervalodeprecio2Auteco BAJAJ BOXER BM CLASSIC [2] MT 100CC0Autotecnica Colombiana S.A.S","MotocicletaDeportivayCalle90cc123ccIntervalodeprecio2","Auteco BAJAJ BOXER BM CLASSIC [2] MT 100CC0","Autotecnica Colombiana S.A.S","Motocicleta Deportiva y Calle","90cc - 123cc",null,"Intervalo de precio 2","Gasolina",null,"Auteco",317055,"BAJAJ","BOXER BM CLASSIC [2]","MT 100CC",3000000,0.05,{"$f":"$P$80*(1-Q80)","v":2850000},0.05,{"$f":"$P$80*(1-S80)","v":2850000},0.05,{"$f":"$P$80*(1-U80)","v":2850000},0.05,{"$f":"$P$80*(1-W80)","v":2850000},0.05,{"$f":"$P$80*(1-Y80)","v":2850000},0.05,{"$f":"$P$80*(1-AA80)","v":2850000},2000000,400000,1320000,200000,500000,1000000,300000,300000,250000,400000,180000,360000,250000,600000,200000,350000,150000,0,null,"C8"]
["MotocicletaScooter123cc134ccIntervalodeprecio2Kymco TWIST 125 AT 125CC1Autotecnica Colombiana S.A.S","MotocicletaScooter123cc134ccIntervalodeprecio2","Kymco TWIST 125 AT 125CC1","Autotecnica Colombiana S.A.S","Motocicleta Scooter","123cc - 134cc",null,"Intervalo de precio 2","Gasolina","TWIST 125 AT 125CC","Kymco",10117023,"TWIST",125,"AT 125CC",4500000,0.1,{"$f":"$P$81*(1-Q81)","v":4050000},0.1,{"$f":"$P$81*(1-S81)","v":4050000},0.1,{"$f":"$P$81*(1-U81)","v":4050000},0.1,{"$f":"$P$81*(1-W81)","v":4050000},0.1,{"$f":"$P$81*(1-Y81)","v":4050000},0.1,{"$f":"$P$81*(1-AA81)","v":4050000},3710000,424000,1399200,212000,530000,1060000,318000,318000,265000,424000,190800,381600,265000,636000,212000,371000,159000,1,null,"C39"]
["MotocicletaScooter90cc123ccIntervalodeprecio1Honda DIO 110 AT 110CC1Fanalca ","MotocicletaScooter90cc123ccIntervalodeprecio1","Honda DIO 110 AT 110CC1","Fanalca ","Motocicleta Scooter","90cc - 123cc",null,"Intervalo de precio 1","Gasolina",null,"Honda",3417179,"DIO","110","AT 110CC",4200000,0,{"$f":"$P$82*(1-Q82)","v":4200000},0.04,{"$f":"$P$82*(1-S82)","v":4032000},0.06,{"$f":"$P$82*(1-U82)","v":3948000},0.08,{"$f":"$P$82*(1-W82)","v":3864000},0.1,{"$f":"$P$82*(1-Y82)","v":3780000},0.12,{"$f":"$P$82*(1-AA82)","v":3696000},2142018,116600,80000,15000,442900,1030000,360000,154500,154500,166600,83300,293550,116600,154500,92700,210000,72100,1,null,"C46"]
["MotocicletaDoblePropositoTipoTurismo750cc850ccIntervalodeprecio3Honda VFR [2] 800X MT 800CC1Fanalca ","MotocicletaDoblePropositoTipoTurismo750cc850ccIntervalodeprecio3","Honda VFR [2] 800X MT 800CC1","Fanalca ","Motocicleta Doble Proposito Tipo Turismo","750cc - 850cc",null,"Intervalo de precio 3","Gasolina",null,"Honda",3417176,"VFR [2]","800X","MT 800CC",49000000,0,{"$f":"$P$83*(1-Q83)","v":49000000},0.02,{"$f":"$P$83*(1-S83)","v":48020000},0.02,{"$f":"$P$83*(1-U83)","v":48020000},2.5000000000000001E-2,{"$f":"$P$83*(1-W83)","v":47775000},0.03,{"$f":"$P$83*(1-Y83)","v":47530000},0.04,{"$f":"$P$83*(1-AA83)","v":47040000},8637787,300000,80000,15000,442900,1030000,360000,154500,154500,166600,83300,293550,116600,154500,92700,210000,150000,1,null,"C47"]
["MotocicletaDoblePropositoTipoTurismo671cc749ccIntervalodeprecio1Honda NC [2] 750X D TP 750CC1Fanalca ","MotocicletaDoblePropositoTipoTurismo671cc749ccIntervalodeprecio1","Honda NC [2] 750X D TP 750CC1","Fanalca ","Motocicleta Doble Proposito Tipo Turismo","671cc - 749cc",null,"Intervalo de precio 1","Gasolina",null,"Honda",3417188,"NC [2]","750X D","TP 750CC",43000000,0,{"$f":"$P$84*(1-Q84)","v":43000000},0.02,{"$f":"$P$84*(1-S84)","v":42140000},0.02,{"$f":"$P$84*(1-U84)","v":42140000},2.5000000000000001E-2,{"$f":"$P$84*(1-W84)","v":41925000},0.03,{"$f":"$P$84*(1-Y84)","v":41710000},0.04,{"$f":"$P$84*(1-AA84)","v":41280000},8637787,300000,100000,15000,442900,1030000,360000,154500,154500,166600,83300,293550,116600,195700,92700,210000,150000,1,null,"C48"]
["MotocicletaDoblePropositoTipoEnduro126cc165ccIntervalodeprecio1Honda XR 150L MT 150CC1Fanalca ","MotocicletaDoblePropositoTipoEnduro126cc165ccIntervalodeprecio1","Honda XR 150L MT 150CC1","Fanalca ","Motocicleta Doble Proposito Tipo Enduro","126cc - 165cc",null,"Intervalo de precio 1","Gasolina",null,"Honda",3417167,"XR","150L","MT 150CC",7200000,0,{"$f":"$P$85*(1-Q85)","v":7200000},0.04,{"$f":"$P$85*(1-S85)","v":6912000},0.06,{"$f":"$P$85*(1-U85)","v":6768000},0.08,{"$f":"$P$85*(1-W85)","v":6624000},0.1,{"$f":"$P$85*(1-Y85)","v":6480000},0.12,{"$f":"$P$85*(1-AA85)","v":6336000},3460658,300000,100000,15000,442900,1030000,360000,154500,154500,166600,83300,293550,116600,195700,92700,210000,150000,1,null,"C49"]
["Cuatrimotos426cc500ccIntervalodeprecio2Honda TRX 500 F AT 475 CC 4X41Fanalca ","Cuatrimotos426cc500ccIntervalodeprecio2","Honda TRX 500 F AT 475 CC 4X41","Fanalca ","Cuatrimotos","426cc - 500cc",null,"Intervalo de precio 2","Gasolina",null,"Honda",3419002,"TRX","500 F","AT 475 CC 4X4",29000000,0,{"$f":"$P$86*(1-Q86)","v":29000000},0.02,{"$f":"$P$86*(1-S86)","v":28420000},0.02,{"$f":"$P$86*(1-U86)","v":28420000},2.5000000000000001E-2,{"$f":"$P$86*(1-W86)","v":28275000},0.03,{"$f":"$P$86*(1-Y86)","v":28130000},0.04,{"$f":"$P$86*(1-AA86)","v":27840000},3699172.7239999999,300000,100000,15000,442900,1030000,360000,154500,154500,166600,83300,293550,116600,195700,92700,210000,150000,1,null,"C51"]
[{"$f":"B87&C87&D87","v":"MotocicletaDoblePropositoTipoEnduro191cc225ccIntervalodeprecio1AKT TT 200 MT 200CC1Colombiana De Comercio S.A. Siglas Corbeta S.A. y/o Alkosto S.A."},{"$f":"SUBSTITUTE(SUBSTITUTE(SUBSTITUTE(E87&F87&H87,\".\",\"\"),\" \",\"\"),\"-\",\"\")","v":"MotocicletaDoblePropositoTipoEnduro191cc225ccIntervalodeprecio1"},"AKT TT 200 MT 200CC1","Colombiana De Comercio S.A. Siglas Corbeta S.A. y/o Alkosto S.A.","Motocicleta Doble Proposito Tipo Enduro","191cc - 225cc",null,"Intervalo de precio 1","Gasolina",null,"AKT",15917046,"TT",200,"MT 200CC",4900000,0.08,4508000,0.08,4508000,0.08,4508000,0.08,4508000,0.08,4508000,0.08,4508000,880000.00000000012,40000,110000,50000,290000,450000,350000,120000,80000,50000,15000,180000,80000,180000,100000,400000,50000,1]
["MotocicletaDoblePropositoTipoEnduro325cc599ccIntervalodeprecio1Honda CB 500X MT 500CC1Fanalca","MotocicletaDoblePropositoTipoEnduro325cc599ccIntervalodeprecio1","Honda CB 500X MT 500CC1","Fanalca","Motocicleta Doble Proposito Tipo Enduro","325cc - 599cc",null,"Intervalo de precio 1","Gasolina",null,"Honda",3417170,"CB","500X","MT 500CC",32300000,0,32300000,0.04,31008000,0.06,30362000,0.08,29716000,0.1,29070000,0.12,28424000,6266859,123600,100000,15000,442900,1030000,600000,154500,154500,166600,83300,293550,116600,195700,92700,210000,72100,1]
["MotocicletaDeportivayCalle275cc324ccIntervalodeprecio1Kawasaki VERSYS X KLE 300 MT 300CC1Autotecnica Colombiana S.A.S","MotocicletaDeportivayCalle275cc324ccIntervalodeprecio1","Kawasaki VERSYS X KLE 300 MT 300CC1","Autotecnica Colombiana S.A.S","Motocicleta Deportiva y Calle "," 275cc - 324cc",null,"Intervalo de precio 1","Gasolina","VERSYS X KLE 300 MT 300CC","Kawasaki",4517144,"VERSYS X","KLE 300","MT 300CC",19500000,0,{"$f":"$P$89*(1-Q89)","v":19500000},0,{"$f":"$P$89*(1-S89)","v":19500000},0.02,{"$f":"$P$89*(1-U89)","v":19110000},0.03,{"$f":"$P$89*(1-W89)","v":18915000},0.04,{"$f":"$P$89*(1-Y89)","v":18720000},0.05,{"$f":"$P$89*(1-AA89)","v":18525000},6360000,500000,1590000,212000,530000,1060000,318000,318000,265000,424000,190800,381600,265000,636000,212000,371000,200000,1]

{"sheet":"tempListas","index":11,"n_rows":2,"n_cols":1,"rows_kept":2,"cut":false,"hidden":true,"merged":[]}
["Proveedor"]
["Suzuki Motor De Colombia S.A."]

{"sheet":"Hoja2","index":12,"n_rows":148,"n_cols":1,"rows_kept":148,"cut":false,"hidden":true,"merged":[]}
[]
[]
["Etiquetas de fila"]
["AKT AK 110S [2] MT 110CC"]
["Colombiana De Comercio S.A. Siglas Corbeta S.A. y/o Alkosto S.A."]
["AKT AK 125 NKD FRENO DISCO MT 125CC"]
["Colombiana De Comercio S.A. Siglas Corbeta S.A. y/o Alkosto S.A."]
["AKT AK CR5 MT 180CC"]
["Colombiana De Comercio S.A. Siglas Corbeta S.A. y/o Alkosto S.A."]
["AKT CARGUERO 200 ZW [BAJO] MT 200CC"]
["Colombiana De Comercio S.A. Siglas Corbeta S.A. y/o Alkosto S.A."]
["AKT DYNAMIC 125 AT 125CC"]
["Colombiana De Comercio S.A. Siglas Corbeta S.A. y/o Alkosto S.A."]
["AKT EVO R3 125 MT 125CC"]
["Colombiana De Comercio S.A. Siglas Corbeta S.A. y/o Alkosto S.A."]
["AKT FLEX CYCLONE 125 MT 125CC"]
["Colombiana De Comercio S.A. Siglas Corbeta S.A. y/o Alkosto S.A."]
["AKT JET 5 R AT 150CC"]
["Colombiana De Comercio S.A. Siglas Corbeta S.A. y/o Alkosto S.A."]
["AKT RTX 150 UNISHOCK MT 150CC"]
["Colombiana De Comercio S.A. Siglas Corbeta S.A. y/o Alkosto S.A."]
["AKT TTR 180 MT 180CC"]
["Colombiana De Comercio S.A. Siglas Corbeta S.A. y/o Alkosto S.A."]
["AKT TTX 180 MT 180CC"]
["Colombiana De Comercio S.A. Siglas Corbeta S.A. y/o Alkosto S.A."]
["Auteco BAJAJ AVENGER 220 MT 220CC"]
["Autotecnica Colombiana S.A.S"]
["Auteco BAJAJ BOXER CT100 MT 100CC"]
["Autotecnica Colombiana S.A.S"]
["Auteco BAJAJ DISCOVER [3] 125 ST MT 125CC"]
["Autotecnica Colombiana S.A.S"]
["Auteco BAJAJ DISCOVER [3] 150 ST MT 150CC"]
["Autotecnica Colombiana S.A.S"]
["Auteco BAJAJ DISCOVER 150F MT 150CC"]
["Autotecnica Colombiana S.A.S"]
["Auteco BAJAJ PULSAR 135 LS MT 135CC"]
["Autotecnica Colombiana S.A.S"]
["Auteco BAJAJ PULSAR 150 NS MT 150CC"]
["Autotecnica Colombiana S.A.S"]
["Auteco BAJAJ PULSAR 200 NS MT 200CC"]
["Autotecnica Colombiana S.A.S"]
["Auteco BAJAJ PULSAR AS 200 MT 200CC"]
["Autotecnica Colombiana S.A.S"]
["Auteco BAJAJ PULSAR UG MT 180CC"]
["Autotecnica Colombiana S.A.S"]
["Honda CB 110 MT 110CC"]
["Fanalca "]
["Honda CB 500 F MT 500CC ABS"]
["Fanalca "]
["Honda DREAM NEO MT 110CC"]
["Fanalca "]
["Honda TRX 680 FA AT 680CC 4X4"]
["Fanalca "]
["Honda XRE 300 MT 300CC"]
["Fanalca "]
["Kawasaki BRUTE FORCE KVF300 AT 300CC 4X2"]
["Autotecnica Colombiana S.A.S"]
["Kawasaki BRUTE FORCE KVF750HCF AT 750CC 4X4"]
["Autotecnica Colombiana S.A.S"]
["Kawasaki KLR KL650 MT 650CC"]
["Autotecnica Colombiana S.A.S"]
["Kawasaki KLX 150 MT 150CC"]
["Autotecnica Colombiana S.A.S"]
["Kawasaki KLX 250 MT 250CC"]
["Autotecnica Colombiana S.A.S"]
["Kawasaki Z Z250 SL MT 250CC"]
["Autotecnica Colombiana S.A.S"]
["Kymco AGILITY DIGITAL AT 125CC"]
["Autotecnica Colombiana S.A.S"]
["Kymco AGILITY RS NAKED AT 125CC"]
["Autotecnica Colombiana S.A.S"]
["Kymco DOWNTOWN 300 AT 300CC"]
["Autotecnica Colombiana S.A.S"]
["Kymco FLY 125 AT 125CC"]
["Autotecnica Colombiana S.A.S"]
["Kymco FLY 150 AT 150CC"]
["Autotecnica Colombiana S.A.S"]
["Kymco MAXXER 250 AT 250CC"]
["Autotecnica Colombiana S.A.S"]
["Kymco MAXXER 375 AT 366CC 4X4"]
["Autotecnica Colombiana S.A.S"]
["Kymco ROCKET 125 AT 125CC"]
["Autotecnica Colombiana S.A.S"]
["Kymco TRACK 125 MT 125CC"]
["Autotecnica Colombiana S.A.S"]
["Kymco UNI-K 110 MT 110CC"]
["Autotecnica Colombiana S.A.S"]
["Stärker SHIPPER  "]
["Autotecnica Colombiana S.A.S"]
["Stärker SHIPPER ST  "]
["Autotecnica Colombiana S.A.S"]
["Stärker SUNNY  "]
["Autotecnica Colombiana S.A.S"]
["Suzuki AX4 110 MT 110CC"]
["Suzuki Motor De Colombia S.A."]
["Suzuki DL 1000A [V STROM] [2] MT 1000CC ABS"]
["Suzuki Motor De Colombia S.A."]
["Suzuki DL 650N [V STROM] MT 650CC ABS"]
["Suzuki Motor De Colombia S.A."]
["Suzuki DR 650 MT 650CC"]
["Suzuki Motor De Colombia S.A."]
["Suzuki DRX 200 MT 200CC"]
["Suzuki Motor De Colombia S.A."]
["Suzuki GIXXER 150 MT 150CC"]
["Suzuki Motor De Colombia S.A."]
["Suzuki GN 125H MT 125CC"]
["Suzuki Motor De Colombia S.A."]
["Suzuki GS 125 MT 125CC"]
["Suzuki Motor De Colombia S.A."]
["Suzuki GS 500 MT 500CC"]
["Suzuki Motor De Colombia S.A."]
["Suzuki INAZUMA GW250 MT 250CC"]
["Suzuki Motor De Colombia S.A."]
["Suzuki KINGQUAD LTA 750 AT 750CC 4X4"]
["Suzuki Motor De Colombia S.A."]
["Suzuki LETS 112 MT 112CC"]
["Suzuki Motor De Colombia S.A."]
["Suzuki LTF 250 MT 250CC 4X2"]
["Suzuki Motor De Colombia S.A."]
["Suzuki VIVA R STYLE MT 113 CC"]
["Suzuki Motor De Colombia S.A."]
["TVS APACHE [2] RTR160 MT 160CC"]
["Colombiana De Comercio S.A. Siglas Corbeta S.A. y/o Alkosto S.A."]
["TVS APACHE [2] RTR180 MT 180CC"]
["Colombiana De Comercio S.A. Siglas Corbeta S.A. y/o Alkosto S.A."]
["TVS STAR [2] SPORT MT 100CC"]
["Colombiana De Comercio S.A. Siglas Corbeta S.A. y/o Alkosto S.A."]
["Yamaha BWS X MOTARD [YW 125X] AT 125CC"]
["Incolmotos Yamaha S.A."]
["Yamaha CRYPTON [2] T115 MT 115CC"]
["Incolmotos Yamaha S.A."]
["Yamaha FINO [2] AF115 AT 115CC"]
["Incolmotos Yamaha S.A."]
["Yamaha FZ-S FI 2.0 MT 150CC"]
["Incolmotos Yamaha S.A."]
["Yamaha LIBERO 125 RV MT 125CC"]
["Incolmotos Yamaha S.A."]
["Yamaha MT 09 TRACER MT 850CC ABS"]
["Incolmotos Yamaha S.A."]
["Yamaha XT 1200 ZE [SUPER TENERE] [2] MT 1200CC"]
["Incolmotos Yamaha S.A."]
["Yamaha XT 660 R MT 660CC"]
["Incolmotos Yamaha S.A."]
["Yamaha XTZ [1] 250 MT 250CC"]
["Incolmotos Yamaha S.A."]
["Yamaha XTZ [2] 125 MT 125CC"]
["Incolmotos Yamaha S.A."]
["Total general"]